{"text_format":"1","workbook":"xlsx","n_sheets":10,"sheets":["Parameter","Startliste","Kategorie 1","Kategorie 2","Kategorie 3","Kategorie 4","Kategorie 5","Kategorie 5 Rangliste","Aktuelle Schützendaten","Save"],"not_rendered":{"charts":0,"images":5,"macros":1,"external_links":0,"defined_names":19,"comments":0,"pivot_tables":0},"unopened":[],"bounds":{"document_bytes":16777216,"sheet_cells":100000,"rows_first":2000,"rows_last":500,"rows_between":2000,"halvings":0,"cell_chars":16384,"cell_head_chars":4096},"cells_cut":0,"cells_raw":0,"read":"whole","date_system":"1900"}

{"sheet":"Parameter","index":0,"n_rows":21,"n_cols":3,"rows_kept":21,"cut":false,"hidden":false,"merged":[[25,2,25,8],[24,2,24,8],[23,2,23,8],[22,2,22,8],[6,2,6,8],[20,2,20,8],[8,2,8,8],[18,2,18,8],[16,2,16,8],[14,2,14,8],[12,2,12,8],[10,2,10,8]]}
[]
[]
[]
[]
[null,"Parameter"]
[]
[null,"Verband: ","OSPSV"]
[]
[null,"Anlass: ","Jugendtag 2022"]
[]
[null,"Kategorie 1: ","Kat. 1  Jugend aufgelegt U10 / U13 / U15"]
[]
[null,"Kategorie 2: ","Kat. 2  Jugend liegend frei U15 / U17"]
[]
[null,"Kategorie 3: ","Kat. 3  Jugend liegend frei U19 / U21"]
[]
[null,"Kategorie 4: ","Kat. 4  Jugend kniend U17"]
[]
[null,"Kategorie 5: ","Kat. 5  Jugend 3 Stellung U19/U21"]
[]
[null,"Kategorie 5 eg: ","Kat. 5  Jugend 3 Stellung  U19 / U21 eg"]

{"sheet":"Startliste","index":1,"n_rows":206,"n_cols":16,"rows_kept":206,"cut":false,"hidden":false,"merged":[[2,0,2,15],[3,0,3,15],[1,0,1,15]]}
[]
[{"$f":"Parameter!C9","v":"Jugendtag 2022"}]
[{"$f":"Parameter!C7","v":"OSPSV"}]
[]
[]
["Nr","Abl.","Sch.-Nr","Name","Vorname","JG","Kat","Sektion","P1","P2","P3","P4","P5","P6","IZ","Total"]
[1,null,null,"Aeberli","Lionél",2010,1,"Dettighofen",65,75,null,null,null,null,0,{"$f":"SUM(I7:N7)","v":140}]
[2,null,null,null,null,null,null,null,null,null,null,null,null,null,null,0]
[3,null,null,"Ammann","Pirmin",2007,2,"Neckertal",95,97,null,null,null,null,7,192]
[4,null,null,"Ammann","Pirmin",2007,4,"Neckertal",null,null,89,86,null,null,1,175]
[5,null,null,"Auer","Tobias",2005,3,"Sitterdorf",90,88,null,null,null,null,0,178]
[6,null,null,"Balgar","Samuel",2009,2,"Goldach",88,89,null,null,null,null,3,177]
[7,null,null,"Baumgartner","Michael",2003,3,"Munot Schaffhausen",87,93,null,null,null,null,3,180]
[8,null,null,"Beerle","Nina",2007,2,"Goldach",95,92,null,null,null,null,3,187]
[9,null,null,"Berger","Marc",2013,1,"Sitterdorf",81,80,null,null,null,null,1,161]
[10,null,null,"Bernet","Kevin",2005,3,"Kirchberg",89,85,null,null,null,null,2,174]
[11,null,null,null,null,null,null,null,null,null,null,null,null,null,null,0]
[12,null,null,"Blattner","Mia",2009,1,"Goldach",92,88,null,null,null,null,5,180]
[13,null,null,"Bleiker","Beda",2009,1,"Mosnang",85,89,null,null,null,null,1,174]
[14,null,null,"Böhi","Marc",2009,1,"Schönholzerswilen",90,96,null,null,null,null,4,186]
[15,null,null,"Böhi","Sarina",2009,1,"Schönholzerswilen",93,91,null,null,null,null,1,184]
[16,null,null,"Brändli","Joya",2004,3,"Schönholzerswilen",86,92,null,null,null,null,5,178]
[17,null,null,"Broger","Simon",2006,2,"Weissbad",87,90,null,null,null,null,4,177]
[18,null,null,"Broger","Simon",2006,4,"Weissbad",null,null,85,84,null,null,null,169]
[19,null,null,"Brühlmann","David",2004,3,"Munot Schaffhausen",85,87,null,null,null,null,1,172]
[20,null,null,"Correia","Jannic",2009,1,"Schönholzerswilen",92,94,null,null,null,null,6,186]
[21,null,null,"Correia","Sandro",2006,2,"Schönholzerswilen",90,90,null,null,null,null,1,180]
[22,null,null,"Deubelbeiss","Jano",2010,1,"Goldach",88,95,null,null,null,null,2,183]
[23,null,null,"Dornbierer","Timon",2007,2,"Goldach",87,87,null,null,null,null,2,174]
[24,null,null,"Eggenberger","Raffael",2007,2,"Grabs",80,84,null,null,null,null,2,164]
[25,null,null,"Fässler","Ryan",2011,1,"Goldach",90,82,null,null,null,null,3,172]
[26,null,null,"Fries","Eliano",2010,1,"Goldach",87,90,null,null,null,null,2,177]
[27,null,null,"Fritsche","Maurus",2002,3,"Weissbad",91,94,null,null,null,null,6,185]
[28,null,null,"Fritsche","Maurus",2002,4,"Weissbad",null,null,90,83,null,null,4,173]
[29,null,null,"Fromm","Valentin",2008,2,"Sargans",94,88,null,null,null,null,3,182]
[30,null,null,"Früh","Janis",2004,3,"Kirchberg",94,97,null,null,null,null,8,191]
[31,null,null,null,null,null,null,null,null,null,null,null,null,null,null,0]
[32,null,null,"Gad","Karim",2003,3,"Munot Schaffhausen",94,88,null,null,null,null,2,182]
[33,null,null,"Geisser","Roman",2006,2,"Dicken Ebnat-Kappel",93,90,null,null,null,null,5,{"$f":"SUM(I39:N39)","v":183}]
[35,null,null,"Gmünder","Janin",2005,3,"Weissbad",91,91,null,null,null,null,1,182]
[34,null,null,"Gmünder","Ralf",2005,3,"Weissbad",92,96,null,null,null,null,2,188]
[36,null,null,null,null,null,null,null,null,null,null,null,null,null,null,0]
[37,null,null,"Good ","Cedric",2009,2,"Sargans",89,85,null,null,null,null,1,174]
[38,null,null,"Graf","Felix",2011,1,"Kirchberg",86,92,null,null,null,null,2,178]
[39,null,null,"Graf","Rahel",2010,1,"Kirchberg",89,93,null,null,null,null,3,182]
[40,null,null,"Hagen","Linn",2009,1,"Dettighofen",94,96,null,null,null,null,8,190]
[41,null,null,null,null,null,null,null,null,null,null,null,null,null,null,0]
[42,null,null,"Hassioui","Elias",2011,1,"Sitterdorf",86,93,null,null,null,null,4,179]
[43,null,null,"Henke","Quentin",2009,2,"Kirchberg",81,72,null,null,null,null,0,153]
[44,null,null,"Huldi","Patrick ",2009,1,"Neckertal",89,89,null,null,null,null,4,178]
[45,null,null,null,null,null,null,null,null,null,null,null,null,null,null,0]
[46,null,null,"Jordi","Lena",2010,1,"Dicken Ebnat-Kappel",92,92,null,null,null,null,4,184]
[47,null,null,"Kalbitz","Andrin",2008,2,"Weinfelden",81,78,null,null,null,null,0,159]
[48,null,null,"Klein","Elias",2003,3,"Kirchberg",93,92,null,null,null,null,4,185]
[49,null,null,"Koch","Leandro",2011,1,"Weissbad",85,79,null,null,null,null,1,164]
[50,null,null,"Koller ","Bryan",2009,1,"Kirchberg",86,84,null,null,null,null,1,170]
[51,null,null,"Krähemann","Levano",2006,2,"Wil",94,95,null,null,null,null,7,189]
[52,null,null,"Kressel ","Niclas",2006,2,"Sargans",96,96,null,null,null,null,2,192]
[53,null,null,"Kummer","Livio",2005,3,"Munot Schaffhausen",94,94,null,null,null,null,7,188]
[54,null,null,"Künzli","Ian",2006,2,"Dicken Ebnat-Kappel",94,90,null,null,null,null,4,184]
[55,null,null,"Küttel","Patrick",2006,2,"Schönholzerswilen",82,82,null,null,null,null,3,164]
[56,null,null,"Kutter","Joel",2010,2,"Dettighofen",83,87,null,null,null,null,0,170]
[57,null,null,"Lengwiler","Tobias",2003,3,"Sitterdorf",92,95,null,null,null,null,3,187]
[58,null,null,"Lengyel ","Zsombor",2006,2,"Sargans",94,94,null,null,null,null,6,188]
[59,null,null,"Locher","Livio",2002,3,"Weissbad",92,90,null,null,null,null,1,182]
[60,null,null,"Locher","Livio",2002,4,"Weissbad",null,null,92,93,null,null,4,185]
[61,null,null,"Lüber","Lara",2008,2,"Kirchberg",93,92,null,null,null,null,3,185]
[62,null,null,null,null,null,null,null,null,null,null,null,null,null,null,0]
[63,null,null,null,null,null,null,null,null,null,null,null,null,null,null,0]
[64,null,null,"Mäder","Ramona",2008,1,"Sitterdorf",93,92,null,null,null,null,3,185]
[65,null,null,"Manser","Jonas",2006,2,"Weissbad",93,91,null,null,null,null,5,{"$f":"SUM(I71:N71)","v":184}]
[66,null,null,"Manser","Jonas",2006,4,"Weissbad",null,null,80,83,null,null,null,163]
[67,null,null,"Marciello","Chiara",2008,2,"Weinfelden",91,92,null,null,null,null,1,183]
[68,null,null,"Marciello","Chiara",2008,4,"Weinfelden",null,null,89,90,null,null,4,179]
[69,null,null,"Matanovic","Josipa",2007,2,"Grabs",85,85,null,null,null,null,1,170]
[72,null,null,"Meier","Astid",2002,3,"St.Gallen",100,97,null,null,null,null,6,197]
[71,null,null,"Meier","Jerome",2012,1,"Schönholzerswilen",81,79,null,null,null,null,0,160]
[70,null,null,"Meier","Noah",2010,1,"Goldach",88,93,null,null,null,null,2,181]
[73,null,null,"Mettler","Andri",2010,1,"Neckertal",83,92,null,null,null,null,4,175]
[74,null,null,"Moser","Jan",2007,2,"Wildhaus",91,91,null,null,null,null,3,182]
[75,null,null,"Moser","Jan",2007,4,"Wildhaus",null,null,87,88,null,null,2,175]
[137,null,null,"Münger","Benaja",2008,1,"Neckertal",75,73,null,null,null,null,0,148]
[76,null,null,"Munskgaard ","William",2007,2,"Sargans",93,89,null,null,null,null,6,182]
[77,null,null,"Niederer","Remo",2011,1,"Neckertal",95,92,null,null,null,null,4,187]
[78,null,null,"Oberholzer","Raffael ",2005,3,"Sitterdorf",88,89,null,null,null,null,1,177]
[79,null,null,"Oettli ","Philipp",2006,2,"Weinfelden",86,88,null,null,null,null,1,174]
[80,null,null,null,null,null,null,null,null,null,null,null,null,null,null,0]
[82,null,null,"Patt","Andrea",2006,2,"St.Gallen",89,88,null,null,null,null,4,177]
[81,null,null,"Patt","Michel",2009,1,"St.Gallen",98,95,null,null,null,null,8,193]
[83,null,null,"Pfützner ","Philipp",2006,2,"Sargans",92,92,null,null,null,null,4,184]
[84,null,null,"Rick","Colin",2009,2,"Goldach",95,77,null,null,null,null,2,172]
[85,null,null,"Rohner","Ciril",2006,2,"Kirchberg",94,93,null,null,null,null,5,187]
[86,null,null,"Rohner","Enea",2012,1,"Sitterdorf",78,80,null,null,null,null,0,158]
[87,null,null,"Sawall","Fabienne",2007,2,"Grabs",88,86,null,null,null,null,5,174]
[88,null,null,"Schaub","Alyssia",2009,1,"Mosnang",95,88,null,null,null,null,6,183]
[89,null,null,"Scherrer","Benjamin",2003,3,"Weinfelden",96,97,null,null,null,null,9,193]
[90,null,null,"Scherrer","Benjamin",2003,4,"Weinfelden",null,null,83,74,null,null,null,157]
[91,null,null,"Schittenhelm","Dennis",2003,4,"Goldach",null,null,90,86,null,null,3,176]
[92,null,null,"Schittenhelm","Dennis",2003,3,"Goldach",93,96,null,null,null,null,5,189]
[93,null,null,"Schläpfer ","Michael",2009,2,"Weinfelden",90,86,null,null,null,null,3,176]
[94,null,null,null,null,null,null,null,null,null,null,null,null,null,null,0]
[95,null,null,"Schönenberger","Fynn",2010,1,"Sitterdorf",90,88,null,null,null,null,1,178]
[96,null,null,"Schönenberger","Zoé",2007,2,"Sitterdorf",92,91,null,null,null,null,4,{"$f":"SUM(I103:N103)","v":183}]
[97,null,null,"Schönenberger","Zoé",2007,4,"Sitterdorf",null,null,62,71,null,null,0,133]
[98,null,null,null,null,null,null,null,null,null,null,null,null,null,null,0]
[99,null,null,"Schrittwieser","Thomas",2005,3,"Weinfelden",90,87,null,null,null,null,1,177]
[100,null,null,"Schumacher","Manuel",2003,3,"Weinfelden",93,88,null,null,null,null,5,181]
[102,null,null,"Segmüller","Arno",2006,2,"Altstätten",77,87,null,null,null,null,0,164]
[101,null,null,"Segmüller","Joe",2010,1,"Altstätten",94,93,null,null,null,null,5,187]
[103,null,null,"Segmüller","Nando",2003,3,"Altstätten",88,96,null,null,null,null,2,184]
[104,null,null,"Speck","Corina",2005,3,"Weissbad",97,96,null,null,null,null,7,193]
[105,null,null,"Sprenger","Sven",2008,2,"Altstätten",95,94,null,null,null,null,5,189]
[106,null,null,null,null,null,null,null,null,null,null,null,null,null,null,0]
[107,null,null,"Städler","Sven",2005,3,"Weissbad",87,87,null,null,null,null,1,174]
[108,null,null,"Staub","Kaya",2008,1,"Schönholzerswilen",87,91,null,null,null,null,2,178]
[109,null,null,"Staub","Lea",2002,3,"Schönholzerswilen",95,95,null,null,null,null,6,190]
[110,null,null,"Steiner","Joshua",2009,1,"Neckertal",89,93,null,null,null,null,4,182]
[111,null,null,"Steuck","Luca",2009,1,"Mosnang",92,94,null,null,null,null,6,186]
[112,null,null,"Stieger","Ken",2006,2,"Weinfelden",82,78,null,null,null,null,1,160]
[113,null,null,"Straub","Patrick",2009,2,"Dettighofen",79,84,null,null,null,null,1,163]
[114,null,null,"Strübi ","Manuel",2008,2,"Wildhaus",92,94,null,null,null,null,4,186]
[115,null,null,"Strübi ","Manuel",2008,4,"Wildhaus",null,null,84,83,null,null,2,167]
[117,null,null,"Studer","Julien",2010,1,"Munot Schaffhausen",85,87,null,null,null,null,1,172]
[116,null,null,null,null,null,null,null,null,null,null,null,null,null,null,0]
[118,null,null,"Sutter","Janine",2010,1,"Schönholzerswilen",94,93,null,null,null,null,8,187]
[119,null,null,"Sutter","Natascha",2004,3,"Schönholzerswilen",89,93,null,null,null,null,4,182]
[120,null,null,"Taranto","Arya",2008,2,"Wil",81,82,null,null,null,null,1,163]
[121,null,null,"Thalmann","Robin",2012,1,"Weinfelden",62,69,null,null,null,null,1,131]
[122,null,null,"Thalmann","Silas",2010,1,"Weinfelden",66,84,null,null,null,null,1,150]
[123,null,null,"Truniger","Nils",2008,1,"Mosnang",86,86,null,null,null,null,2,172]
[124,null,null,null,null,null,null,null,null,null,null,null,null,null,null,0]
[125,null,null,"Ulmann","Jan ",2005,3,"Weissbad",90,93,null,null,null,null,2,183]
[126,null,null,"Ulmann","Jan ",2005,4,"Weissbad",null,null,83,85,null,null,1,168]
[127,null,null,"Wachsmann","Phillip",2008,1,"Sargans",89,90,null,null,null,null,3,179]
[128,null,null,"Weitbrecht ","Talitha",2009,2,"Sargans",91,93,null,null,null,null,3,{"$f":"SUM(I135:N135)","v":184}]
[129,null,null,"Wenk","Alexander",2011,1,"Goldach",86,93,null,null,null,null,3,179]
[130,null,null,"Wichser","Mia",2009,1,"Grabs",91,92,null,null,null,null,2,183]
[131,null,null,"Wiederkehr","Yari",2006,2,"Kirchberg",92,94,null,null,null,null,5,186]
[132,null,null,"Wildi","Clarissa",2008,1,"Grabs",92,87,null,null,null,null,1,179]
[133,null,null,"Ziegler","Timo",2010,1,"Neckertal",92,90,null,null,null,null,4,182]
[134,null,null,"Ziltener","Sina",2007,2,"Goldach",86,89,null,null,null,null,1,175]
[135,null,null,"Zumstein","Vincenza",2005,3,"Weissbad",92,90,null,null,null,null,2,182]
[136,null,null,"Zweifel","Noel",2010,2,"Kirchberg",85,87,null,null,null,null,4,172]
[138,null,null,null,null,null,null,null,null,null,null,null,null,null,null,0]
[null,null,null,null,null,null,null,null,null,null,null,null,null,null,null,0]
[null,null,null,null,null,null,null,null,null,null,null,null,null,null,null,0]
[null,null,null,null,null,null,null,null,null,null,null,null,null,null,null,0]
[null,null,null,null,null,null,null,null,null,null,null,null,null,null,null,0]
[null,null,null,null,null,null,null,null,null,null,null,null,null,null,null,0]
[null,null,null,null,null,null,null,null,null,null,null,null,null,null,null,0]
[null,null,null,null,null,null,null,null,null,null,null,null,null,null,null,0]
[null,null,null,null,null,null,null,null,null,null,null,null,null,null,null,0]
[null,null,null,null,null,null,null,null,null,null,null,null,null,null,null,0]
[null,null,null,null,null,null,null,null,null,null,null,null,null,null,null,0]
[null,null,null,null,null,null,null,null,null,null,null,null,null,null,null,0]
[null,null,null,null,null,null,null,null,null,null,null,null,null,null,null,0]
[null,null,null,null,null,null,null,null,null,null,null,null,null,null,null,0]
[null,null,null,null,null,null,null,null,null,null,null,null,null,null,null,0]
[null,null,null,null,null,null,null,null,null,null,null,null,null,null,null,0]
[null,null,null,null,null,null,null,null,null,null,null,null,null,null,null,0]
[null,null,null,null,null,null,null,null,null,null,null,null,null,null,null,0]
[null,null,null,null,null,null,null,null,null,null,null,null,null,null,null,0]
[null,null,null,null,null,null,null,null,null,null,null,null,null,null,null,0]
[null,null,null,null,null,null,null,null,null,null,null,null,null,null,null,0]
[null,null,null,null,null,null,null,null,null,null,null,null,null,null,null,0]
[null,null,null,null,null,null,null,null,null,null,null,null,null,null,null,0]
[null,null,null,null,null,null,null,null,null,null,null,null,null,null,null,{"$f":"SUM(I167:N167)","v":0}]
[null,null,null,null,null,null,null,null,null,null,null,null,null,null,null,0]
[null,null,null,null,null,null,null,null,null,null,null,null,null,null,null,0]
[null,null,null,null,null,null,null,null,null,null,null,null,null,null,null,0]
[null,null,null,null,null,null,null,null,null,null,null,null,null,null,null,0]
[null,null,null,null,null,null,null,null,null,null,null,null,null,null,null,0]
[null,null,null,null,null,null,null,null,null,null,null,null,null,null,null,0]
[null,null,null,null,null,null,null,null,null,null,null,null,null,null,null,0]
[null,null,null,null,null,null,null,null,null,null,null,null,null,null,null,0]
[null,null,null,null,null,null,null,null,null,null,null,null,null,null,null,0]
[null,null,null,null,null,null,null,null,null,null,null,null,null,null,null,0]
[null,null,null,null,null,null,null,null,null,null,null,null,null,null,null,0]
[null,null,null,null,null,null,null,null,null,null,null,null,null,null,null,0]
[null,null,null,null,null,null,null,null,null,null,null,null,null,null,null,0]
[null,null,null,null,null,null,null,null,null,null,null,null,null,null,null,0]
[null,null,null,null,null,null,null,null,null,null,null,null,null,null,null,0]
[null,null,null,null,null,null,null,null,null,null,null,null,null,null,null,0]
[null,null,null,null,null,null,null,null,null,null,null,null,null,null,null,0]
[null,null,null,null,null,null,null,null,null,null,null,null,null,null,null,0]
[null,null,null,null,null,null,null,null,null,null,null,null,null,null,null,0]
[null,null,null,null,null,null,null,null,null,null,null,null,null,null,null,0]
[null,null,null,null,null,null,null,null,null,null,null,null,null,null,null,0]
[null,null,null,null,null,null,null,null,null,null,null,null,null,null,null,0]
[null,null,null,null,null,null,null,null,null,null,null,null,null,null,null,0]
[null,null,null,null,null,null,null,null,null,null,null,null,null,null,null,0]
[null,null,null,null,null,null,null,null,null,null,null,null,null,null,null,0]
[null,null,null,null,null,null,null,null,null,null,null,null,null,null,null,0]
[null,null,null,null,null,null,null,null,null,null,null,null,null,null,null,0]
[null,null,null,null,null,null,null,null,null,null,null,null,null,null,null,0]
[null,null,null,null,null,null,null,null,null,null,null,null,null,null,null,0]
[null,null,null,null,null,null,null,null,null,null,null,null,null,null,null,0]
[null,null,null,null,null,null,null,null,null,null,null,null,null,null,null,0]
[null,null,null,null,null,null,null,null,null,null,null,null,null,null,null,{"$f":"SUM(I199:N199)","v":0}]
[null,null,null,null,null,null,null,null,null,null,null,null,null,null,null,0]
[null,null,null,null,null,null,null,null,null,null,null,null,null,null,null,0]
[null,null,null,null,null,null,null,null,null,null,null,null,null,null,null,0]
[null,null,null,null,null,null,null,null,null,null,null,null,null,null,null,0]
[null,null,null,null,null,null,null,null,null,null,null,null,null,null,null,0]
[null,null,null,null,null,null,null,null,null,null,null,null,null,null,null,0]
[null,null,null,null,null,null,null,null,null,null,null,null,null,null,null,0]

{"sheet":"Kategorie 1","index":2,"n_rows":206,"n_cols":19,"rows_kept":206,"cut":false,"hidden":false,"merged":[[2,0,2,17],[1,0,1,17],[0,0,0,17],[3,0,3,17],[5,16,5,17],[4,8,4,9]]}
[]
[{"$f":"Parameter!C7","v":"OSPSV"}]
[{"$f":"Parameter!C9","v":"Jugendtag 2022"}]
[{"$f":"Parameter!C11","v":"Kat. 1  Jugend aufgelegt U10 / U13 / U15"}]
[null,null,null,null,null,null,null,null,"liegend"]
["Nr","Abl.","Sch.-Nr","Name","Vorname","JG","Kat","Sektion","P1","P2","P3","P4","P5","P6","IZ","Total","Rang",null,"KK"]
[81,null,null,"Patt","Michel",2009,1,"St.Gallen",98,95,null,null,null,null,8,{"$f":"SUM(I7:J7)","v":193},{"$f":"IF(P7=0,\" \",_xlfn.RANK.EQ(P7,$P$7:$P$206,0)+ COUNTIF(P$7:P7, P7) - 1)","v":1},{"$f":"IF(Q7=2,\"Silber\",\"\")","v":""},"G"]
[40,null,null,"Hagen","Linn",2009,1,"Dettighofen",94,96,null,null,null,null,8,190,{"$f":"IF(P8=0,\" \",_xlfn.RANK.EQ(P8,$P$7:$P$206,0)+ COUNTIF(P$7:P8, P8) - 1)","v":2},{"$f":"IF(Q8=1,\"Gold\",\"\")","v":""},"S"]
[118,null,null,"Sutter","Janine",2010,1,"Schönholzerswilen",94,93,null,null,null,null,8,187,{"$f":"IF(P9=0,\" \",_xlfn.RANK.EQ(P9,$P$7:$P$206,0)+ COUNTIF(P$7:P9, P9) - 1)","v":3},null,"B"]
[101,null,null,"Segmüller","Joe",2010,1,"Altstätten",94,93,null,null,null,null,5,187,{"$f":"IF(P10=0,\" \",_xlfn.RANK.EQ(P10,$P$7:$P$206,0)+ COUNTIF(P$7:P10, P10) - 1)","v":4},{"$f":"IF(Q10=3,\"Bronze\",\"\")","v":""},8]
[77,null,null,"Niederer","Remo",2011,1,"Neckertal",95,92,null,null,null,null,4,187,{"$f":"IF(P11=0,\" \",_xlfn.RANK.EQ(P11,$P$7:$P$206,0)+ COUNTIF(P$7:P11, P11) - 1)","v":5},null,8]
[20,null,null,"Correia","Jannic",2009,1,"Schönholzerswilen",92,94,null,null,null,null,6,186,{"$f":"IF(P12=0,\" \",_xlfn.RANK.EQ(P12,$P$7:$P$206,0)+ COUNTIF(P$7:P12, P12) - 1)","v":6},null,8]
[111,null,null,"Steuck","Luca",2009,1,"Mosnang",92,94,null,null,null,null,6,186,{"$f":"IF(P13=0,\" \",_xlfn.RANK.EQ(P13,$P$7:$P$206,0)+ COUNTIF(P$7:P13, P13) - 1)","v":7},null,8]
[14,null,null,"Böhi","Marc",2009,1,"Schönholzerswilen",90,96,null,null,null,null,4,186,{"$f":"IF(P14=0,\" \",_xlfn.RANK.EQ(P14,$P$7:$P$206,0)+ COUNTIF(P$7:P14, P14) - 1)","v":8},null,8]
[64,null,null,"Mäder","Ramona",2008,1,"Sitterdorf",93,92,null,null,null,null,3,185,{"$f":"IF(P15=0,\" \",_xlfn.RANK.EQ(P15,$P$7:$P$206,0)+ COUNTIF(P$7:P15, P15) - 1)","v":9},null,8]
[46,null,null,"Jordi","Lena",2010,1,"Dicken Ebnat-Kappel",92,92,null,null,null,null,4,184,{"$f":"IF(P16=0,\" \",_xlfn.RANK.EQ(P16,$P$7:$P$206,0)+ COUNTIF(P$7:P16, P16) - 1)","v":10},null,8]
[15,null,null,"Böhi","Sarina",2009,1,"Schönholzerswilen",93,91,null,null,null,null,1,184,{"$f":"IF(P17=0,\" \",_xlfn.RANK.EQ(P17,$P$7:$P$206,0)+ COUNTIF(P$7:P17, P17) - 1)","v":11},null,8]
[88,null,null,"Schaub","Alyssia",2009,1,"Mosnang",95,88,null,null,null,null,6,183,{"$f":"IF(P18=0,\" \",_xlfn.RANK.EQ(P18,$P$7:$P$206,0)+ COUNTIF(P$7:P18, P18) - 1)","v":12},null,8]
[22,null,null,"Deubelbeiss","Jano",2010,1,"Goldach",88,95,null,null,null,null,2,183,{"$f":"IF(P19=0,\" \",_xlfn.RANK.EQ(P19,$P$7:$P$206,0)+ COUNTIF(P$7:P19, P19) - 1)","v":13},null,8]
[130,null,null,"Wichser","Mia",2009,1,"Grabs",91,92,null,null,null,null,2,183,{"$f":"IF(P20=0,\" \",_xlfn.RANK.EQ(P20,$P$7:$P$206,0)+ COUNTIF(P$7:P20, P20) - 1)","v":14},null,5]
[110,null,null,"Steiner","Joshua",2009,1,"Neckertal",89,93,null,null,null,null,4,182,{"$f":"IF(P21=0,\" \",_xlfn.RANK.EQ(P21,$P$7:$P$206,0)+ COUNTIF(P$7:P21, P21) - 1)","v":15},null,5]
[133,null,null,"Ziegler","Timo",2010,1,"Neckertal",92,90,null,null,null,null,4,182,{"$f":"IF(P22=0,\" \",_xlfn.RANK.EQ(P22,$P$7:$P$206,0)+ COUNTIF(P$7:P22, P22) - 1)","v":16},null,5]
[39,null,null,"Graf","Rahel",2010,1,"Kirchberg",89,93,null,null,null,null,3,182,{"$f":"IF(P23=0,\" \",_xlfn.RANK.EQ(P23,$P$7:$P$206,0)+ COUNTIF(P$7:P23, P23) - 1)","v":17},null,5]
[70,null,null,"Meier","Noah",2010,1,"Goldach",88,93,null,null,null,null,2,181,{"$f":"IF(P24=0,\" \",_xlfn.RANK.EQ(P24,$P$7:$P$206,0)+ COUNTIF(P$7:P24, P24) - 1)","v":18},null,5]
[12,null,null,"Blattner","Mia",2009,1,"Goldach",92,88,null,null,null,null,5,180,{"$f":"IF(P25=0,\" \",_xlfn.RANK.EQ(P25,$P$7:$P$206,0)+ COUNTIF(P$7:P25, P25) - 1)","v":19},null,5]
[42,null,null,"Hassioui","Elias",2011,1,"Sitterdorf",86,93,null,null,null,null,4,179,{"$f":"IF(P26=0,\" \",_xlfn.RANK.EQ(P26,$P$7:$P$206,0)+ COUNTIF(P$7:P26, P26) - 1)","v":20},null,5]
[129,null,null,"Wenk","Alexander",2011,1,"Goldach",86,93,null,null,null,null,3,179,{"$f":"IF(P27=0,\" \",_xlfn.RANK.EQ(P27,$P$7:$P$206,0)+ COUNTIF(P$7:P27, P27) - 1)","v":21},null,5]
[127,null,null,"Wachsmann","Phillip",2008,1,"Sargans",89,90,null,null,null,null,3,179,{"$f":"IF(P28=0,\" \",_xlfn.RANK.EQ(P28,$P$7:$P$206,0)+ COUNTIF(P$7:P28, P28) - 1)","v":22},null,5]
[132,null,null,"Wildi","Clarissa",2008,1,"Grabs",92,87,null,null,null,null,1,179,{"$f":"IF(P29=0,\" \",_xlfn.RANK.EQ(P29,$P$7:$P$206,0)+ COUNTIF(P$7:P29, P29) - 1)","v":23},null,5]
[44,null,null,"Huldi","Patrick ",2009,1,"Neckertal",89,89,null,null,null,null,4,178,{"$f":"IF(P30=0,\" \",_xlfn.RANK.EQ(P30,$P$7:$P$206,0)+ COUNTIF(P$7:P30, P30) - 1)","v":24}]
[38,null,null,"Graf","Felix",2011,1,"Kirchberg",86,92,null,null,null,null,2,178,{"$f":"IF(P31=0,\" \",_xlfn.RANK.EQ(P31,$P$7:$P$206,0)+ COUNTIF(P$7:P31, P31) - 1)","v":25}]
[108,null,null,"Staub","Kaya",2008,1,"Schönholzerswilen",87,91,null,null,null,null,2,178,{"$f":"IF(P32=0,\" \",_xlfn.RANK.EQ(P32,$P$7:$P$206,0)+ COUNTIF(P$7:P32, P32) - 1)","v":26}]
[95,null,null,"Schönenberger","Fynn",2010,1,"Sitterdorf",90,88,null,null,null,null,1,178,{"$f":"IF(P33=0,\" \",_xlfn.RANK.EQ(P33,$P$7:$P$206,0)+ COUNTIF(P$7:P33, P33) - 1)","v":27}]
[26,null,null,"Fries","Eliano",2010,1,"Goldach",87,90,null,null,null,null,2,177,{"$f":"IF(P34=0,\" \",_xlfn.RANK.EQ(P34,$P$7:$P$206,0)+ COUNTIF(P$7:P34, P34) - 1)","v":28}]
[73,null,null,"Mettler","Andri",2010,1,"Neckertal",83,92,null,null,null,null,4,175,{"$f":"IF(P35=0,\" \",_xlfn.RANK.EQ(P35,$P$7:$P$206,0)+ COUNTIF(P$7:P35, P35) - 1)","v":29}]
[13,null,null,"Bleiker","Beda",2009,1,"Mosnang",85,89,null,null,null,null,1,174,{"$f":"IF(P36=0,\" \",_xlfn.RANK.EQ(P36,$P$7:$P$206,0)+ COUNTIF(P$7:P36, P36) - 1)","v":30}]
[25,null,null,"Fässler","Ryan",2011,1,"Goldach",90,82,null,null,null,null,3,172,{"$f":"IF(P37=0,\" \",_xlfn.RANK.EQ(P37,$P$7:$P$206,0)+ COUNTIF(P$7:P37, P37) - 1)","v":31}]
[123,null,null,"Truniger","Nils",2008,1,"Mosnang",86,86,null,null,null,null,2,172,{"$f":"IF(P38=0,\" \",_xlfn.RANK.EQ(P38,$P$7:$P$206,0)+ COUNTIF(P$7:P38, P38) - 1)","v":32}]
[117,null,null,"Studer","Julien",2010,1,"Munot Schaffhausen",85,87,null,null,null,null,1,{"$f":"SUM(I39:J39)","v":172},{"$f":"IF(P39=0,\" \",_xlfn.RANK.EQ(P39,$P$7:$P$206,0)+ COUNTIF(P$7:P39, P39) - 1)","v":33}]
[50,null,null,"Koller ","Bryan",2009,1,"Kirchberg",86,84,null,null,null,null,1,170,{"$f":"IF(P40=0,\" \",_xlfn.RANK.EQ(P40,$P$7:$P$206,0)+ COUNTIF(P$7:P40, P40) - 1)","v":34}]
[49,null,null,"Koch","Leandro",2011,1,"Weissbad",85,79,null,null,null,null,1,164,{"$f":"IF(P41=0,\" \",_xlfn.RANK.EQ(P41,$P$7:$P$206,0)+ COUNTIF(P$7:P41, P41) - 1)","v":35}]
[9,null,null,"Berger","Marc",2013,1,"Sitterdorf",81,80,null,null,null,null,1,161,{"$f":"IF(P42=0,\" \",_xlfn.RANK.EQ(P42,$P$7:$P$206,0)+ COUNTIF(P$7:P42, P42) - 1)","v":36}]
[71,null,null,"Meier","Jerome",2012,1,"Schönholzerswilen",81,79,null,null,null,null,0,160,{"$f":"IF(P43=0,\" \",_xlfn.RANK.EQ(P43,$P$7:$P$206,0)+ COUNTIF(P$7:P43, P43) - 1)","v":37}]
[86,null,null,"Rohner","Enea",2012,1,"Sitterdorf",78,80,null,null,null,null,0,158,{"$f":"IF(P44=0,\" \",_xlfn.RANK.EQ(P44,$P$7:$P$206,0)+ COUNTIF(P$7:P44, P44) - 1)","v":38}]
[122,null,null,"Thalmann","Silas",2010,1,"Weinfelden",66,84,null,null,null,null,1,150,{"$f":"IF(P45=0,\" \",_xlfn.RANK.EQ(P45,$P$7:$P$206,0)+ COUNTIF(P$7:P45, P45) - 1)","v":39}]
[137,null,null,"Münger","Benaja",2008,1,"Neckertal",75,73,null,null,null,null,0,148,{"$f":"IF(P46=0,\" \",_xlfn.RANK.EQ(P46,$P$7:$P$206,0)+ COUNTIF(P$7:P46, P46) - 1)","v":40}]
[1,null,null,"Aeberli","Lionél",2010,1,"Dettighofen",65,75,null,null,null,null,0,140,{"$f":"IF(P47=0,\" \",_xlfn.RANK.EQ(P47,$P$7:$P$206,0)+ COUNTIF(P$7:P47, P47) - 1)","v":41}]
[121,null,null,"Thalmann","Robin",2012,1,"Weinfelden",62,69,null,null,null,null,1,131,{"$f":"IF(P48=0,\" \",_xlfn.RANK.EQ(P48,$P$7:$P$206,0)+ COUNTIF(P$7:P48, P48) - 1)","v":42}]
[null,null,null,null,null,null,null,null,null,null,null,null,null,null,null,0,{"$f":"IF(P49=0,\" \",_xlfn.RANK.EQ(P49,$P$7:$P$206,0)+ COUNTIF(P$7:P49, P49) - 1)","v":" "}]
[null,null,null,null,null,null,null,null,null,null,null,null,null,null,null,0,{"$f":"IF(P50=0,\" \",_xlfn.RANK.EQ(P50,$P$7:$P$206,0)+ COUNTIF(P$7:P50, P50) - 1)","v":" "}]
[null,null,null,null,null,null,null,null,null,null,null,null,null,null,null,0,{"$f":"IF(P51=0,\" \",_xlfn.RANK.EQ(P51,$P$7:$P$206,0)+ COUNTIF(P$7:P51, P51) - 1)","v":" "}]
[null,null,null,null,null,null,null,null,null,null,null,null,null,null,null,0,{"$f":"IF(P52=0,\" \",_xlfn.RANK.EQ(P52,$P$7:$P$206,0)+ COUNTIF(P$7:P52, P52) - 1)","v":" "}]
[null,null,null,null,null,null,null,null,null,null,null,null,null,null,null,0,{"$f":"IF(P53=0,\" \",_xlfn.RANK.EQ(P53,$P$7:$P$206,0)+ COUNTIF(P$7:P53, P53) - 1)","v":" "}]
[null,null,null,null,null,null,null,null,null,null,null,null,null,null,null,0,{"$f":"IF(P54=0,\" \",_xlfn.RANK.EQ(P54,$P$7:$P$206,0)+ COUNTIF(P$7:P54, P54) - 1)","v":" "}]
[null,null,null,null,null,null,null,null,null,null,null,null,null,null,null,0,{"$f":"IF(P55=0,\" \",_xlfn.RANK.EQ(P55,$P$7:$P$206,0)+ COUNTIF(P$7:P55, P55) - 1)","v":" "}]
[null,null,null,null,null,null,null,null,null,null,null,null,null,null,null,0,{"$f":"IF(P56=0,\" \",_xlfn.RANK.EQ(P56,$P$7:$P$206,0)+ COUNTIF(P$7:P56, P56) - 1)","v":" "}]
[null,null,null,null,null,null,null,null,null,null,null,null,null,null,null,0,{"$f":"IF(P57=0,\" \",_xlfn.RANK.EQ(P57,$P$7:$P$206,0)+ COUNTIF(P$7:P57, P57) - 1)","v":" "}]
[null,null,null,null,null,null,null,null,null,null,null,null,null,null,null,0,{"$f":"IF(P58=0,\" \",_xlfn.RANK.EQ(P58,$P$7:$P$206,0)+ COUNTIF(P$7:P58, P58) - 1)","v":" "}]
[null,null,null,null,null,null,null,null,null,null,null,null,null,null,null,0,{"$f":"IF(P59=0,\" \",_xlfn.RANK.EQ(P59,$P$7:$P$206,0)+ COUNTIF(P$7:P59, P59) - 1)","v":" "}]
[null,null,null,null,null,null,null,null,null,null,null,null,null,null,null,0,{"$f":"IF(P60=0,\" \",_xlfn.RANK.EQ(P60,$P$7:$P$206,0)+ COUNTIF(P$7:P60, P60) - 1)","v":" "}]
[null,null,null,null,null,null,null,null,null,null,null,null,null,null,null,0,{"$f":"IF(P61=0,\" \",_xlfn.RANK.EQ(P61,$P$7:$P$206,0)+ COUNTIF(P$7:P61, P61) - 1)","v":" "}]
[null,null,null,null,null,null,null,null,null,null,null,null,null,null,null,0,{"$f":"IF(P62=0,\" \",_xlfn.RANK.EQ(P62,$P$7:$P$206,0)+ COUNTIF(P$7:P62, P62) - 1)","v":" "}]
[null,null,null,null,null,null,null,null,null,null,null,null,null,null,null,0,{"$f":"IF(P63=0,\" \",_xlfn.RANK.EQ(P63,$P$7:$P$206,0)+ COUNTIF(P$7:P63, P63) - 1)","v":" "}]
[null,null,null,null,null,null,null,null,null,null,null,null,null,null,null,0,{"$f":"IF(P64=0,\" \",_xlfn.RANK.EQ(P64,$P$7:$P$206,0)+ COUNTIF(P$7:P64, P64) - 1)","v":" "}]
[null,null,null,null,null,null,null,null,null,null,null,null,null,null,null,0,{"$f":"IF(P65=0,\" \",_xlfn.RANK.EQ(P65,$P$7:$P$206,0)+ COUNTIF(P$7:P65, P65) - 1)","v":" "}]
[null,null,null,null,null,null,null,null,null,null,null,null,null,null,null,0,{"$f":"IF(P66=0,\" \",_xlfn.RANK.EQ(P66,$P$7:$P$206,0)+ COUNTIF(P$7:P66, P66) - 1)","v":" "}]
[null,null,null,null,null,null,null,null,null,null,null,null,null,null,null,0,{"$f":"IF(P67=0,\" \",_xlfn.RANK.EQ(P67,$P$7:$P$206,0)+ COUNTIF(P$7:P67, P67) - 1)","v":" "}]
[null,null,null,null,null,null,null,null,null,null,null,null,null,null,null,0,{"$f":"IF(P68=0,\" \",_xlfn.RANK.EQ(P68,$P$7:$P$206,0)+ COUNTIF(P$7:P68, P68) - 1)","v":" "}]
[null,null,null,null,null,null,null,null,null,null,null,null,null,null,null,0,{"$f":"IF(P69=0,\" \",_xlfn.RANK.EQ(P69,$P$7:$P$206,0)+ COUNTIF(P$7:P69, P69) - 1)","v":" "}]
[null,null,null,null,null,null,null,null,null,null,null,null,null,null,null,0,{"$f":"IF(P70=0,\" \",_xlfn.RANK.EQ(P70,$P$7:$P$206,0)+ COUNTIF(P$7:P70, P70) - 1)","v":" "}]
[null,null,null,null,null,null,null,null,null,null,null,null,null,null,null,{"$f":"SUM(I71:J71)","v":0},{"$f":"IF(P71=0,\" \",_xlfn.RANK.EQ(P71,$P$7:$P$206,0)+ COUNTIF(P$7:P71, P71) - 1)","v":" "}]
[null,null,null,null,null,null,null,null,null,null,null,null,null,null,null,0,{"$f":"IF(P72=0,\" \",_xlfn.RANK.EQ(P72,$P$7:$P$206,0)+ COUNTIF(P$7:P72, P72) - 1)","v":" "}]
[null,null,null,null,null,null,null,null,null,null,null,null,null,null,null,0,{"$f":"IF(P73=0,\" \",_xlfn.RANK.EQ(P73,$P$7:$P$206,0)+ COUNTIF(P$7:P73, P73) - 1)","v":" "}]
[null,null,null,null,null,null,null,null,null,null,null,null,null,null,null,0,{"$f":"IF(P74=0,\" \",_xlfn.RANK.EQ(P74,$P$7:$P$206,0)+ COUNTIF(P$7:P74, P74) - 1)","v":" "}]
[null,null,null,null,null,null,null,null,null,null,null,null,null,null,null,0,{"$f":"IF(P75=0,\" \",_xlfn.RANK.EQ(P75,$P$7:$P$206,0)+ COUNTIF(P$7:P75, P75) - 1)","v":" "}]
[null,null,null,null,null,null,null,null,null,null,null,null,null,null,null,0,{"$f":"IF(P76=0,\" \",_xlfn.RANK.EQ(P76,$P$7:$P$206,0)+ COUNTIF(P$7:P76, P76) - 1)","v":" "}]
[null,null,null,null,null,null,null,null,null,null,null,null,null,null,null,0,{"$f":"IF(P77=0,\" \",_xlfn.RANK.EQ(P77,$P$7:$P$206,0)+ COUNTIF(P$7:P77, P77) - 1)","v":" "}]
[null,null,null,null,null,null,null,null,null,null,null,null,null,null,null,0,{"$f":"IF(P78=0,\" \",_xlfn.RANK.EQ(P78,$P$7:$P$206,0)+ COUNTIF(P$7:P78, P78) - 1)","v":" "}]
[null,null,null,null,null,null,null,null,null,null,null,null,null,null,null,0,{"$f":"IF(P79=0,\" \",_xlfn.RANK.EQ(P79,$P$7:$P$206,0)+ COUNTIF(P$7:P79, P79) - 1)","v":" "}]
[null,null,null,null,null,null,null,null,null,null,null,null,null,null,null,0,{"$f":"IF(P80=0,\" \",_xlfn.RANK.EQ(P80,$P$7:$P$206,0)+ COUNTIF(P$7:P80, P80) - 1)","v":" "}]
[null,null,null,null,null,null,null,null,null,null,null,null,null,null,null,0,{"$f":"IF(P81=0,\" \",_xlfn.RANK.EQ(P81,$P$7:$P$206,0)+ COUNTIF(P$7:P81, P81) - 1)","v":" "}]
[null,null,null,null,null,null,null,null,null,null,null,null,null,null,null,0,{"$f":"IF(P82=0,\" \",_xlfn.RANK.EQ(P82,$P$7:$P$206,0)+ COUNTIF(P$7:P82, P82) - 1)","v":" "}]
[null,null,null,null,null,null,null,null,null,null,null,null,null,null,null,0,{"$f":"IF(P83=0,\" \",_xlfn.RANK.EQ(P83,$P$7:$P$206,0)+ COUNTIF(P$7:P83, P83) - 1)","v":" "}]
[null,null,null,null,null,null,null,null,null,null,null,null,null,null,null,0,{"$f":"IF(P84=0,\" \",_xlfn.RANK.EQ(P84,$P$7:$P$206,0)+ COUNTIF(P$7:P84, P84) - 1)","v":" "}]
[null,null,null,null,null,null,null,null,null,null,null,null,null,null,null,0,{"$f":"IF(P85=0,\" \",_xlfn.RANK.EQ(P85,$P$7:$P$206,0)+ COUNTIF(P$7:P85, P85) - 1)","v":" "}]
[null,null,null,null,null,null,null,null,null,null,null,null,null,null,null,0,{"$f":"IF(P86=0,\" \",_xlfn.RANK.EQ(P86,$P$7:$P$206,0)+ COUNTIF(P$7:P86, P86) - 1)","v":" "}]
[null,null,null,null,null,null,null,null,null,null,null,null,null,null,null,0,{"$f":"IF(P87=0,\" \",_xlfn.RANK.EQ(P87,$P$7:$P$206,0)+ COUNTIF(P$7:P87, P87) - 1)","v":" "}]
[null,null,null,null,null,null,null,null,null,null,null,null,null,null,null,0,{"$f":"IF(P88=0,\" \",_xlfn.RANK.EQ(P88,$P$7:$P$206,0)+ COUNTIF(P$7:P88, P88) - 1)","v":" "}]
[null,null,null,null,null,null,null,null,null,null,null,null,null,null,null,0,{"$f":"IF(P89=0,\" \",_xlfn.RANK.EQ(P89,$P$7:$P$206,0)+ COUNTIF(P$7:P89, P89) - 1)","v":" "}]
[null,null,null,null,null,null,null,null,null,null,null,null,null,null,null,0,{"$f":"IF(P90=0,\" \",_xlfn.RANK.EQ(P90,$P$7:$P$206,0)+ COUNTIF(P$7:P90, P90) - 1)","v":" "}]
[null,null,null,null,null,null,null,null,null,null,null,null,null,null,null,0,{"$f":"IF(P91=0,\" \",_xlfn.RANK.EQ(P91,$P$7:$P$206,0)+ COUNTIF(P$7:P91, P91) - 1)","v":" "}]
[null,null,null,null,null,null,null,null,null,null,null,null,null,null,null,0,{"$f":"IF(P92=0,\" \",_xlfn.RANK.EQ(P92,$P$7:$P$206,0)+ COUNTIF(P$7:P92, P92) - 1)","v":" "}]
[null,null,null,null,null,null,null,null,null,null,null,null,null,null,null,0,{"$f":"IF(P93=0,\" \",_xlfn.RANK.EQ(P93,$P$7:$P$206,0)+ COUNTIF(P$7:P93, P93) - 1)","v":" "}]
[null,null,null,null,null,null,null,null,null,null,null,null,null,null,null,0,{"$f":"IF(P94=0,\" \",_xlfn.RANK.EQ(P94,$P$7:$P$206,0)+ COUNTIF(P$7:P94, P94) - 1)","v":" "}]
[null,null,null,null,null,null,null,null,null,null,null,null,null,null,null,0,{"$f":"IF(P95=0,\" \",_xlfn.RANK.EQ(P95,$P$7:$P$206,0)+ COUNTIF(P$7:P95, P95) - 1)","v":" "}]
[null,null,null,null,null,null,null,null,null,null,null,null,null,null,null,0,{"$f":"IF(P96=0,\" \",_xlfn.RANK.EQ(P96,$P$7:$P$206,0)+ COUNTIF(P$7:P96, P96) - 1)","v":" "}]
[null,null,null,null,null,null,null,null,null,null,null,null,null,null,null,0,{"$f":"IF(P97=0,\" \",_xlfn.RANK.EQ(P97,$P$7:$P$206,0)+ COUNTIF(P$7:P97, P97) - 1)","v":" "}]
[null,null,null,null,null,null,null,null,null,null,null,null,null,null,null,0,{"$f":"IF(P98=0,\" \",_xlfn.RANK.EQ(P98,$P$7:$P$206,0)+ COUNTIF(P$7:P98, P98) - 1)","v":" "}]
[null,null,null,null,null,null,null,null,null,null,null,null,null,null,null,0,{"$f":"IF(P99=0,\" \",_xlfn.RANK.EQ(P99,$P$7:$P$206,0)+ COUNTIF(P$7:P99, P99) - 1)","v":" "}]
[null,null,null,null,null,null,null,null,null,null,null,null,null,null,null,0,{"$f":"IF(P100=0,\" \",_xlfn.RANK.EQ(P100,$P$7:$P$206,0)+ COUNTIF(P$7:P100, P100) - 1)","v":" "}]
[null,null,null,null,null,null,null,null,null,null,null,null,null,null,null,0,{"$f":"IF(P101=0,\" \",_xlfn.RANK.EQ(P101,$P$7:$P$206,0)+ COUNTIF(P$7:P101, P101) - 1)","v":" "}]
[null,null,null,null,null,null,null,null,null,null,null,null,null,null,null,0,{"$f":"IF(P102=0,\" \",_xlfn.RANK.EQ(P102,$P$7:$P$206,0)+ COUNTIF(P$7:P102, P102) - 1)","v":" "}]
[null,null,null,null,null,null,null,null,null,null,null,null,null,null,null,{"$f":"SUM(I103:J103)","v":0},{"$f":"IF(P103=0,\" \",_xlfn.RANK.EQ(P103,$P$7:$P$206,0)+ COUNTIF(P$7:P103, P103) - 1)","v":" "}]
[null,null,null,null,null,null,null,null,null,null,null,null,null,null,null,0,{"$f":"IF(P104=0,\" \",_xlfn.RANK.EQ(P104,$P$7:$P$206,0)+ COUNTIF(P$7:P104, P104) - 1)","v":" "}]
[null,null,null,null,null,null,null,null,null,null,null,null,null,null,null,0,{"$f":"IF(P105=0,\" \",_xlfn.RANK.EQ(P105,$P$7:$P$206,0)+ COUNTIF(P$7:P105, P105) - 1)","v":" "}]
[null,null,null,null,null,null,null,null,null,null,null,null,null,null,null,0,{"$f":"IF(P106=0,\" \",_xlfn.RANK.EQ(P106,$P$7:$P$206,0)+ COUNTIF(P$7:P106, P106) - 1)","v":" "}]
[null,null,null,null,null,null,null,null,null,null,null,null,null,null,null,0,{"$f":"IF(P107=0,\" \",_xlfn.RANK.EQ(P107,$P$7:$P$206,0)+ COUNTIF(P$7:P107, P107) - 1)","v":" "}]
[null,null,null,null,null,null,null,null,null,null,null,null,null,null,null,0,{"$f":"IF(P108=0,\" \",_xlfn.RANK.EQ(P108,$P$7:$P$206,0)+ COUNTIF(P$7:P108, P108) - 1)","v":" "}]
[null,null,null,null,null,null,null,null,null,null,null,null,null,null,null,0,{"$f":"IF(P109=0,\" \",_xlfn.RANK.EQ(P109,$P$7:$P$206,0)+ COUNTIF(P$7:P109, P109) - 1)","v":" "}]
[null,null,null,null,null,null,null,null,null,null,null,null,null,null,null,0,{"$f":"IF(P110=0,\" \",_xlfn.RANK.EQ(P110,$P$7:$P$206,0)+ COUNTIF(P$7:P110, P110) - 1)","v":" "}]
[null,null,null,null,null,null,null,null,null,null,null,null,null,null,null,0,{"$f":"IF(P111=0,\" \",_xlfn.RANK.EQ(P111,$P$7:$P$206,0)+ COUNTIF(P$7:P111, P111) - 1)","v":" "}]
[null,null,null,null,null,null,null,null,null,null,null,null,null,null,null,0,{"$f":"IF(P112=0,\" \",_xlfn.RANK.EQ(P112,$P$7:$P$206,0)+ COUNTIF(P$7:P112, P112) - 1)","v":" "}]
[null,null,null,null,null,null,null,null,null,null,null,null,null,null,null,0,{"$f":"IF(P113=0,\" \",_xlfn.RANK.EQ(P113,$P$7:$P$206,0)+ COUNTIF(P$7:P113, P113) - 1)","v":" "}]
[null,null,null,null,null,null,null,null,null,null,null,null,null,null,null,0,{"$f":"IF(P114=0,\" \",_xlfn.RANK.EQ(P114,$P$7:$P$206,0)+ COUNTIF(P$7:P114, P114) - 1)","v":" "}]
[null,null,null,null,null,null,null,null,null,null,null,null,null,null,null,0,{"$f":"IF(P115=0,\" \",_xlfn.RANK.EQ(P115,$P$7:$P$206,0)+ COUNTIF(P$7:P115, P115) - 1)","v":" "}]
[null,null,null,null,null,null,null,null,null,null,null,null,null,null,null,0,{"$f":"IF(P116=0,\" \",_xlfn.RANK.EQ(P116,$P$7:$P$206,0)+ COUNTIF(P$7:P116, P116) - 1)","v":" "}]
[null,null,null,null,null,null,null,null,null,null,null,null,null,null,null,0,{"$f":"IF(P117=0,\" \",_xlfn.RANK.EQ(P117,$P$7:$P$206,0)+ COUNTIF(P$7:P117, P117) - 1)","v":" "}]
[null,null,null,null,null,null,null,null,null,null,null,null,null,null,null,0,{"$f":"IF(P118=0,\" \",_xlfn.RANK.EQ(P118,$P$7:$P$206,0)+ COUNTIF(P$7:P118, P118) - 1)","v":" "}]
[null,null,null,null,null,null,null,null,null,null,null,null,null,null,null,0,{"$f":"IF(P119=0,\" \",_xlfn.RANK.EQ(P119,$P$7:$P$206,0)+ COUNTIF(P$7:P119, P119) - 1)","v":" "}]
[null,null,null,null,null,null,null,null,null,null,null,null,null,null,null,0,{"$f":"IF(P120=0,\" \",_xlfn.RANK.EQ(P120,$P$7:$P$206,0)+ COUNTIF(P$7:P120, P120) - 1)","v":" "}]
[null,null,null,null,null,null,null,null,null,null,null,null,null,null,null,0,{"$f":"IF(P121=0,\" \",_xlfn.RANK.EQ(P121,$P$7:$P$206,0)+ COUNTIF(P$7:P121, P121) - 1)","v":" "}]
[null,null,null,null,null,null,null,null,null,null,null,null,null,null,null,0,{"$f":"IF(P122=0,\" \",_xlfn.RANK.EQ(P122,$P$7:$P$206,0)+ COUNTIF(P$7:P122, P122) - 1)","v":" "}]
[null,null,null,null,null,null,null,null,null,null,null,null,null,null,null,0,{"$f":"IF(P123=0,\" \",_xlfn.RANK.EQ(P123,$P$7:$P$206,0)+ COUNTIF(P$7:P123, P123) - 1)","v":" "}]
[null,null,null,null,null,null,null,null,null,null,null,null,null,null,null,0,{"$f":"IF(P124=0,\" \",_xlfn.RANK.EQ(P124,$P$7:$P$206,0)+ COUNTIF(P$7:P124, P124) - 1)","v":" "}]
[null,null,null,null,null,null,null,null,null,null,null,null,null,null,null,0,{"$f":"IF(P125=0,\" \",_xlfn.RANK.EQ(P125,$P$7:$P$206,0)+ COUNTIF(P$7:P125, P125) - 1)","v":" "}]
[null,null,null,null,null,null,null,null,null,null,null,null,null,null,null,0,{"$f":"IF(P126=0,\" \",_xlfn.RANK.EQ(P126,$P$7:$P$206,0)+ COUNTIF(P$7:P126, P126) - 1)","v":" "}]
[null,null,null,null,null,null,null,null,null,null,null,null,null,null,null,0,{"$f":"IF(P127=0,\" \",_xlfn.RANK.EQ(P127,$P$7:$P$206,0)+ COUNTIF(P$7:P127, P127) - 1)","v":" "}]
[null,null,null,null,null,null,null,null,null,null,null,null,null,null,null,0,{"$f":"IF(P128=0,\" \",_xlfn.RANK.EQ(P128,$P$7:$P$206,0)+ COUNTIF(P$7:P128, P128) - 1)","v":" "}]
[null,null,null,null,null,null,null,null,null,null,null,null,null,null,null,0,{"$f":"IF(P129=0,\" \",_xlfn.RANK.EQ(P129,$P$7:$P$206,0)+ COUNTIF(P$7:P129, P129) - 1)","v":" "}]
[null,null,null,null,null,null,null,null,null,null,null,null,null,null,null,0,{"$f":"IF(P130=0,\" \",_xlfn.RANK.EQ(P130,$P$7:$P$206,0)+ COUNTIF(P$7:P130, P130) - 1)","v":" "}]
[null,null,null,null,null,null,null,null,null,null,null,null,null,null,null,0,{"$f":"IF(P131=0,\" \",_xlfn.RANK.EQ(P131,$P$7:$P$206,0)+ COUNTIF(P$7:P131, P131) - 1)","v":" "}]
[null,null,null,null,null,null,null,null,null,null,null,null,null,null,null,0,{"$f":"IF(P132=0,\" \",_xlfn.RANK.EQ(P132,$P$7:$P$206,0)+ COUNTIF(P$7:P132, P132) - 1)","v":" "}]
[null,null,null,null,null,null,null,null,null,null,null,null,null,null,null,0,{"$f":"IF(P133=0,\" \",_xlfn.RANK.EQ(P133,$P$7:$P$206,0)+ COUNTIF(P$7:P133, P133) - 1)","v":" "}]
[null,null,null,null,null,null,null,null,null,null,null,null,null,null,null,0,{"$f":"IF(P134=0,\" \",_xlfn.RANK.EQ(P134,$P$7:$P$206,0)+ COUNTIF(P$7:P134, P134) - 1)","v":" "}]
[null,null,null,null,null,null,null,null,null,null,null,null,null,null,null,{"$f":"SUM(I135:J135)","v":0},{"$f":"IF(P135=0,\" \",_xlfn.RANK.EQ(P135,$P$7:$P$206,0)+ COUNTIF(P$7:P135, P135) - 1)","v":" "}]
[null,null,null,null,null,null,null,null,null,null,null,null,null,null,null,0,{"$f":"IF(P136=0,\" \",_xlfn.RANK.EQ(P136,$P$7:$P$206,0)+ COUNTIF(P$7:P136, P136) - 1)","v":" "}]
[null,null,null,null,null,null,null,null,null,null,null,null,null,null,null,0,{"$f":"IF(P137=0,\" \",_xlfn.RANK.EQ(P137,$P$7:$P$206,0)+ COUNTIF(P$7:P137, P137) - 1)","v":" "}]
[null,null,null,null,null,null,null,null,null,null,null,null,null,null,null,0,{"$f":"IF(P138=0,\" \",_xlfn.RANK.EQ(P138,$P$7:$P$206,0)+ COUNTIF(P$7:P138, P138) - 1)","v":" "}]
[null,null,null,null,null,null,null,null,null,null,null,null,null,null,null,0,{"$f":"IF(P139=0,\" \",_xlfn.RANK.EQ(P139,$P$7:$P$206,0)+ COUNTIF(P$7:P139, P139) - 1)","v":" "}]
[null,null,null,null,null,null,null,null,null,null,null,null,null,null,null,0,{"$f":"IF(P140=0,\" \",_xlfn.RANK.EQ(P140,$P$7:$P$206,0)+ COUNTIF(P$7:P140, P140) - 1)","v":" "}]
[null,null,null,null,null,null,null,null,null,null,null,null,null,null,null,0,{"$f":"IF(P141=0,\" \",_xlfn.RANK.EQ(P141,$P$7:$P$206,0)+ COUNTIF(P$7:P141, P141) - 1)","v":" "}]
[null,null,null,null,null,null,null,null,null,null,null,null,null,null,null,0,{"$f":"IF(P142=0,\" \",_xlfn.RANK.EQ(P142,$P$7:$P$206,0)+ COUNTIF(P$7:P142, P142) - 1)","v":" "}]
[null,null,null,null,null,null,null,null,null,null,null,null,null,null,null,0,{"$f":"IF(P143=0,\" \",_xlfn.RANK.EQ(P143,$P$7:$P$206,0)+ COUNTIF(P$7:P143, P143) - 1)","v":" "}]
[null,null,null,null,null,null,null,null,null,null,null,null,null,null,null,0,{"$f":"IF(P144=0,\" \",_xlfn.RANK.EQ(P144,$P$7:$P$206,0)+ COUNTIF(P$7:P144, P144) - 1)","v":" "}]
[null,null,null,null,null,null,null,null,null,null,null,null,null,null,null,0,{"$f":"IF(P145=0,\" \",_xlfn.RANK.EQ(P145,$P$7:$P$206,0)+ COUNTIF(P$7:P145, P145) - 1)","v":" "}]
[null,null,null,null,null,null,null,null,null,null,null,null,null,null,null,0,{"$f":"IF(P146=0,\" \",_xlfn.RANK.EQ(P146,$P$7:$P$206,0)+ COUNTIF(P$7:P146, P146) - 1)","v":" "}]
[null,null,null,null,null,null,null,null,null,null,null,null,null,null,null,0,{"$f":"IF(P147=0,\" \",_xlfn.RANK.EQ(P147,$P$7:$P$206,0)+ COUNTIF(P$7:P147, P147) - 1)","v":" "}]
[null,null,null,null,null,null,null,null,null,null,null,null,null,null,null,0,{"$f":"IF(P148=0,\" \",_xlfn.RANK.EQ(P148,$P$7:$P$206,0)+ COUNTIF(P$7:P148, P148) - 1)","v":" "}]
[null,null,null,null,null,null,null,null,null,null,null,null,null,null,null,0,{"$f":"IF(P149=0,\" \",_xlfn.RANK.EQ(P149,$P$7:$P$206,0)+ COUNTIF(P$7:P149, P149) - 1)","v":" "}]
[null,null,null,null,null,null,null,null,null,null,null,null,null,null,null,0,{"$f":"IF(P150=0,\" \",_xlfn.RANK.EQ(P150,$P$7:$P$206,0)+ COUNTIF(P$7:P150, P150) - 1)","v":" "}]
[null,null,null,null,null,null,null,null,null,null,null,null,null,null,null,0,{"$f":"IF(P151=0,\" \",_xlfn.RANK.EQ(P151,$P$7:$P$206,0)+ COUNTIF(P$7:P151, P151) - 1)","v":" "}]
[null,null,null,null,null,null,null,null,null,null,null,null,null,null,null,0,{"$f":"IF(P152=0,\" \",_xlfn.RANK.EQ(P152,$P$7:$P$206,0)+ COUNTIF(P$7:P152, P152) - 1)","v":" "}]
[null,null,null,null,null,null,null,null,null,null,null,null,null,null,null,0,{"$f":"IF(P153=0,\" \",_xlfn.RANK.EQ(P153,$P$7:$P$206,0)+ COUNTIF(P$7:P153, P153) - 1)","v":" "}]
[null,null,null,null,null,null,null,null,null,null,null,null,null,null,null,0,{"$f":"IF(P154=0,\" \",_xlfn.RANK.EQ(P154,$P$7:$P$206,0)+ COUNTIF(P$7:P154, P154) - 1)","v":" "}]
[null,null,null,null,null,null,null,null,null,null,null,null,null,null,null,0,{"$f":"IF(P155=0,\" \",_xlfn.RANK.EQ(P155,$P$7:$P$206,0)+ COUNTIF(P$7:P155, P155) - 1)","v":" "}]
[null,null,null,null,null,null,null,null,null,null,null,null,null,null,null,0,{"$f":"IF(P156=0,\" \",_xlfn.RANK.EQ(P156,$P$7:$P$206,0)+ COUNTIF(P$7:P156, P156) - 1)","v":" "}]
[null,null,null,null,null,null,null,null,null,null,null,null,null,null,null,0,{"$f":"IF(P157=0,\" \",_xlfn.RANK.EQ(P157,$P$7:$P$206,0)+ COUNTIF(P$7:P157, P157) - 1)","v":" "}]
[null,null,null,null,null,null,null,null,null,null,null,null,null,null,null,0,{"$f":"IF(P158=0,\" \",_xlfn.RANK.EQ(P158,$P$7:$P$206,0)+ COUNTIF(P$7:P158, P158) - 1)","v":" "}]
[null,null,null,null,null,null,null,null,null,null,null,null,null,null,null,0,{"$f":"IF(P159=0,\" \",_xlfn.RANK.EQ(P159,$P$7:$P$206,0)+ COUNTIF(P$7:P159, P159) - 1)","v":" "}]
[null,null,null,null,null,null,null,null,null,null,null,null,null,null,null,0,{"$f":"IF(P160=0,\" \",_xlfn.RANK.EQ(P160,$P$7:$P$206,0)+ COUNTIF(P$7:P160, P160) - 1)","v":" "}]
[null,null,null,null,null,null,null,null,null,null,null,null,null,null,null,0,{"$f":"IF(P161=0,\" \",_xlfn.RANK.EQ(P161,$P$7:$P$206,0)+ COUNTIF(P$7:P161, P161) - 1)","v":" "}]
[null,null,null,null,null,null,null,null,null,null,null,null,null,null,null,0,{"$f":"IF(P162=0,\" \",_xlfn.RANK.EQ(P162,$P$7:$P$206,0)+ COUNTIF(P$7:P162, P162) - 1)","v":" "}]
[null,null,null,null,null,null,null,null,null,null,null,null,null,null,null,0,{"$f":"IF(P163=0,\" \",_xlfn.RANK.EQ(P163,$P$7:$P$206,0)+ COUNTIF(P$7:P163, P163) - 1)","v":" "}]
[null,null,null,null,null,null,null,null,null,null,null,null,null,null,null,0,{"$f":"IF(P164=0,\" \",_xlfn.RANK.EQ(P164,$P$7:$P$206,0)+ COUNTIF(P$7:P164, P164) - 1)","v":" "}]
[null,null,null,null,null,null,null,null,null,null,null,null,null,null,null,0,{"$f":"IF(P165=0,\" \",_xlfn.RANK.EQ(P165,$P$7:$P$206,0)+ COUNTIF(P$7:P165, P165) - 1)","v":" "}]
[null,null,null,null,null,null,null,null,null,null,null,null,null,null,null,0,{"$f":"IF(P166=0,\" \",_xlfn.RANK.EQ(P166,$P$7:$P$206,0)+ COUNTIF(P$7:P166, P166) - 1)","v":" "}]
[null,null,null,null,null,null,null,null,null,null,null,null,null,null,null,{"$f":"SUM(I167:J167)","v":0},{"$f":"IF(P167=0,\" \",_xlfn.RANK.EQ(P167,$P$7:$P$206,0)+ COUNTIF(P$7:P167, P167) - 1)","v":" "}]
[null,null,null,null,null,null,null,null,null,null,null,null,null,null,null,0,{"$f":"IF(P168=0,\" \",_xlfn.RANK.EQ(P168,$P$7:$P$206,0)+ COUNTIF(P$7:P168, P168) - 1)","v":" "}]
[null,null,null,null,null,null,null,null,null,null,null,null,null,null,null,0,{"$f":"IF(P169=0,\" \",_xlfn.RANK.EQ(P169,$P$7:$P$206,0)+ COUNTIF(P$7:P169, P169) - 1)","v":" "}]
[null,null,null,null,null,null,null,null,null,null,null,null,null,null,null,0,{"$f":"IF(P170=0,\" \",_xlfn.RANK.EQ(P170,$P$7:$P$206,0)+ COUNTIF(P$7:P170, P170) - 1)","v":" "}]
[null,null,null,null,null,null,null,null,null,null,null,null,null,null,null,0,{"$f":"IF(P171=0,\" \",_xlfn.RANK.EQ(P171,$P$7:$P$206,0)+ COUNTIF(P$7:P171, P171) - 1)","v":" "}]
[null,null,null,null,null,null,null,null,null,null,null,null,null,null,null,0,{"$f":"IF(P172=0,\" \",_xlfn.RANK.EQ(P172,$P$7:$P$206,0)+ COUNTIF(P$7:P172, P172) - 1)","v":" "}]
[null,null,null,null,null,null,null,null,null,null,null,null,null,null,null,0,{"$f":"IF(P173=0,\" \",_xlfn.RANK.EQ(P173,$P$7:$P$206,0)+ COUNTIF(P$7:P173, P173) - 1)","v":" "}]
[null,null,null,null,null,null,null,null,null,null,null,null,null,null,null,0,{"$f":"IF(P174=0,\" \",_xlfn.RANK.EQ(P174,$P$7:$P$206,0)+ COUNTIF(P$7:P174, P174) - 1)","v":" "}]
[null,null,null,null,null,null,null,null,null,null,null,null,null,null,null,0,{"$f":"IF(P175=0,\" \",_xlfn.RANK.EQ(P175,$P$7:$P$206,0)+ COUNTIF(P$7:P175, P175) - 1)","v":" "}]
[null,null,null,null,null,null,null,null,null,null,null,null,null,null,null,0,{"$f":"IF(P176=0,\" \",_xlfn.RANK.EQ(P176,$P$7:$P$206,0)+ COUNTIF(P$7:P176, P176) - 1)","v":" "}]
[null,null,null,null,null,null,null,null,null,null,null,null,null,null,null,0,{"$f":"IF(P177=0,\" \",_xlfn.RANK.EQ(P177,$P$7:$P$206,0)+ COUNTIF(P$7:P177, P177) - 1)","v":" "}]
[null,null,null,null,null,null,null,null,null,null,null,null,null,null,null,0,{"$f":"IF(P178=0,\" \",_xlfn.RANK.EQ(P178,$P$7:$P$206,0)+ COUNTIF(P$7:P178, P178) - 1)","v":" "}]
[null,null,null,null,null,null,null,null,null,null,null,null,null,null,null,0,{"$f":"IF(P179=0,\" \",_xlfn.RANK.EQ(P179,$P$7:$P$206,0)+ COUNTIF(P$7:P179, P179) - 1)","v":" "}]
[null,null,null,null,null,null,null,null,null,null,null,null,null,null,null,0,{"$f":"IF(P180=0,\" \",_xlfn.RANK.EQ(P180,$P$7:$P$206,0)+ COUNTIF(P$7:P180, P180) - 1)","v":" "}]
[null,null,null,null,null,null,null,null,null,null,null,null,null,null,null,0,{"$f":"IF(P181=0,\" \",_xlfn.RANK.EQ(P181,$P$7:$P$206,0)+ COUNTIF(P$7:P181, P181) - 1)","v":" "}]
[null,null,null,null,null,null,null,null,null,null,null,null,null,null,null,0,{"$f":"IF(P182=0,\" \",_xlfn.RANK.EQ(P182,$P$7:$P$206,0)+ COUNTIF(P$7:P182, P182) - 1)","v":" "}]
[null,null,null,null,null,null,null,null,null,null,null,null,null,null,null,0,{"$f":"IF(P183=0,\" \",_xlfn.RANK.EQ(P183,$P$7:$P$206,0)+ COUNTIF(P$7:P183, P183) - 1)","v":" "}]
[null,null,null,null,null,null,null,null,null,null,null,null,null,null,null,0,{"$f":"IF(P184=0,\" \",_xlfn.RANK.EQ(P184,$P$7:$P$206,0)+ COUNTIF(P$7:P184, P184) - 1)","v":" "}]
[null,null,null,null,null,null,null,null,null,null,null,null,null,null,null,0,{"$f":"IF(P185=0,\" \",_xlfn.RANK.EQ(P185,$P$7:$P$206,0)+ COUNTIF(P$7:P185, P185) - 1)","v":" "}]
[null,null,null,null,null,null,null,null,null,null,null,null,null,null,null,0,{"$f":"IF(P186=0,\" \",_xlfn.RANK.EQ(P186,$P$7:$P$206,0)+ COUNTIF(P$7:P186, P186) - 1)","v":" "}]
[null,null,null,null,null,null,null,null,null,null,null,null,null,null,null,0,{"$f":"IF(P187=0,\" \",_xlfn.RANK.EQ(P187,$P$7:$P$206,0)+ COUNTIF(P$7:P187, P187) - 1)","v":" "}]
[null,null,null,null,null,null,null,null,null,null,null,null,null,null,null,0,{"$f":"IF(P188=0,\" \",_xlfn.RANK.EQ(P188,$P$7:$P$206,0)+ COUNTIF(P$7:P188, P188) - 1)","v":" "}]
[null,null,null,null,null,null,null,null,null,null,null,null,null,null,null,0,{"$f":"IF(P189=0,\" \",_xlfn.RANK.EQ(P189,$P$7:$P$206,0)+ COUNTIF(P$7:P189, P189) - 1)","v":" "}]
[null,null,null,null,null,null,null,null,null,null,null,null,null,null,null,0,{"$f":"IF(P190=0,\" \",_xlfn.RANK.EQ(P190,$P$7:$P$206,0)+ COUNTIF(P$7:P190, P190) - 1)","v":" "}]
[null,null,null,null,null,null,null,null,null,null,null,null,null,null,null,0,{"$f":"IF(P191=0,\" \",_xlfn.RANK.EQ(P191,$P$7:$P$206,0)+ COUNTIF(P$7:P191, P191) - 1)","v":" "}]
[null,null,null,null,null,null,null,null,null,null,null,null,null,null,null,0,{"$f":"IF(P192=0,\" \",_xlfn.RANK.EQ(P192,$P$7:$P$206,0)+ COUNTIF(P$7:P192, P192) - 1)","v":" "}]
[null,null,null,null,null,null,null,null,null,null,null,null,null,null,null,0,{"$f":"IF(P193=0,\" \",_xlfn.RANK.EQ(P193,$P$7:$P$206,0)+ COUNTIF(P$7:P193, P193) - 1)","v":" "}]
[null,null,null,null,null,null,null,null,null,null,null,null,null,null,null,0,{"$f":"IF(P194=0,\" \",_xlfn.RANK.EQ(P194,$P$7:$P$206,0)+ COUNTIF(P$7:P194, P194) - 1)","v":" "}]
[null,null,null,null,null,null,null,null,null,null,null,null,null,null,null,0,{"$f":"IF(P195=0,\" \",_xlfn.RANK.EQ(P195,$P$7:$P$206,0)+ COUNTIF(P$7:P195, P195) - 1)","v":" "}]
[null,null,null,null,null,null,null,null,null,null,null,null,null,null,null,0,{"$f":"IF(P196=0,\" \",_xlfn.RANK.EQ(P196,$P$7:$P$206,0)+ COUNTIF(P$7:P196, P196) - 1)","v":" "}]
[null,null,null,null,null,null,null,null,null,null,null,null,null,null,null,0,{"$f":"IF(P197=0,\" \",_xlfn.RANK.EQ(P197,$P$7:$P$206,0)+ COUNTIF(P$7:P197, P197) - 1)","v":" "}]
[null,null,null,null,null,null,null,null,null,null,null,null,null,null,null,0,{"$f":"IF(P198=0,\" \",_xlfn.RANK.EQ(P198,$P$7:$P$206,0)+ COUNTIF(P$7:P198, P198) - 1)","v":" "}]
[null,null,null,null,null,null,null,null,null,null,null,null,null,null,null,{"$f":"SUM(I199:J199)","v":0},{"$f":"IF(P199=0,\" \",_xlfn.RANK.EQ(P199,$P$7:$P$206,0)+ COUNTIF(P$7:P199, P199) - 1)","v":" "}]
[null,null,null,null,null,null,null,null,null,null,null,null,null,null,null,0,{"$f":"IF(P200=0,\" \",_xlfn.RANK.EQ(P200,$P$7:$P$206,0)+ COUNTIF(P$7:P200, P200) - 1)","v":" "}]
[null,null,null,null,null,null,null,null,null,null,null,null,null,null,null,0,{"$f":"IF(P201=0,\" \",_xlfn.RANK.EQ(P201,$P$7:$P$206,0)+ COUNTIF(P$7:P201, P201) - 1)","v":" "}]
[null,null,null,null,null,null,null,null,null,null,null,null,null,null,null,0,{"$f":"IF(P202=0,\" \",_xlfn.RANK.EQ(P202,$P$7:$P$206,0)+ COUNTIF(P$7:P202, P202) - 1)","v":" "}]
[null,null,null,null,null,null,null,null,null,null,null,null,null,null,null,0,{"$f":"IF(P203=0,\" \",_xlfn.RANK.EQ(P203,$P$7:$P$206,0)+ COUNTIF(P$7:P203, P203) - 1)","v":" "}]
[null,null,null,null,null,null,null,null,null,null,null,null,null,null,null,0,{"$f":"IF(P204=0,\" \",_xlfn.RANK.EQ(P204,$P$7:$P$206,0)+ COUNTIF(P$7:P204, P204) - 1)","v":" "}]
[null,null,null,null,null,null,null,null,null,null,null,null,null,null,null,0,{"$f":"IF(P205=0,\" \",_xlfn.RANK.EQ(P205,$P$7:$P$206,0)+ COUNTIF(P$7:P205, P205) - 1)","v":" "}]
[null,null,null,null,null,null,null,null,null,null,null,null,null,null,null,0,{"$f":"IF(P206=0,\" \",_xlfn.RANK.EQ(P206,$P$7:$P$206,0)+ COUNTIF(P$7:P206, P206) - 1)","v":" "}]

{"sheet":"Kategorie 2","index":3,"n_rows":206,"n_cols":19,"rows_kept":206,"cut":false,"hidden":false,"merged":[[0,0,0,17],[1,0,1,17],[2,0,2,17],[3,0,3,17],[5,16,5,17],[4,8,4,9]]}
[]
[{"$f":"Parameter!C7","v":"OSPSV"}]
[{"$f":"Parameter!C9","v":"Jugendtag 2022"}]
[{"$f":"Parameter!C13","v":"Kat. 2  Jugend liegend frei U15 / U17"}]
[null,null,null,null,null,null,null,null,"liegend"]
["Nr","Abl.","Sch.-Nr","Name","Vorname","JG","Kat","Sektion","P1","P2","P3","P4","P5","P6","IZ","Total","Rang",null,"KK"]
[3,null,null,"Ammann","Pirmin",2007,2,"Neckertal",95,97,null,null,null,null,7,{"$f":"SUM(I7:J7)","v":192},{"$f":"IF(P7=0,\" \",_xlfn.RANK.EQ(P7,$P$7:$P$206,0)+ COUNTIF(P$7:P7, P7) - 1)","v":1},{"$f":"IF(Q7=2,\"Silber\",\"\")","v":""},"G"]
[52,null,null,"Kressel ","Niclas",2006,2,"Sargans",96,96,null,null,null,null,2,192,{"$f":"IF(P8=0,\" \",_xlfn.RANK.EQ(P8,$P$7:$P$206,0)+ COUNTIF(P$7:P8, P8) - 1)","v":2},{"$f":"IF(Q8=1,\"Gold\",\"\")","v":""},"S"]
[51,null,null,"Krähemann","Levano",2006,2,"Wil",94,95,null,null,null,null,7,189,{"$f":"IF(P9=0,\" \",_xlfn.RANK.EQ(P9,$P$7:$P$206,0)+ COUNTIF(P$7:P9, P9) - 1)","v":3},null,"B"]
[105,null,null,"Sprenger","Sven",2008,2,"Altstätten",95,94,null,null,null,null,5,189,{"$f":"IF(P10=0,\" \",_xlfn.RANK.EQ(P10,$P$7:$P$206,0)+ COUNTIF(P$7:P10, P10) - 1)","v":4},{"$f":"IF(Q10=3,\"Bronze\",\"\")","v":""},8]
[58,null,null,"Lengyel ","Zsombor",2006,2,"Sargans",94,94,null,null,null,null,6,188,{"$f":"IF(P11=0,\" \",_xlfn.RANK.EQ(P11,$P$7:$P$206,0)+ COUNTIF(P$7:P11, P11) - 1)","v":5},null,8]
[85,null,null,"Rohner","Ciril",2006,2,"Kirchberg",94,93,null,null,null,null,5,187,{"$f":"IF(P12=0,\" \",_xlfn.RANK.EQ(P12,$P$7:$P$206,0)+ COUNTIF(P$7:P12, P12) - 1)","v":6},null,8]
[8,null,null,"Beerle","Nina",2007,2,"Goldach",95,92,null,null,null,null,3,187,{"$f":"IF(P13=0,\" \",_xlfn.RANK.EQ(P13,$P$7:$P$206,0)+ COUNTIF(P$7:P13, P13) - 1)","v":7},null,8]
[131,null,null,"Wiederkehr","Yari",2006,2,"Kirchberg",92,94,null,null,null,null,5,186,{"$f":"IF(P14=0,\" \",_xlfn.RANK.EQ(P14,$P$7:$P$206,0)+ COUNTIF(P$7:P14, P14) - 1)","v":8},null,8]
[114,null,null,"Strübi ","Manuel",2008,2,"Wildhaus",92,94,null,null,null,null,4,186,{"$f":"IF(P15=0,\" \",_xlfn.RANK.EQ(P15,$P$7:$P$206,0)+ COUNTIF(P$7:P15, P15) - 1)","v":9},null,8]
[61,null,null,"Lüber","Lara",2008,2,"Kirchberg",93,92,null,null,null,null,3,185,{"$f":"IF(P16=0,\" \",_xlfn.RANK.EQ(P16,$P$7:$P$206,0)+ COUNTIF(P$7:P16, P16) - 1)","v":10},null,8]
[65,null,null,"Manser","Jonas",2006,2,"Weissbad",93,91,null,null,null,null,5,184,{"$f":"IF(P17=0,\" \",_xlfn.RANK.EQ(P17,$P$7:$P$206,0)+ COUNTIF(P$7:P17, P17) - 1)","v":11},null,8]
[83,null,null,"Pfützner ","Philipp",2006,2,"Sargans",92,92,null,null,null,null,4,184,{"$f":"IF(P18=0,\" \",_xlfn.RANK.EQ(P18,$P$7:$P$206,0)+ COUNTIF(P$7:P18, P18) - 1)","v":12},null,8]
[54,null,null,"Künzli","Ian",2006,2,"Dicken Ebnat-Kappel",94,90,null,null,null,null,4,184,{"$f":"IF(P19=0,\" \",_xlfn.RANK.EQ(P19,$P$7:$P$206,0)+ COUNTIF(P$7:P19, P19) - 1)","v":13},null,8]
[128,null,null,"Weitbrecht ","Talitha",2009,2,"Sargans",91,93,null,null,null,null,3,184,{"$f":"IF(P20=0,\" \",_xlfn.RANK.EQ(P20,$P$7:$P$206,0)+ COUNTIF(P$7:P20, P20) - 1)","v":14},null,8]
[33,null,null,"Geisser","Roman",2006,2,"Dicken Ebnat-Kappel",93,90,null,null,null,null,5,183,{"$f":"IF(P21=0,\" \",_xlfn.RANK.EQ(P21,$P$7:$P$206,0)+ COUNTIF(P$7:P21, P21) - 1)","v":15},null,5]
[96,null,null,"Schönenberger","Zoé",2007,2,"Sitterdorf",92,91,null,null,null,null,4,183,{"$f":"IF(P22=0,\" \",_xlfn.RANK.EQ(P22,$P$7:$P$206,0)+ COUNTIF(P$7:P22, P22) - 1)","v":16},null,5]
[67,null,null,"Marciello","Chiara",2008,2,"Weinfelden",91,92,null,null,null,null,1,183,{"$f":"IF(P23=0,\" \",_xlfn.RANK.EQ(P23,$P$7:$P$206,0)+ COUNTIF(P$7:P23, P23) - 1)","v":17},null,5]
[76,null,null,"Munskgaard ","William",2007,2,"Sargans",93,89,null,null,null,null,6,182,{"$f":"IF(P24=0,\" \",_xlfn.RANK.EQ(P24,$P$7:$P$206,0)+ COUNTIF(P$7:P24, P24) - 1)","v":18},null,5]
[74,null,null,"Moser","Jan",2007,2,"Wildhaus",91,91,null,null,null,null,3,182,{"$f":"IF(P25=0,\" \",_xlfn.RANK.EQ(P25,$P$7:$P$206,0)+ COUNTIF(P$7:P25, P25) - 1)","v":19},null,5]
[29,null,null,"Fromm","Valentin",2008,2,"Sargans",94,88,null,null,null,null,3,182,{"$f":"IF(P26=0,\" \",_xlfn.RANK.EQ(P26,$P$7:$P$206,0)+ COUNTIF(P$7:P26, P26) - 1)","v":20},null,5]
[21,null,null,"Correia","Sandro",2006,2,"Schönholzerswilen",90,90,null,null,null,null,1,180,{"$f":"IF(P27=0,\" \",_xlfn.RANK.EQ(P27,$P$7:$P$206,0)+ COUNTIF(P$7:P27, P27) - 1)","v":21},null,5]
[17,null,null,"Broger","Simon",2006,2,"Weissbad",87,90,null,null,null,null,4,177,{"$f":"IF(P28=0,\" \",_xlfn.RANK.EQ(P28,$P$7:$P$206,0)+ COUNTIF(P$7:P28, P28) - 1)","v":22},null,5]
[82,null,null,"Patt","Andrea",2006,2,"St.Gallen",89,88,null,null,null,null,4,177,{"$f":"IF(P29=0,\" \",_xlfn.RANK.EQ(P29,$P$7:$P$206,0)+ COUNTIF(P$7:P29, P29) - 1)","v":23},null,5]
[6,null,null,"Balgar","Samuel",2009,2,"Goldach",88,89,null,null,null,null,3,177,{"$f":"IF(P30=0,\" \",_xlfn.RANK.EQ(P30,$P$7:$P$206,0)+ COUNTIF(P$7:P30, P30) - 1)","v":24},null,5]
[93,null,null,"Schläpfer ","Michael",2009,2,"Weinfelden",90,86,null,null,null,null,3,176,{"$f":"IF(P31=0,\" \",_xlfn.RANK.EQ(P31,$P$7:$P$206,0)+ COUNTIF(P$7:P31, P31) - 1)","v":25}]
[134,null,null,"Ziltener","Sina",2007,2,"Goldach",86,89,null,null,null,null,1,175,{"$f":"IF(P32=0,\" \",_xlfn.RANK.EQ(P32,$P$7:$P$206,0)+ COUNTIF(P$7:P32, P32) - 1)","v":26}]
[87,null,null,"Sawall","Fabienne",2007,2,"Grabs",88,86,null,null,null,null,5,174,{"$f":"IF(P33=0,\" \",_xlfn.RANK.EQ(P33,$P$7:$P$206,0)+ COUNTIF(P$7:P33, P33) - 1)","v":27}]
[23,null,null,"Dornbierer","Timon",2007,2,"Goldach",87,87,null,null,null,null,2,174,{"$f":"IF(P34=0,\" \",_xlfn.RANK.EQ(P34,$P$7:$P$206,0)+ COUNTIF(P$7:P34, P34) - 1)","v":28}]
[79,null,null,"Oettli ","Philipp",2006,2,"Weinfelden",86,88,null,null,null,null,1,174,{"$f":"IF(P35=0,\" \",_xlfn.RANK.EQ(P35,$P$7:$P$206,0)+ COUNTIF(P$7:P35, P35) - 1)","v":29}]
[37,null,null,"Good ","Cedric",2009,2,"Sargans",89,85,null,null,null,null,1,174,{"$f":"IF(P36=0,\" \",_xlfn.RANK.EQ(P36,$P$7:$P$206,0)+ COUNTIF(P$7:P36, P36) - 1)","v":30}]
[136,null,null,"Zweifel","Noel",2010,2,"Kirchberg",85,87,null,null,null,null,4,172,{"$f":"IF(P37=0,\" \",_xlfn.RANK.EQ(P37,$P$7:$P$206,0)+ COUNTIF(P$7:P37, P37) - 1)","v":31}]
[84,null,null,"Rick","Colin",2009,2,"Goldach",95,77,null,null,null,null,2,172,{"$f":"IF(P38=0,\" \",_xlfn.RANK.EQ(P38,$P$7:$P$206,0)+ COUNTIF(P$7:P38, P38) - 1)","v":32}]
[69,null,null,"Matanovic","Josipa",2007,2,"Grabs",85,85,null,null,null,null,1,{"$f":"SUM(I39:J39)","v":170},{"$f":"IF(P39=0,\" \",_xlfn.RANK.EQ(P39,$P$7:$P$206,0)+ COUNTIF(P$7:P39, P39) - 1)","v":33}]
[56,null,null,"Kutter","Joel",2010,2,"Dettighofen",83,87,null,null,null,null,0,170,{"$f":"IF(P40=0,\" \",_xlfn.RANK.EQ(P40,$P$7:$P$206,0)+ COUNTIF(P$7:P40, P40) - 1)","v":34}]
[55,null,null,"Küttel","Patrick",2006,2,"Schönholzerswilen",82,82,null,null,null,null,3,164,{"$f":"IF(P41=0,\" \",_xlfn.RANK.EQ(P41,$P$7:$P$206,0)+ COUNTIF(P$7:P41, P41) - 1)","v":35}]
[24,null,null,"Eggenberger","Raffael",2007,2,"Grabs",80,84,null,null,null,null,2,164,{"$f":"IF(P42=0,\" \",_xlfn.RANK.EQ(P42,$P$7:$P$206,0)+ COUNTIF(P$7:P42, P42) - 1)","v":36}]
[102,null,null,"Segmüller","Arno",2006,2,"Altstätten",77,87,null,null,null,null,0,164,{"$f":"IF(P43=0,\" \",_xlfn.RANK.EQ(P43,$P$7:$P$206,0)+ COUNTIF(P$7:P43, P43) - 1)","v":37}]
[113,null,null,"Straub","Patrick",2009,2,"Dettighofen",79,84,null,null,null,null,1,163,{"$f":"IF(P44=0,\" \",_xlfn.RANK.EQ(P44,$P$7:$P$206,0)+ COUNTIF(P$7:P44, P44) - 1)","v":38}]
[120,null,null,"Taranto","Arya",2008,2,"Wil",81,82,null,null,null,null,1,163,{"$f":"IF(P45=0,\" \",_xlfn.RANK.EQ(P45,$P$7:$P$206,0)+ COUNTIF(P$7:P45, P45) - 1)","v":39}]
[112,null,null,"Stieger","Ken",2006,2,"Weinfelden",82,78,null,null,null,null,1,160,{"$f":"IF(P46=0,\" \",_xlfn.RANK.EQ(P46,$P$7:$P$206,0)+ COUNTIF(P$7:P46, P46) - 1)","v":40}]
[47,null,null,"Kalbitz","Andrin",2008,2,"Weinfelden",81,78,null,null,null,null,0,159,{"$f":"IF(P47=0,\" \",_xlfn.RANK.EQ(P47,$P$7:$P$206,0)+ COUNTIF(P$7:P47, P47) - 1)","v":41}]
[43,null,null,"Henke","Quentin",2009,2,"Kirchberg",81,72,null,null,null,null,0,153,{"$f":"IF(P48=0,\" \",_xlfn.RANK.EQ(P48,$P$7:$P$206,0)+ COUNTIF(P$7:P48, P48) - 1)","v":42}]
[null,null,null,null,null,null,null,null,null,null,null,null,null,null,null,0,{"$f":"IF(P49=0,\" \",_xlfn.RANK.EQ(P49,$P$7:$P$206,0)+ COUNTIF(P$7:P49, P49) - 1)","v":" "}]
[null,null,null,null,null,null,null,null,null,null,null,null,null,null,null,0,{"$f":"IF(P50=0,\" \",_xlfn.RANK.EQ(P50,$P$7:$P$206,0)+ COUNTIF(P$7:P50, P50) - 1)","v":" "}]
[null,null,null,null,null,null,null,null,null,null,null,null,null,null,null,0,{"$f":"IF(P51=0,\" \",_xlfn.RANK.EQ(P51,$P$7:$P$206,0)+ COUNTIF(P$7:P51, P51) - 1)","v":" "}]
[null,null,null,null,null,null,null,null,null,null,null,null,null,null,null,0,{"$f":"IF(P52=0,\" \",_xlfn.RANK.EQ(P52,$P$7:$P$206,0)+ COUNTIF(P$7:P52, P52) - 1)","v":" "}]
[null,null,null,null,null,null,null,null,null,null,null,null,null,null,null,0,{"$f":"IF(P53=0,\" \",_xlfn.RANK.EQ(P53,$P$7:$P$206,0)+ COUNTIF(P$7:P53, P53) - 1)","v":" "}]
[null,null,null,null,null,null,null,null,null,null,null,null,null,null,null,0,{"$f":"IF(P54=0,\" \",_xlfn.RANK.EQ(P54,$P$7:$P$206,0)+ COUNTIF(P$7:P54, P54) - 1)","v":" "}]
[null,null,null,null,null,null,null,null,null,null,null,null,null,null,null,0,{"$f":"IF(P55=0,\" \",_xlfn.RANK.EQ(P55,$P$7:$P$206,0)+ COUNTIF(P$7:P55, P55) - 1)","v":" "}]
[null,null,null,null,null,null,null,null,null,null,null,null,null,null,null,0,{"$f":"IF(P56=0,\" \",_xlfn.RANK.EQ(P56,$P$7:$P$206,0)+ COUNTIF(P$7:P56, P56) - 1)","v":" "}]
[null,null,null,null,null,null,null,null,null,null,null,null,null,null,null,0,{"$f":"IF(P57=0,\" \",_xlfn.RANK.EQ(P57,$P$7:$P$206,0)+ COUNTIF(P$7:P57, P57) - 1)","v":" "}]
[null,null,null,null,null,null,null,null,null,null,null,null,null,null,null,0,{"$f":"IF(P58=0,\" \",_xlfn.RANK.EQ(P58,$P$7:$P$206,0)+ COUNTIF(P$7:P58, P58) - 1)","v":" "}]
[null,null,null,null,null,null,null,null,null,null,null,null,null,null,null,0,{"$f":"IF(P59=0,\" \",_xlfn.RANK.EQ(P59,$P$7:$P$206,0)+ COUNTIF(P$7:P59, P59) - 1)","v":" "}]
[null,null,null,null,null,null,null,null,null,null,null,null,null,null,null,0,{"$f":"IF(P60=0,\" \",_xlfn.RANK.EQ(P60,$P$7:$P$206,0)+ COUNTIF(P$7:P60, P60) - 1)","v":" "}]
[null,null,null,null,null,null,null,null,null,null,null,null,null,null,null,0,{"$f":"IF(P61=0,\" \",_xlfn.RANK.EQ(P61,$P$7:$P$206,0)+ COUNTIF(P$7:P61, P61) - 1)","v":" "}]
[null,null,null,null,null,null,null,null,null,null,null,null,null,null,null,0,{"$f":"IF(P62=0,\" \",_xlfn.RANK.EQ(P62,$P$7:$P$206,0)+ COUNTIF(P$7:P62, P62) - 1)","v":" "}]
[null,null,null,null,null,null,null,null,null,null,null,null,null,null,null,0,{"$f":"IF(P63=0,\" \",_xlfn.RANK.EQ(P63,$P$7:$P$206,0)+ COUNTIF(P$7:P63, P63) - 1)","v":" "}]
[null,null,null,null,null,null,null,null,null,null,null,null,null,null,null,0,{"$f":"IF(P64=0,\" \",_xlfn.RANK.EQ(P64,$P$7:$P$206,0)+ COUNTIF(P$7:P64, P64) - 1)","v":" "}]
[null,null,null,null,null,null,null,null,null,null,null,null,null,null,null,0,{"$f":"IF(P65=0,\" \",_xlfn.RANK.EQ(P65,$P$7:$P$206,0)+ COUNTIF(P$7:P65, P65) - 1)","v":" "}]
[null,null,null,null,null,null,null,null,null,null,null,null,null,null,null,0,{"$f":"IF(P66=0,\" \",_xlfn.RANK.EQ(P66,$P$7:$P$206,0)+ COUNTIF(P$7:P66, P66) - 1)","v":" "}]
[null,null,null,null,null,null,null,null,null,null,null,null,null,null,null,0,{"$f":"IF(P67=0,\" \",_xlfn.RANK.EQ(P67,$P$7:$P$206,0)+ COUNTIF(P$7:P67, P67) - 1)","v":" "}]
[null,null,null,null,null,null,null,null,null,null,null,null,null,null,null,0,{"$f":"IF(P68=0,\" \",_xlfn.RANK.EQ(P68,$P$7:$P$206,0)+ COUNTIF(P$7:P68, P68) - 1)","v":" "}]
[null,null,null,null,null,null,null,null,null,null,null,null,null,null,null,0,{"$f":"IF(P69=0,\" \",_xlfn.RANK.EQ(P69,$P$7:$P$206,0)+ COUNTIF(P$7:P69, P69) - 1)","v":" "}]
[null,null,null,null,null,null,null,null,null,null,null,null,null,null,null,0,{"$f":"IF(P70=0,\" \",_xlfn.RANK.EQ(P70,$P$7:$P$206,0)+ COUNTIF(P$7:P70, P70) - 1)","v":" "}]
[null,null,null,null,null,null,null,null,null,null,null,null,null,null,null,{"$f":"SUM(I71:J71)","v":0},{"$f":"IF(P71=0,\" \",_xlfn.RANK.EQ(P71,$P$7:$P$206,0)+ COUNTIF(P$7:P71, P71) - 1)","v":" "}]
[null,null,null,null,null,null,null,null,null,null,null,null,null,null,null,0,{"$f":"IF(P72=0,\" \",_xlfn.RANK.EQ(P72,$P$7:$P$206,0)+ COUNTIF(P$7:P72, P72) - 1)","v":" "}]
[null,null,null,null,null,null,null,null,null,null,null,null,null,null,null,0,{"$f":"IF(P73=0,\" \",_xlfn.RANK.EQ(P73,$P$7:$P$206,0)+ COUNTIF(P$7:P73, P73) - 1)","v":" "}]
[null,null,null,null,null,null,null,null,null,null,null,null,null,null,null,0,{"$f":"IF(P74=0,\" \",_xlfn.RANK.EQ(P74,$P$7:$P$206,0)+ COUNTIF(P$7:P74, P74) - 1)","v":" "}]
[null,null,null,null,null,null,null,null,null,null,null,null,null,null,null,0,{"$f":"IF(P75=0,\" \",_xlfn.RANK.EQ(P75,$P$7:$P$206,0)+ COUNTIF(P$7:P75, P75) - 1)","v":" "}]
[null,null,null,null,null,null,null,null,null,null,null,null,null,null,null,0,{"$f":"IF(P76=0,\" \",_xlfn.RANK.EQ(P76,$P$7:$P$206,0)+ COUNTIF(P$7:P76, P76) - 1)","v":" "}]
[null,null,null,null,null,null,null,null,null,null,null,null,null,null,null,0,{"$f":"IF(P77=0,\" \",_xlfn.RANK.EQ(P77,$P$7:$P$206,0)+ COUNTIF(P$7:P77, P77) - 1)","v":" "}]
[null,null,null,null,null,null,null,null,null,null,null,null,null,null,null,0,{"$f":"IF(P78=0,\" \",_xlfn.RANK.EQ(P78,$P$7:$P$206,0)+ COUNTIF(P$7:P78, P78) - 1)","v":" "}]
[null,null,null,null,null,null,null,null,null,null,null,null,null,null,null,0,{"$f":"IF(P79=0,\" \",_xlfn.RANK.EQ(P79,$P$7:$P$206,0)+ COUNTIF(P$7:P79, P79) - 1)","v":" "}]
[null,null,null,null,null,null,null,null,null,null,null,null,null,null,null,0,{"$f":"IF(P80=0,\" \",_xlfn.RANK.EQ(P80,$P$7:$P$206,0)+ COUNTIF(P$7:P80, P80) - 1)","v":" "}]
[null,null,null,null,null,null,null,null,null,null,null,null,null,null,null,0,{"$f":"IF(P81=0,\" \",_xlfn.RANK.EQ(P81,$P$7:$P$206,0)+ COUNTIF(P$7:P81, P81) - 1)","v":" "}]
[null,null,null,null,null,null,null,null,null,null,null,null,null,null,null,0,{"$f":"IF(P82=0,\" \",_xlfn.RANK.EQ(P82,$P$7:$P$206,0)+ COUNTIF(P$7:P82, P82) - 1)","v":" "}]
[null,null,null,null,null,null,null,null,null,null,null,null,null,null,null,0,{"$f":"IF(P83=0,\" \",_xlfn.RANK.EQ(P83,$P$7:$P$206,0)+ COUNTIF(P$7:P83, P83) - 1)","v":" "}]
[null,null,null,null,null,null,null,null,null,null,null,null,null,null,null,0,{"$f":"IF(P84=0,\" \",_xlfn.RANK.EQ(P84,$P$7:$P$206,0)+ COUNTIF(P$7:P84, P84) - 1)","v":" "}]
[null,null,null,null,null,null,null,null,null,null,null,null,null,null,null,0,{"$f":"IF(P85=0,\" \",_xlfn.RANK.EQ(P85,$P$7:$P$206,0)+ COUNTIF(P$7:P85, P85) - 1)","v":" "}]
[null,null,null,null,null,null,null,null,null,null,null,null,null,null,null,0,{"$f":"IF(P86=0,\" \",_xlfn.RANK.EQ(P86,$P$7:$P$206,0)+ COUNTIF(P$7:P86, P86) - 1)","v":" "}]
[null,null,null,null,null,null,null,null,null,null,null,null,null,null,null,0,{"$f":"IF(P87=0,\" \",_xlfn.RANK.EQ(P87,$P$7:$P$206,0)+ COUNTIF(P$7:P87, P87) - 1)","v":" "}]
[null,null,null,null,null,null,null,null,null,null,null,null,null,null,null,0,{"$f":"IF(P88=0,\" \",_xlfn.RANK.EQ(P88,$P$7:$P$206,0)+ COUNTIF(P$7:P88, P88) - 1)","v":" "}]
[null,null,null,null,null,null,null,null,null,null,null,null,null,null,null,0,{"$f":"IF(P89=0,\" \",_xlfn.RANK.EQ(P89,$P$7:$P$206,0)+ COUNTIF(P$7:P89, P89) - 1)","v":" "}]
[null,null,null,null,null,null,null,null,null,null,null,null,null,null,null,0,{"$f":"IF(P90=0,\" \",_xlfn.RANK.EQ(P90,$P$7:$P$206,0)+ COUNTIF(P$7:P90, P90) - 1)","v":" "}]
[null,null,null,null,null,null,null,null,null,null,null,null,null,null,null,0,{"$f":"IF(P91=0,\" \",_xlfn.RANK.EQ(P91,$P$7:$P$206,0)+ COUNTIF(P$7:P91, P91) - 1)","v":" "}]
[null,null,null,null,null,null,null,null,null,null,null,null,null,null,null,0,{"$f":"IF(P92=0,\" \",_xlfn.RANK.EQ(P92,$P$7:$P$206,0)+ COUNTIF(P$7:P92, P92) - 1)","v":" "}]
[null,null,null,null,null,null,null,null,null,null,null,null,null,null,null,0,{"$f":"IF(P93=0,\" \",_xlfn.RANK.EQ(P93,$P$7:$P$206,0)+ COUNTIF(P$7:P93, P93) - 1)","v":" "}]
[null,null,null,null,null,null,null,null,null,null,null,null,null,null,null,0,{"$f":"IF(P94=0,\" \",_xlfn.RANK.EQ(P94,$P$7:$P$206,0)+ COUNTIF(P$7:P94, P94) - 1)","v":" "}]
[null,null,null,null,null,null,null,null,null,null,null,null,null,null,null,0,{"$f":"IF(P95=0,\" \",_xlfn.RANK.EQ(P95,$P$7:$P$206,0)+ COUNTIF(P$7:P95, P95) - 1)","v":" "}]
[null,null,null,null,null,null,null,null,null,null,null,null,null,null,null,0,{"$f":"IF(P96=0,\" \",_xlfn.RANK.EQ(P96,$P$7:$P$206,0)+ COUNTIF(P$7:P96, P96) - 1)","v":" "}]
[null,null,null,null,null,null,null,null,null,null,null,null,null,null,null,0,{"$f":"IF(P97=0,\" \",_xlfn.RANK.EQ(P97,$P$7:$P$206,0)+ COUNTIF(P$7:P97, P97) - 1)","v":" "}]
[null,null,null,null,null,null,null,null,null,null,null,null,null,null,null,0,{"$f":"IF(P98=0,\" \",_xlfn.RANK.EQ(P98,$P$7:$P$206,0)+ COUNTIF(P$7:P98, P98) - 1)","v":" "}]
[null,null,null,null,null,null,null,null,null,null,null,null,null,null,null,0,{"$f":"IF(P99=0,\" \",_xlfn.RANK.EQ(P99,$P$7:$P$206,0)+ COUNTIF(P$7:P99, P99) - 1)","v":" "}]
[null,null,null,null,null,null,null,null,null,null,null,null,null,null,null,0,{"$f":"IF(P100=0,\" \",_xlfn.RANK.EQ(P100,$P$7:$P$206,0)+ COUNTIF(P$7:P100, P100) - 1)","v":" "}]
[null,null,null,null,null,null,null,null,null,null,null,null,null,null,null,0,{"$f":"IF(P101=0,\" \",_xlfn.RANK.EQ(P101,$P$7:$P$206,0)+ COUNTIF(P$7:P101, P101) - 1)","v":" "}]
[null,null,null,null,null,null,null,null,null,null,null,null,null,null,null,0,{"$f":"IF(P102=0,\" \",_xlfn.RANK.EQ(P102,$P$7:$P$206,0)+ COUNTIF(P$7:P102, P102) - 1)","v":" "}]
[null,null,null,null,null,null,null,null,null,null,null,null,null,null,null,{"$f":"SUM(I103:J103)","v":0},{"$f":"IF(P103=0,\" \",_xlfn.RANK.EQ(P103,$P$7:$P$206,0)+ COUNTIF(P$7:P103, P103) - 1)","v":" "}]
[null,null,null,null,null,null,null,null,null,null,null,null,null,null,null,0,{"$f":"IF(P104=0,\" \",_xlfn.RANK.EQ(P104,$P$7:$P$206,0)+ COUNTIF(P$7:P104, P104) - 1)","v":" "}]
[null,null,null,null,null,null,null,null,null,null,null,null,null,null,null,0,{"$f":"IF(P105=0,\" \",_xlfn.RANK.EQ(P105,$P$7:$P$206,0)+ COUNTIF(P$7:P105, P105) - 1)","v":" "}]
[null,null,null,null,null,null,null,null,null,null,null,null,null,null,null,0,{"$f":"IF(P106=0,\" \",_xlfn.RANK.EQ(P106,$P$7:$P$206,0)+ COUNTIF(P$7:P106, P106) - 1)","v":" "}]
[null,null,null,null,null,null,null,null,null,null,null,null,null,null,null,0,{"$f":"IF(P107=0,\" \",_xlfn.RANK.EQ(P107,$P$7:$P$206,0)+ COUNTIF(P$7:P107, P107) - 1)","v":" "}]
[null,null,null,null,null,null,null,null,null,null,null,null,null,null,null,0,{"$f":"IF(P108=0,\" \",_xlfn.RANK.EQ(P108,$P$7:$P$206,0)+ COUNTIF(P$7:P108, P108) - 1)","v":" "}]
[null,null,null,null,null,null,null,null,null,null,null,null,null,null,null,0,{"$f":"IF(P109=0,\" \",_xlfn.RANK.EQ(P109,$P$7:$P$206,0)+ COUNTIF(P$7:P109, P109) - 1)","v":" "}]
[null,null,null,null,null,null,null,null,null,null,null,null,null,null,null,0,{"$f":"IF(P110=0,\" \",_xlfn.RANK.EQ(P110,$P$7:$P$206,0)+ COUNTIF(P$7:P110, P110) - 1)","v":" "}]
[null,null,null,null,null,null,null,null,null,null,null,null,null,null,null,0,{"$f":"IF(P111=0,\" \",_xlfn.RANK.EQ(P111,$P$7:$P$206,0)+ COUNTIF(P$7:P111, P111) - 1)","v":" "}]
[null,null,null,null,null,null,null,null,null,null,null,null,null,null,null,0,{"$f":"IF(P112=0,\" \",_xlfn.RANK.EQ(P112,$P$7:$P$206,0)+ COUNTIF(P$7:P112, P112) - 1)","v":" "}]
[null,null,null,null,null,null,null,null,null,null,null,null,null,null,null,0,{"$f":"IF(P113=0,\" \",_xlfn.RANK.EQ(P113,$P$7:$P$206,0)+ COUNTIF(P$7:P113, P113) - 1)","v":" "}]
[null,null,null,null,null,null,null,null,null,null,null,null,null,null,null,0,{"$f":"IF(P114=0,\" \",_xlfn.RANK.EQ(P114,$P$7:$P$206,0)+ COUNTIF(P$7:P114, P114) - 1)","v":" "}]
[null,null,null,null,null,null,null,null,null,null,null,null,null,null,null,0,{"$f":"IF(P115=0,\" \",_xlfn.RANK.EQ(P115,$P$7:$P$206,0)+ COUNTIF(P$7:P115, P115) - 1)","v":" "}]
[null,null,null,null,null,null,null,null,null,null,null,null,null,null,null,0,{"$f":"IF(P116=0,\" \",_xlfn.RANK.EQ(P116,$P$7:$P$206,0)+ COUNTIF(P$7:P116, P116) - 1)","v":" "}]
[null,null,null,null,null,null,null,null,null,null,null,null,null,null,null,0,{"$f":"IF(P117=0,\" \",_xlfn.RANK.EQ(P117,$P$7:$P$206,0)+ COUNTIF(P$7:P117, P117) - 1)","v":" "}]
[null,null,null,null,null,null,null,null,null,null,null,null,null,null,null,0,{"$f":"IF(P118=0,\" \",_xlfn.RANK.EQ(P118,$P$7:$P$206,0)+ COUNTIF(P$7:P118, P118) - 1)","v":" "}]
[null,null,null,null,null,null,null,null,null,null,null,null,null,null,null,0,{"$f":"IF(P119=0,\" \",_xlfn.RANK.EQ(P119,$P$7:$P$206,0)+ COUNTIF(P$7:P119, P119) - 1)","v":" "}]
[null,null,null,null,null,null,null,null,null,null,null,null,null,null,null,0,{"$f":"IF(P120=0,\" \",_xlfn.RANK.EQ(P120,$P$7:$P$206,0)+ COUNTIF(P$7:P120, P120) - 1)","v":" "}]
[null,null,null,null,null,null,null,null,null,null,null,null,null,null,null,0,{"$f":"IF(P121=0,\" \",_xlfn.RANK.EQ(P121,$P$7:$P$206,0)+ COUNTIF(P$7:P121, P121) - 1)","v":" "}]
[null,null,null,null,null,null,null,null,null,null,null,null,null,null,null,0,{"$f":"IF(P122=0,\" \",_xlfn.RANK.EQ(P122,$P$7:$P$206,0)+ COUNTIF(P$7:P122, P122) - 1)","v":" "}]
[null,null,null,null,null,null,null,null,null,null,null,null,null,null,null,0,{"$f":"IF(P123=0,\" \",_xlfn.RANK.EQ(P123,$P$7:$P$206,0)+ COUNTIF(P$7:P123, P123) - 1)","v":" "}]
[null,null,null,null,null,null,null,null,null,null,null,null,null,null,null,0,{"$f":"IF(P124=0,\" \",_xlfn.RANK.EQ(P124,$P$7:$P$206,0)+ COUNTIF(P$7:P124, P124) - 1)","v":" "}]
[null,null,null,null,null,null,null,null,null,null,null,null,null,null,null,0,{"$f":"IF(P125=0,\" \",_xlfn.RANK.EQ(P125,$P$7:$P$206,0)+ COUNTIF(P$7:P125, P125) - 1)","v":" "}]
[null,null,null,null,null,null,null,null,null,null,null,null,null,null,null,0,{"$f":"IF(P126=0,\" \",_xlfn.RANK.EQ(P126,$P$7:$P$206,0)+ COUNTIF(P$7:P126, P126) - 1)","v":" "}]
[null,null,null,null,null,null,null,null,null,null,null,null,null,null,null,0,{"$f":"IF(P127=0,\" \",_xlfn.RANK.EQ(P127,$P$7:$P$206,0)+ COUNTIF(P$7:P127, P127) - 1)","v":" "}]
[null,null,null,null,null,null,null,null,null,null,null,null,null,null,null,0,{"$f":"IF(P128=0,\" \",_xlfn.RANK.EQ(P128,$P$7:$P$206,0)+ COUNTIF(P$7:P128, P128) - 1)","v":" "}]
[null,null,null,null,null,null,null,null,null,null,null,null,null,null,null,0,{"$f":"IF(P129=0,\" \",_xlfn.RANK.EQ(P129,$P$7:$P$206,0)+ COUNTIF(P$7:P129, P129) - 1)","v":" "}]
[null,null,null,null,null,null,null,null,null,null,null,null,null,null,null,0,{"$f":"IF(P130=0,\" \",_xlfn.RANK.EQ(P130,$P$7:$P$206,0)+ COUNTIF(P$7:P130, P130) - 1)","v":" "}]
[null,null,null,null,null,null,null,null,null,null,null,null,null,null,null,0,{"$f":"IF(P131=0,\" \",_xlfn.RANK.EQ(P131,$P$7:$P$206,0)+ COUNTIF(P$7:P131, P131) - 1)","v":" "}]
[null,null,null,null,null,null,null,null,null,null,null,null,null,null,null,0,{"$f":"IF(P132=0,\" \",_xlfn.RANK.EQ(P132,$P$7:$P$206,0)+ COUNTIF(P$7:P132, P132) - 1)","v":" "}]
[null,null,null,null,null,null,null,null,null,null,null,null,null,null,null,0,{"$f":"IF(P133=0,\" \",_xlfn.RANK.EQ(P133,$P$7:$P$206,0)+ COUNTIF(P$7:P133, P133) - 1)","v":" "}]
[null,null,null,null,null,null,null,null,null,null,null,null,null,null,null,0,{"$f":"IF(P134=0,\" \",_xlfn.RANK.EQ(P134,$P$7:$P$206,0)+ COUNTIF(P$7:P134, P134) - 1)","v":" "}]
[null,null,null,null,null,null,null,null,null,null,null,null,null,null,null,{"$f":"SUM(I135:J135)","v":0},{"$f":"IF(P135=0,\" \",_xlfn.RANK.EQ(P135,$P$7:$P$206,0)+ COUNTIF(P$7:P135, P135) - 1)","v":" "}]
[null,null,null,null,null,null,null,null,null,null,null,null,null,null,null,0,{"$f":"IF(P136=0,\" \",_xlfn.RANK.EQ(P136,$P$7:$P$206,0)+ COUNTIF(P$7:P136, P136) - 1)","v":" "}]
[null,null,null,null,null,null,null,null,null,null,null,null,null,null,null,0,{"$f":"IF(P137=0,\" \",_xlfn.RANK.EQ(P137,$P$7:$P$206,0)+ COUNTIF(P$7:P137, P137) - 1)","v":" "}]
[null,null,null,null,null,null,null,null,null,null,null,null,null,null,null,0,{"$f":"IF(P138=0,\" \",_xlfn.RANK.EQ(P138,$P$7:$P$206,0)+ COUNTIF(P$7:P138, P138) - 1)","v":" "}]
[null,null,null,null,null,null,null,null,null,null,null,null,null,null,null,0,{"$f":"IF(P139=0,\" \",_xlfn.RANK.EQ(P139,$P$7:$P$206,0)+ COUNTIF(P$7:P139, P139) - 1)","v":" "}]
[null,null,null,null,null,null,null,null,null,null,null,null,null,null,null,0,{"$f":"IF(P140=0,\" \",_xlfn.RANK.EQ(P140,$P$7:$P$206,0)+ COUNTIF(P$7:P140, P140) - 1)","v":" "}]
[null,null,null,null,null,null,null,null,null,null,null,null,null,null,null,0,{"$f":"IF(P141=0,\" \",_xlfn.RANK.EQ(P141,$P$7:$P$206,0)+ COUNTIF(P$7:P141, P141) - 1)","v":" "}]
[null,null,null,null,null,null,null,null,null,null,null,null,null,null,null,0,{"$f":"IF(P142=0,\" \",_xlfn.RANK.EQ(P142,$P$7:$P$206,0)+ COUNTIF(P$7:P142, P142) - 1)","v":" "}]
[null,null,null,null,null,null,null,null,null,null,null,null,null,null,null,0,{"$f":"IF(P143=0,\" \",_xlfn.RANK.EQ(P143,$P$7:$P$206,0)+ COUNTIF(P$7:P143, P143) - 1)","v":" "}]
[null,null,null,null,null,null,null,null,null,null,null,null,null,null,null,0,{"$f":"IF(P144=0,\" \",_xlfn.RANK.EQ(P144,$P$7:$P$206,0)+ COUNTIF(P$7:P144, P144) - 1)","v":" "}]
[null,null,null,null,null,null,null,null,null,null,null,null,null,null,null,0,{"$f":"IF(P145=0,\" \",_xlfn.RANK.EQ(P145,$P$7:$P$206,0)+ COUNTIF(P$7:P145, P145) - 1)","v":" "}]
[null,null,null,null,null,null,null,null,null,null,null,null,null,null,null,0,{"$f":"IF(P146=0,\" \",_xlfn.RANK.EQ(P146,$P$7:$P$206,0)+ COUNTIF(P$7:P146, P146) - 1)","v":" "}]
[null,null,null,null,null,null,null,null,null,null,null,null,null,null,null,0,{"$f":"IF(P147=0,\" \",_xlfn.RANK.EQ(P147,$P$7:$P$206,0)+ COUNTIF(P$7:P147, P147) - 1)","v":" "}]
[null,null,null,null,null,null,null,null,null,null,null,null,null,null,null,0,{"$f":"IF(P148=0,\" \",_xlfn.RANK.EQ(P148,$P$7:$P$206,0)+ COUNTIF(P$7:P148, P148) - 1)","v":" "}]
[null,null,null,null,null,null,null,null,null,null,null,null,null,null,null,0,{"$f":"IF(P149=0,\" \",_xlfn.RANK.EQ(P149,$P$7:$P$206,0)+ COUNTIF(P$7:P149, P149) - 1)","v":" "}]
[null,null,null,null,null,null,null,null,null,null,null,null,null,null,null,0,{"$f":"IF(P150=0,\" \",_xlfn.RANK.EQ(P150,$P$7:$P$206,0)+ COUNTIF(P$7:P150, P150) - 1)","v":" "}]
[null,null,null,null,null,null,null,null,null,null,null,null,null,null,null,0,{"$f":"IF(P151=0,\" \",_xlfn.RANK.EQ(P151,$P$7:$P$206,0)+ COUNTIF(P$7:P151, P151) - 1)","v":" "}]
[null,null,null,null,null,null,null,null,null,null,null,null,null,null,null,0,{"$f":"IF(P152=0,\" \",_xlfn.RANK.EQ(P152,$P$7:$P$206,0)+ COUNTIF(P$7:P152, P152) - 1)","v":" "}]
[null,null,null,null,null,null,null,null,null,null,null,null,null,null,null,0,{"$f":"IF(P153=0,\" \",_xlfn.RANK.EQ(P153,$P$7:$P$206,0)+ COUNTIF(P$7:P153, P153) - 1)","v":" "}]
[null,null,null,null,null,null,null,null,null,null,null,null,null,null,null,0,{"$f":"IF(P154=0,\" \",_xlfn.RANK.EQ(P154,$P$7:$P$206,0)+ COUNTIF(P$7:P154, P154) - 1)","v":" "}]
[null,null,null,null,null,null,null,null,null,null,null,null,null,null,null,0,{"$f":"IF(P155=0,\" \",_xlfn.RANK.EQ(P155,$P$7:$P$206,0)+ COUNTIF(P$7:P155, P155) - 1)","v":" "}]
[null,null,null,null,null,null,null,null,null,null,null,null,null,null,null,0,{"$f":"IF(P156=0,\" \",_xlfn.RANK.EQ(P156,$P$7:$P$206,0)+ COUNTIF(P$7:P156, P156) - 1)","v":" "}]
[null,null,null,null,null,null,null,null,null,null,null,null,null,null,null,0,{"$f":"IF(P157=0,\" \",_xlfn.RANK.EQ(P157,$P$7:$P$206,0)+ COUNTIF(P$7:P157, P157) - 1)","v":" "}]
[null,null,null,null,null,null,null,null,null,null,null,null,null,null,null,0,{"$f":"IF(P158=0,\" \",_xlfn.RANK.EQ(P158,$P$7:$P$206,0)+ COUNTIF(P$7:P158, P158) - 1)","v":" "}]
[null,null,null,null,null,null,null,null,null,null,null,null,null,null,null,0,{"$f":"IF(P159=0,\" \",_xlfn.RANK.EQ(P159,$P$7:$P$206,0)+ COUNTIF(P$7:P159, P159) - 1)","v":" "}]
[null,null,null,null,null,null,null,null,null,null,null,null,null,null,null,0,{"$f":"IF(P160=0,\" \",_xlfn.RANK.EQ(P160,$P$7:$P$206,0)+ COUNTIF(P$7:P160, P160) - 1)","v":" "}]
[null,null,null,null,null,null,null,null,null,null,null,null,null,null,null,0,{"$f":"IF(P161=0,\" \",_xlfn.RANK.EQ(P161,$P$7:$P$206,0)+ COUNTIF(P$7:P161, P161) - 1)","v":" "}]
[null,null,null,null,null,null,null,null,null,null,null,null,null,null,null,0,{"$f":"IF(P162=0,\" \",_xlfn.RANK.EQ(P162,$P$7:$P$206,0)+ COUNTIF(P$7:P162, P162) - 1)","v":" "}]
[null,null,null,null,null,null,null,null,null,null,null,null,null,null,null,0,{"$f":"IF(P163=0,\" \",_xlfn.RANK.EQ(P163,$P$7:$P$206,0)+ COUNTIF(P$7:P163, P163) - 1)","v":" "}]
[null,null,null,null,null,null,null,null,null,null,null,null,null,null,null,0,{"$f":"IF(P164=0,\" \",_xlfn.RANK.EQ(P164,$P$7:$P$206,0)+ COUNTIF(P$7:P164, P164) - 1)","v":" "}]
[null,null,null,null,null,null,null,null,null,null,null,null,null,null,null,0,{"$f":"IF(P165=0,\" \",_xlfn.RANK.EQ(P165,$P$7:$P$206,0)+ COUNTIF(P$7:P165, P165) - 1)","v":" "}]
[null,null,null,null,null,null,null,null,null,null,null,null,null,null,null,0,{"$f":"IF(P166=0,\" \",_xlfn.RANK.EQ(P166,$P$7:$P$206,0)+ COUNTIF(P$7:P166, P166) - 1)","v":" "}]
[null,null,null,null,null,null,null,null,null,null,null,null,null,null,null,{"$f":"SUM(I167:J167)","v":0},{"$f":"IF(P167=0,\" \",_xlfn.RANK.EQ(P167,$P$7:$P$206,0)+ COUNTIF(P$7:P167, P167) - 1)","v":" "}]
[null,null,null,null,null,null,null,null,null,null,null,null,null,null,null,0,{"$f":"IF(P168=0,\" \",_xlfn.RANK.EQ(P168,$P$7:$P$206,0)+ COUNTIF(P$7:P168, P168) - 1)","v":" "}]
[null,null,null,null,null,null,null,null,null,null,null,null,null,null,null,0,{"$f":"IF(P169=0,\" \",_xlfn.RANK.EQ(P169,$P$7:$P$206,0)+ COUNTIF(P$7:P169, P169) - 1)","v":" "}]
[null,null,null,null,null,null,null,null,null,null,null,null,null,null,null,0,{"$f":"IF(P170=0,\" \",_xlfn.RANK.EQ(P170,$P$7:$P$206,0)+ COUNTIF(P$7:P170, P170) - 1)","v":" "}]
[null,null,null,null,null,null,null,null,null,null,null,null,null,null,null,0,{"$f":"IF(P171=0,\" \",_xlfn.RANK.EQ(P171,$P$7:$P$206,0)+ COUNTIF(P$7:P171, P171) - 1)","v":" "}]
[null,null,null,null,null,null,null,null,null,null,null,null,null,null,null,0,{"$f":"IF(P172=0,\" \",_xlfn.RANK.EQ(P172,$P$7:$P$206,0)+ COUNTIF(P$7:P172, P172) - 1)","v":" "}]
[null,null,null,null,null,null,null,null,null,null,null,null,null,null,null,0,{"$f":"IF(P173=0,\" \",_xlfn.RANK.EQ(P173,$P$7:$P$206,0)+ COUNTIF(P$7:P173, P173) - 1)","v":" "}]
[null,null,null,null,null,null,null,null,null,null,null,null,null,null,null,0,{"$f":"IF(P174=0,\" \",_xlfn.RANK.EQ(P174,$P$7:$P$206,0)+ COUNTIF(P$7:P174, P174) - 1)","v":" "}]
[null,null,null,null,null,null,null,null,null,null,null,null,null,null,null,0,{"$f":"IF(P175=0,\" \",_xlfn.RANK.EQ(P175,$P$7:$P$206,0)+ COUNTIF(P$7:P175, P175) - 1)","v":" "}]
[null,null,null,null,null,null,null,null,null,null,null,null,null,null,null,0,{"$f":"IF(P176=0,\" \",_xlfn.RANK.EQ(P176,$P$7:$P$206,0)+ COUNTIF(P$7:P176, P176) - 1)","v":" "}]
[null,null,null,null,null,null,null,null,null,null,null,null,null,null,null,0,{"$f":"IF(P177=0,\" \",_xlfn.RANK.EQ(P177,$P$7:$P$206,0)+ COUNTIF(P$7:P177, P177) - 1)","v":" "}]
[null,null,null,null,null,null,null,null,null,null,null,null,null,null,null,0,{"$f":"IF(P178=0,\" \",_xlfn.RANK.EQ(P178,$P$7:$P$206,0)+ COUNTIF(P$7:P178, P178) - 1)","v":" "}]
[null,null,null,null,null,null,null,null,null,null,null,null,null,null,null,0,{"$f":"IF(P179=0,\" \",_xlfn.RANK.EQ(P179,$P$7:$P$206,0)+ COUNTIF(P$7:P179, P179) - 1)","v":" "}]
[null,null,null,null,null,null,null,null,null,null,null,null,null,null,null,0,{"$f":"IF(P180=0,\" \",_xlfn.RANK.EQ(P180,$P$7:$P$206,0)+ COUNTIF(P$7:P180, P180) - 1)","v":" "}]
[null,null,null,null,null,null,null,null,null,null,null,null,null,null,null,0,{"$f":"IF(P181=0,\" \",_xlfn.RANK.EQ(P181,$P$7:$P$206,0)+ COUNTIF(P$7:P181, P181) - 1)","v":" "}]
[null,null,null,null,null,null,null,null,null,null,null,null,null,null,null,0,{"$f":"IF(P182=0,\" \",_xlfn.RANK.EQ(P182,$P$7:$P$206,0)+ COUNTIF(P$7:P182, P182) - 1)","v":" "}]
[null,null,null,null,null,null,null,null,null,null,null,null,null,null,null,0,{"$f":"IF(P183=0,\" \",_xlfn.RANK.EQ(P183,$P$7:$P$206,0)+ COUNTIF(P$7:P183, P183) - 1)","v":" "}]
[null,null,null,null,null,null,null,null,null,null,null,null,null,null,null,0,{"$f":"IF(P184=0,\" \",_xlfn.RANK.EQ(P184,$P$7:$P$206,0)+ COUNTIF(P$7:P184, P184) - 1)","v":" "}]
[null,null,null,null,null,null,null,null,null,null,null,null,null,null,null,0,{"$f":"IF(P185=0,\" \",_xlfn.RANK.EQ(P185,$P$7:$P$206,0)+ COUNTIF(P$7:P185, P185) - 1)","v":" "}]
[null,null,null,null,null,null,null,null,null,null,null,null,null,null,null,0,{"$f":"IF(P186=0,\" \",_xlfn.RANK.EQ(P186,$P$7:$P$206,0)+ COUNTIF(P$7:P186, P186) - 1)","v":" "}]
[null,null,null,null,null,null,null,null,null,null,null,null,null,null,null,0,{"$f":"IF(P187=0,\" \",_xlfn.RANK.EQ(P187,$P$7:$P$206,0)+ COUNTIF(P$7:P187, P187) - 1)","v":" "}]
[null,null,null,null,null,null,null,null,null,null,null,null,null,null,null,0,{"$f":"IF(P188=0,\" \",_xlfn.RANK.EQ(P188,$P$7:$P$206,0)+ COUNTIF(P$7:P188, P188) - 1)","v":" "}]
[null,null,null,null,null,null,null,null,null,null,null,null,null,null,null,0,{"$f":"IF(P189=0,\" \",_xlfn.RANK.EQ(P189,$P$7:$P$206,0)+ COUNTIF(P$7:P189, P189) - 1)","v":" "}]
[null,null,null,null,null,null,null,null,null,null,null,null,null,null,null,0,{"$f":"IF(P190=0,\" \",_xlfn.RANK.EQ(P190,$P$7:$P$206,0)+ COUNTIF(P$7:P190, P190) - 1)","v":" "}]
[null,null,null,null,null,null,null,null,null,null,null,null,null,null,null,0,{"$f":"IF(P191=0,\" \",_xlfn.RANK.EQ(P191,$P$7:$P$206,0)+ COUNTIF(P$7:P191, P191) - 1)","v":" "}]
[null,null,null,null,null,null,null,null,null,null,null,null,null,null,null,0,{"$f":"IF(P192=0,\" \",_xlfn.RANK.EQ(P192,$P$7:$P$206,0)+ COUNTIF(P$7:P192, P192) - 1)","v":" "}]
[null,null,null,null,null,null,null,null,null,null,null,null,null,null,null,0,{"$f":"IF(P193=0,\" \",_xlfn.RANK.EQ(P193,$P$7:$P$206,0)+ COUNTIF(P$7:P193, P193) - 1)","v":" "}]
[null,null,null,null,null,null,null,null,null,null,null,null,null,null,null,0,{"$f":"IF(P194=0,\" \",_xlfn.RANK.EQ(P194,$P$7:$P$206,0)+ COUNTIF(P$7:P194, P194) - 1)","v":" "}]
[null,null,null,null,null,null,null,null,null,null,null,null,null,null,null,0,{"$f":"IF(P195=0,\" \",_xlfn.RANK.EQ(P195,$P$7:$P$206,0)+ COUNTIF(P$7:P195, P195) - 1)","v":" "}]
[null,null,null,null,null,null,null,null,null,null,null,null,null,null,null,0,{"$f":"IF(P196=0,\" \",_xlfn.RANK.EQ(P196,$P$7:$P$206,0)+ COUNTIF(P$7:P196, P196) - 1)","v":" "}]
[null,null,null,null,null,null,null,null,null,null,null,null,null,null,null,0,{"$f":"IF(P197=0,\" \",_xlfn.RANK.EQ(P197,$P$7:$P$206,0)+ COUNTIF(P$7:P197, P197) - 1)","v":" "}]
[null,null,null,null,null,null,null,null,null,null,null,null,null,null,null,0,{"$f":"IF(P198=0,\" \",_xlfn.RANK.EQ(P198,$P$7:$P$206,0)+ COUNTIF(P$7:P198, P198) - 1)","v":" "}]
[null,null,null,null,null,null,null,null,null,null,null,null,null,null,null,{"$f":"SUM(I199:J199)","v":0},{"$f":"IF(P199=0,\" \",_xlfn.RANK.EQ(P199,$P$7:$P$206,0)+ COUNTIF(P$7:P199, P199) - 1)","v":" "}]
[null,null,null,null,null,null,null,null,null,null,null,null,null,null,null,0,{"$f":"IF(P200=0,\" \",_xlfn.RANK.EQ(P200,$P$7:$P$206,0)+ COUNTIF(P$7:P200, P200) - 1)","v":" "}]
[null,null,null,null,null,null,null,null,null,null,null,null,null,null,null,0,{"$f":"IF(P201=0,\" \",_xlfn.RANK.EQ(P201,$P$7:$P$206,0)+ COUNTIF(P$7:P201, P201) - 1)","v":" "}]
[null,null,null,null,null,null,null,null,null,null,null,null,null,null,null,0,{"$f":"IF(P202=0,\" \",_xlfn.RANK.EQ(P202,$P$7:$P$206,0)+ COUNTIF(P$7:P202, P202) - 1)","v":" "}]
[null,null,null,null,null,null,null,null,null,null,null,null,null,null,null,0,{"$f":"IF(P203=0,\" \",_xlfn.RANK.EQ(P203,$P$7:$P$206,0)+ COUNTIF(P$7:P203, P203) - 1)","v":" "}]
[null,null,null,null,null,null,null,null,null,null,null,null,null,null,null,0,{"$f":"IF(P204=0,\" \",_xlfn.RANK.EQ(P204,$P$7:$P$206,0)+ COUNTIF(P$7:P204, P204) - 1)","v":" "}]
[null,null,null,null,null,null,null,null,null,null,null,null,null,null,null,0,{"$f":"IF(P205=0,\" \",_xlfn.RANK.EQ(P205,$P$7:$P$206,0)+ COUNTIF(P$7:P205, P205) - 1)","v":" "}]
[null,null,null,null,null,null,null,null,null,null,null,null,null,null,null,0,{"$f":"IF(P206=0,\" \",_xlfn.RANK.EQ(P206,$P$7:$P$206,0)+ COUNTIF(P$7:P206, P206) - 1)","v":" "}]

{"sheet":"Kategorie 3","index":4,"n_rows":206,"n_cols":19,"rows_kept":206,"cut":false,"hidden":false,"merged":[[5,16,5,17],[0,0,0,17],[1,0,1,17],[2,0,2,17],[3,0,3,17],[4,8,4,9]]}
[]
[{"$f":"Parameter!C7","v":"OSPSV"}]
[{"$f":"Parameter!C9","v":"Jugendtag 2022"}]
[{"$f":"Parameter!C15","v":"Kat. 3  Jugend liegend frei U19 / U21"}]
[null,null,null,null,null,null,null,null,"liegend"]
["Nr","Abl.","Sch.-Nr","Name","Vorname","JG","Kat","Sektion","P1","P2","P3","P4","P5","P6","IZ","Total","Rang",null,"KK"]
[72,null,null,"Meier","Astid",2002,3,"St.Gallen",100,97,null,null,null,null,6,{"$f":"SUM(I7:J7)","v":197},{"$f":"IF(P7=0,\" \",_xlfn.RANK.EQ(P7,$P$7:$P$206,0)+ COUNTIF(P$7:P7, P7) - 1)","v":1},{"$f":"IF(Q7=2,\"Silber\",\"\")","v":""},"G"]
[89,null,null,"Scherrer","Benjamin",2003,3,"Weinfelden",96,97,null,null,null,null,9,193,{"$f":"IF(P8=0,\" \",_xlfn.RANK.EQ(P8,$P$7:$P$206,0)+ COUNTIF(P$7:P8, P8) - 1)","v":2},{"$f":"IF(Q8=1,\"Gold\",\"\")","v":""},"S"]
[104,null,null,"Speck","Corina",2005,3,"Weissbad",97,96,null,null,null,null,7,193,{"$f":"IF(P9=0,\" \",_xlfn.RANK.EQ(P9,$P$7:$P$206,0)+ COUNTIF(P$7:P9, P9) - 1)","v":3},null,"B"]
[30,null,null,"Früh","Janis",2004,3,"Kirchberg",94,97,null,null,null,null,8,191,{"$f":"IF(P10=0,\" \",_xlfn.RANK.EQ(P10,$P$7:$P$206,0)+ COUNTIF(P$7:P10, P10) - 1)","v":4},{"$f":"IF(Q10=3,\"Bronze\",\"\")","v":""},8]
[109,null,null,"Staub","Lea",2002,3,"Schönholzerswilen",95,95,null,null,null,null,6,190,{"$f":"IF(P11=0,\" \",_xlfn.RANK.EQ(P11,$P$7:$P$206,0)+ COUNTIF(P$7:P11, P11) - 1)","v":5},null,8]
[92,null,null,"Schittenhelm","Dennis",2003,3,"Goldach",93,96,null,null,null,null,5,189,{"$f":"IF(P12=0,\" \",_xlfn.RANK.EQ(P12,$P$7:$P$206,0)+ COUNTIF(P$7:P12, P12) - 1)","v":6},null,8]
[53,null,null,"Kummer","Livio",2005,3,"Munot Schaffhausen",94,94,null,null,null,null,7,188,{"$f":"IF(P13=0,\" \",_xlfn.RANK.EQ(P13,$P$7:$P$206,0)+ COUNTIF(P$7:P13, P13) - 1)","v":7},null,8]
[34,null,null,"Gmünder","Ralf",2005,3,"Weissbad",92,96,null,null,null,null,2,188,{"$f":"IF(P14=0,\" \",_xlfn.RANK.EQ(P14,$P$7:$P$206,0)+ COUNTIF(P$7:P14, P14) - 1)","v":8},null,8]
[57,null,null,"Lengwiler","Tobias",2003,3,"Sitterdorf",92,95,null,null,null,null,3,187,{"$f":"IF(P15=0,\" \",_xlfn.RANK.EQ(P15,$P$7:$P$206,0)+ COUNTIF(P$7:P15, P15) - 1)","v":9},null,8]
[27,null,null,"Fritsche","Maurus",2002,3,"Weissbad",91,94,null,null,null,null,6,185,{"$f":"IF(P16=0,\" \",_xlfn.RANK.EQ(P16,$P$7:$P$206,0)+ COUNTIF(P$7:P16, P16) - 1)","v":10},null,8]
[48,null,null,"Klein","Elias",2003,3,"Kirchberg",93,92,null,null,null,null,4,185,{"$f":"IF(P17=0,\" \",_xlfn.RANK.EQ(P17,$P$7:$P$206,0)+ COUNTIF(P$7:P17, P17) - 1)","v":11},null,8]
[103,null,null,"Segmüller","Nando",2003,3,"Altstätten",88,96,null,null,null,null,2,184,{"$f":"IF(P18=0,\" \",_xlfn.RANK.EQ(P18,$P$7:$P$206,0)+ COUNTIF(P$7:P18, P18) - 1)","v":12},null,5]
[125,null,null,"Ulmann","Jan ",2005,3,"Weissbad",90,93,null,null,null,null,2,183,{"$f":"IF(P19=0,\" \",_xlfn.RANK.EQ(P19,$P$7:$P$206,0)+ COUNTIF(P$7:P19, P19) - 1)","v":13},null,5]
[119,null,null,"Sutter","Natascha",2004,3,"Schönholzerswilen",89,93,null,null,null,null,4,182,{"$f":"IF(P20=0,\" \",_xlfn.RANK.EQ(P20,$P$7:$P$206,0)+ COUNTIF(P$7:P20, P20) - 1)","v":14},null,5]
[135,null,null,"Zumstein","Vincenza",2005,3,"Weissbad",92,90,null,null,null,null,2,182,{"$f":"IF(P21=0,\" \",_xlfn.RANK.EQ(P21,$P$7:$P$206,0)+ COUNTIF(P$7:P21, P21) - 1)","v":15},null,5]
[32,null,null,"Gad","Karim",2003,3,"Munot Schaffhausen",94,88,null,null,null,null,2,182,{"$f":"IF(P22=0,\" \",_xlfn.RANK.EQ(P22,$P$7:$P$206,0)+ COUNTIF(P$7:P22, P22) - 1)","v":16},null,5]
[35,null,null,"Gmünder","Janin",2005,3,"Weissbad",91,91,null,null,null,null,1,182,{"$f":"IF(P23=0,\" \",_xlfn.RANK.EQ(P23,$P$7:$P$206,0)+ COUNTIF(P$7:P23, P23) - 1)","v":17},null,5]
[59,null,null,"Locher","Livio",2002,3,"Weissbad",92,90,null,null,null,null,1,182,{"$f":"IF(P24=0,\" \",_xlfn.RANK.EQ(P24,$P$7:$P$206,0)+ COUNTIF(P$7:P24, P24) - 1)","v":18},null,5]
[100,null,null,"Schumacher","Manuel",2003,3,"Weinfelden",93,88,null,null,null,null,5,181,{"$f":"IF(P25=0,\" \",_xlfn.RANK.EQ(P25,$P$7:$P$206,0)+ COUNTIF(P$7:P25, P25) - 1)","v":19}]
[7,null,null,"Baumgartner","Michael",2003,3,"Munot Schaffhausen",87,93,null,null,null,null,3,180,{"$f":"IF(P26=0,\" \",_xlfn.RANK.EQ(P26,$P$7:$P$206,0)+ COUNTIF(P$7:P26, P26) - 1)","v":20}]
[16,null,null,"Brändli","Joya",2004,3,"Schönholzerswilen",86,92,null,null,null,null,5,178,{"$f":"IF(P27=0,\" \",_xlfn.RANK.EQ(P27,$P$7:$P$206,0)+ COUNTIF(P$7:P27, P27) - 1)","v":21}]
[5,null,null,"Auer","Tobias",2005,3,"Sitterdorf",90,88,null,null,null,null,0,178,{"$f":"IF(P28=0,\" \",_xlfn.RANK.EQ(P28,$P$7:$P$206,0)+ COUNTIF(P$7:P28, P28) - 1)","v":22}]
[78,null,null,"Oberholzer","Raffael ",2005,3,"Sitterdorf",88,89,null,null,null,null,1,177,{"$f":"IF(P29=0,\" \",_xlfn.RANK.EQ(P29,$P$7:$P$206,0)+ COUNTIF(P$7:P29, P29) - 1)","v":23}]
[99,null,null,"Schrittwieser","Thomas",2005,3,"Weinfelden",90,87,null,null,null,null,1,177,{"$f":"IF(P30=0,\" \",_xlfn.RANK.EQ(P30,$P$7:$P$206,0)+ COUNTIF(P$7:P30, P30) - 1)","v":24}]
[10,null,null,"Bernet","Kevin",2005,3,"Kirchberg",89,85,null,null,null,null,2,174,{"$f":"IF(P31=0,\" \",_xlfn.RANK.EQ(P31,$P$7:$P$206,0)+ COUNTIF(P$7:P31, P31) - 1)","v":25}]
[107,null,null,"Städler","Sven",2005,3,"Weissbad",87,87,null,null,null,null,1,174,{"$f":"IF(P32=0,\" \",_xlfn.RANK.EQ(P32,$P$7:$P$206,0)+ COUNTIF(P$7:P32, P32) - 1)","v":26}]
[19,null,null,"Brühlmann","David",2004,3,"Munot Schaffhausen",85,87,null,null,null,null,1,172,{"$f":"IF(P33=0,\" \",_xlfn.RANK.EQ(P33,$P$7:$P$206,0)+ COUNTIF(P$7:P33, P33) - 1)","v":27}]
[null,null,null,null,null,null,null,null,null,null,null,null,null,null,null,0,{"$f":"IF(P34=0,\" \",_xlfn.RANK.EQ(P34,$P$7:$P$206,0)+ COUNTIF(P$7:P34, P34) - 1)","v":" "}]
[null,null,null,null,null,null,null,null,null,null,null,null,null,null,null,0,{"$f":"IF(P35=0,\" \",_xlfn.RANK.EQ(P35,$P$7:$P$206,0)+ COUNTIF(P$7:P35, P35) - 1)","v":" "}]
[null,null,null,null,null,null,null,null,null,null,null,null,null,null,null,0,{"$f":"IF(P36=0,\" \",_xlfn.RANK.EQ(P36,$P$7:$P$206,0)+ COUNTIF(P$7:P36, P36) - 1)","v":" "}]
[null,null,null,null,null,null,null,null,null,null,null,null,null,null,null,0,{"$f":"IF(P37=0,\" \",_xlfn.RANK.EQ(P37,$P$7:$P$206,0)+ COUNTIF(P$7:P37, P37) - 1)","v":" "}]
[null,null,null,null,null,null,null,null,null,null,null,null,null,null,null,0,{"$f":"IF(P38=0,\" \",_xlfn.RANK.EQ(P38,$P$7:$P$206,0)+ COUNTIF(P$7:P38, P38) - 1)","v":" "}]
[null,null,null,null,null,null,null,null,null,null,null,null,null,null,null,{"$f":"SUM(I39:J39)","v":0},{"$f":"IF(P39=0,\" \",_xlfn.RANK.EQ(P39,$P$7:$P$206,0)+ COUNTIF(P$7:P39, P39) - 1)","v":" "}]
[null,null,null,null,null,null,null,null,null,null,null,null,null,null,null,0,{"$f":"IF(P40=0,\" \",_xlfn.RANK.EQ(P40,$P$7:$P$206,0)+ COUNTIF(P$7:P40, P40) - 1)","v":" "}]
[null,null,null,null,null,null,null,null,null,null,null,null,null,null,null,0,{"$f":"IF(P41=0,\" \",_xlfn.RANK.EQ(P41,$P$7:$P$206,0)+ COUNTIF(P$7:P41, P41) - 1)","v":" "}]
[null,null,null,null,null,null,null,null,null,null,null,null,null,null,null,0,{"$f":"IF(P42=0,\" \",_xlfn.RANK.EQ(P42,$P$7:$P$206,0)+ COUNTIF(P$7:P42, P42) - 1)","v":" "}]
[null,null,null,null,null,null,null,null,null,null,null,null,null,null,null,0,{"$f":"IF(P43=0,\" \",_xlfn.RANK.EQ(P43,$P$7:$P$206,0)+ COUNTIF(P$7:P43, P43) - 1)","v":" "}]
[null,null,null,null,null,null,null,null,null,null,null,null,null,null,null,0,{"$f":"IF(P44=0,\" \",_xlfn.RANK.EQ(P44,$P$7:$P$206,0)+ COUNTIF(P$7:P44, P44) - 1)","v":" "}]
[null,null,null,null,null,null,null,null,null,null,null,null,null,null,null,0,{"$f":"IF(P45=0,\" \",_xlfn.RANK.EQ(P45,$P$7:$P$206,0)+ COUNTIF(P$7:P45, P45) - 1)","v":" "}]
[null,null,null,null,null,null,null,null,null,null,null,null,null,null,null,0,{"$f":"IF(P46=0,\" \",_xlfn.RANK.EQ(P46,$P$7:$P$206,0)+ COUNTIF(P$7:P46, P46) - 1)","v":" "}]
[null,null,null,null,null,null,null,null,null,null,null,null,null,null,null,0,{"$f":"IF(P47=0,\" \",_xlfn.RANK.EQ(P47,$P$7:$P$206,0)+ COUNTIF(P$7:P47, P47) - 1)","v":" "}]
[null,null,null,null,null,null,null,null,null,null,null,null,null,null,null,0,{"$f":"IF(P48=0,\" \",_xlfn.RANK.EQ(P48,$P$7:$P$206,0)+ COUNTIF(P$7:P48, P48) - 1)","v":" "}]
[null,null,null,null,null,null,null,null,null,null,null,null,null,null,null,0,{"$f":"IF(P49=0,\" \",_xlfn.RANK.EQ(P49,$P$7:$P$206,0)+ COUNTIF(P$7:P49, P49) - 1)","v":" "}]
[null,null,null,null,null,null,null,null,null,null,null,null,null,null,null,0,{"$f":"IF(P50=0,\" \",_xlfn.RANK.EQ(P50,$P$7:$P$206,0)+ COUNTIF(P$7:P50, P50) - 1)","v":" "}]
[null,null,null,null,null,null,null,null,null,null,null,null,null,null,null,0,{"$f":"IF(P51=0,\" \",_xlfn.RANK.EQ(P51,$P$7:$P$206,0)+ COUNTIF(P$7:P51, P51) - 1)","v":" "}]
[null,null,null,null,null,null,null,null,null,null,null,null,null,null,null,0,{"$f":"IF(P52=0,\" \",_xlfn.RANK.EQ(P52,$P$7:$P$206,0)+ COUNTIF(P$7:P52, P52) - 1)","v":" "}]
[null,null,null,null,null,null,null,null,null,null,null,null,null,null,null,0,{"$f":"IF(P53=0,\" \",_xlfn.RANK.EQ(P53,$P$7:$P$206,0)+ COUNTIF(P$7:P53, P53) - 1)","v":" "}]
[null,null,null,null,null,null,null,null,null,null,null,null,null,null,null,0,{"$f":"IF(P54=0,\" \",_xlfn.RANK.EQ(P54,$P$7:$P$206,0)+ COUNTIF(P$7:P54, P54) - 1)","v":" "}]
[null,null,null,null,null,null,null,null,null,null,null,null,null,null,null,0,{"$f":"IF(P55=0,\" \",_xlfn.RANK.EQ(P55,$P$7:$P$206,0)+ COUNTIF(P$7:P55, P55) - 1)","v":" "}]
[null,null,null,null,null,null,null,null,null,null,null,null,null,null,null,0,{"$f":"IF(P56=0,\" \",_xlfn.RANK.EQ(P56,$P$7:$P$206,0)+ COUNTIF(P$7:P56, P56) - 1)","v":" "}]
[null,null,null,null,null,null,null,null,null,null,null,null,null,null,null,0,{"$f":"IF(P57=0,\" \",_xlfn.RANK.EQ(P57,$P$7:$P$206,0)+ COUNTIF(P$7:P57, P57) - 1)","v":" "}]
[null,null,null,null,null,null,null,null,null,null,null,null,null,null,null,0,{"$f":"IF(P58=0,\" \",_xlfn.RANK.EQ(P58,$P$7:$P$206,0)+ COUNTIF(P$7:P58, P58) - 1)","v":" "}]
[null,null,null,null,null,null,null,null,null,null,null,null,null,null,null,0,{"$f":"IF(P59=0,\" \",_xlfn.RANK.EQ(P59,$P$7:$P$206,0)+ COUNTIF(P$7:P59, P59) - 1)","v":" "}]
[null,null,null,null,null,null,null,null,null,null,null,null,null,null,null,0,{"$f":"IF(P60=0,\" \",_xlfn.RANK.EQ(P60,$P$7:$P$206,0)+ COUNTIF(P$7:P60, P60) - 1)","v":" "}]
[null,null,null,null,null,null,null,null,null,null,null,null,null,null,null,0,{"$f":"IF(P61=0,\" \",_xlfn.RANK.EQ(P61,$P$7:$P$206,0)+ COUNTIF(P$7:P61, P61) - 1)","v":" "}]
[null,null,null,null,null,null,null,null,null,null,null,null,null,null,null,0,{"$f":"IF(P62=0,\" \",_xlfn.RANK.EQ(P62,$P$7:$P$206,0)+ COUNTIF(P$7:P62, P62) - 1)","v":" "}]
[null,null,null,null,null,null,null,null,null,null,null,null,null,null,null,0,{"$f":"IF(P63=0,\" \",_xlfn.RANK.EQ(P63,$P$7:$P$206,0)+ COUNTIF(P$7:P63, P63) - 1)","v":" "}]
[null,null,null,null,null,null,null,null,null,null,null,null,null,null,null,0,{"$f":"IF(P64=0,\" \",_xlfn.RANK.EQ(P64,$P$7:$P$206,0)+ COUNTIF(P$7:P64, P64) - 1)","v":" "}]
[null,null,null,null,null,null,null,null,null,null,null,null,null,null,null,0,{"$f":"IF(P65=0,\" \",_xlfn.RANK.EQ(P65,$P$7:$P$206,0)+ COUNTIF(P$7:P65, P65) - 1)","v":" "}]
[null,null,null,null,null,null,null,null,null,null,null,null,null,null,null,0,{"$f":"IF(P66=0,\" \",_xlfn.RANK.EQ(P66,$P$7:$P$206,0)+ COUNTIF(P$7:P66, P66) - 1)","v":" "}]
[null,null,null,null,null,null,null,null,null,null,null,null,null,null,null,0,{"$f":"IF(P67=0,\" \",_xlfn.RANK.EQ(P67,$P$7:$P$206,0)+ COUNTIF(P$7:P67, P67) - 1)","v":" "}]
[null,null,null,null,null,null,null,null,null,null,null,null,null,null,null,0,{"$f":"IF(P68=0,\" \",_xlfn.RANK.EQ(P68,$P$7:$P$206,0)+ COUNTIF(P$7:P68, P68) - 1)","v":" "}]
[null,null,null,null,null,null,null,null,null,null,null,null,null,null,null,0,{"$f":"IF(P69=0,\" \",_xlfn.RANK.EQ(P69,$P$7:$P$206,0)+ COUNTIF(P$7:P69, P69) - 1)","v":" "}]
[null,null,null,null,null,null,null,null,null,null,null,null,null,null,null,0,{"$f":"IF(P70=0,\" \",_xlfn.RANK.EQ(P70,$P$7:$P$206,0)+ COUNTIF(P$7:P70, P70) - 1)","v":" "}]
[null,null,null,null,null,null,null,null,null,null,null,null,null,null,null,{"$f":"SUM(I71:J71)","v":0},{"$f":"IF(P71=0,\" \",_xlfn.RANK.EQ(P71,$P$7:$P$206,0)+ COUNTIF(P$7:P71, P71) - 1)","v":" "}]
[null,null,null,null,null,null,null,null,null,null,null,null,null,null,null,0,{"$f":"IF(P72=0,\" \",_xlfn.RANK.EQ(P72,$P$7:$P$206,0)+ COUNTIF(P$7:P72, P72) - 1)","v":" "}]
[null,null,null,null,null,null,null,null,null,null,null,null,null,null,null,0,{"$f":"IF(P73=0,\" \",_xlfn.RANK.EQ(P73,$P$7:$P$206,0)+ COUNTIF(P$7:P73, P73) - 1)","v":" "}]
[null,null,null,null,null,null,null,null,null,null,null,null,null,null,null,0,{"$f":"IF(P74=0,\" \",_xlfn.RANK.EQ(P74,$P$7:$P$206,0)+ COUNTIF(P$7:P74, P74) - 1)","v":" "}]
[null,null,null,null,null,null,null,null,null,null,null,null,null,null,null,0,{"$f":"IF(P75=0,\" \",_xlfn.RANK.EQ(P75,$P$7:$P$206,0)+ COUNTIF(P$7:P75, P75) - 1)","v":" "}]
[null,null,null,null,null,null,null,null,null,null,null,null,null,null,null,0,{"$f":"IF(P76=0,\" \",_xlfn.RANK.EQ(P76,$P$7:$P$206,0)+ COUNTIF(P$7:P76, P76) - 1)","v":" "}]
[null,null,null,null,null,null,null,null,null,null,null,null,null,null,null,0,{"$f":"IF(P77=0,\" \",_xlfn.RANK.EQ(P77,$P$7:$P$206,0)+ COUNTIF(P$7:P77, P77) - 1)","v":" "}]
[null,null,null,null,null,null,null,null,null,null,null,null,null,null,null,0,{"$f":"IF(P78=0,\" \",_xlfn.RANK.EQ(P78,$P$7:$P$206,0)+ COUNTIF(P$7:P78, P78) - 1)","v":" "}]
[null,null,null,null,null,null,null,null,null,null,null,null,null,null,null,0,{"$f":"IF(P79=0,\" \",_xlfn.RANK.EQ(P79,$P$7:$P$206,0)+ COUNTIF(P$7:P79, P79) - 1)","v":" "}]
[null,null,null,null,null,null,null,null,null,null,null,null,null,null,null,0,{"$f":"IF(P80=0,\" \",_xlfn.RANK.EQ(P80,$P$7:$P$206,0)+ COUNTIF(P$7:P80, P80) - 1)","v":" "}]
[null,null,null,null,null,null,null,null,null,null,null,null,null,null,null,0,{"$f":"IF(P81=0,\" \",_xlfn.RANK.EQ(P81,$P$7:$P$206,0)+ COUNTIF(P$7:P81, P81) - 1)","v":" "}]
[null,null,null,null,null,null,null,null,null,null,null,null,null,null,null,0,{"$f":"IF(P82=0,\" \",_xlfn.RANK.EQ(P82,$P$7:$P$206,0)+ COUNTIF(P$7:P82, P82) - 1)","v":" "}]
[null,null,null,null,null,null,null,null,null,null,null,null,null,null,null,0,{"$f":"IF(P83=0,\" \",_xlfn.RANK.EQ(P83,$P$7:$P$206,0)+ COUNTIF(P$7:P83, P83) - 1)","v":" "}]
[null,null,null,null,null,null,null,null,null,null,null,null,null,null,null,0,{"$f":"IF(P84=0,\" \",_xlfn.RANK.EQ(P84,$P$7:$P$206,0)+ COUNTIF(P$7:P84, P84) - 1)","v":" "}]
[null,null,null,null,null,null,null,null,null,null,null,null,null,null,null,0,{"$f":"IF(P85=0,\" \",_xlfn.RANK.EQ(P85,$P$7:$P$206,0)+ COUNTIF(P$7:P85, P85) - 1)","v":" "}]
[null,null,null,null,null,null,null,null,null,null,null,null,null,null,null,0,{"$f":"IF(P86=0,\" \",_xlfn.RANK.EQ(P86,$P$7:$P$206,0)+ COUNTIF(P$7:P86, P86) - 1)","v":" "}]
[null,null,null,null,null,null,null,null,null,null,null,null,null,null,null,0,{"$f":"IF(P87=0,\" \",_xlfn.RANK.EQ(P87,$P$7:$P$206,0)+ COUNTIF(P$7:P87, P87) - 1)","v":" "}]
[null,null,null,null,null,null,null,null,null,null,null,null,null,null,null,0,{"$f":"IF(P88=0,\" \",_xlfn.RANK.EQ(P88,$P$7:$P$206,0)+ COUNTIF(P$7:P88, P88) - 1)","v":" "}]
[null,null,null,null,null,null,null,null,null,null,null,null,null,null,null,0,{"$f":"IF(P89=0,\" \",_xlfn.RANK.EQ(P89,$P$7:$P$206,0)+ COUNTIF(P$7:P89, P89) - 1)","v":" "}]
[null,null,null,null,null,null,null,null,null,null,null,null,null,null,null,0,{"$f":"IF(P90=0,\" \",_xlfn.RANK.EQ(P90,$P$7:$P$206,0)+ COUNTIF(P$7:P90, P90) - 1)","v":" "}]
[null,null,null,null,null,null,null,null,null,null,null,null,null,null,null,0,{"$f":"IF(P91=0,\" \",_xlfn.RANK.EQ(P91,$P$7:$P$206,0)+ COUNTIF(P$7:P91, P91) - 1)","v":" "}]
[null,null,null,null,null,null,null,null,null,null,null,null,null,null,null,0,{"$f":"IF(P92=0,\" \",_xlfn.RANK.EQ(P92,$P$7:$P$206,0)+ COUNTIF(P$7:P92, P92) - 1)","v":" "}]
[null,null,null,null,null,null,null,null,null,null,null,null,null,null,null,0,{"$f":"IF(P93=0,\" \",_xlfn.RANK.EQ(P93,$P$7:$P$206,0)+ COUNTIF(P$7:P93, P93) - 1)","v":" "}]
[null,null,null,null,null,null,null,null,null,null,null,null,null,null,null,0,{"$f":"IF(P94=0,\" \",_xlfn.RANK.EQ(P94,$P$7:$P$206,0)+ COUNTIF(P$7:P94, P94) - 1)","v":" "}]
[null,null,null,null,null,null,null,null,null,null,null,null,null,null,null,0,{"$f":"IF(P95=0,\" \",_xlfn.RANK.EQ(P95,$P$7:$P$206,0)+ COUNTIF(P$7:P95, P95) - 1)","v":" "}]
[null,null,null,null,null,null,null,null,null,null,null,null,null,null,null,0,{"$f":"IF(P96=0,\" \",_xlfn.RANK.EQ(P96,$P$7:$P$206,0)+ COUNTIF(P$7:P96, P96) - 1)","v":" "}]
[null,null,null,null,null,null,null,null,null,null,null,null,null,null,null,0,{"$f":"IF(P97=0,\" \",_xlfn.RANK.EQ(P97,$P$7:$P$206,0)+ COUNTIF(P$7:P97, P97) - 1)","v":" "}]
[null,null,null,null,null,null,null,null,null,null,null,null,null,null,null,0,{"$f":"IF(P98=0,\" \",_xlfn.RANK.EQ(P98,$P$7:$P$206,0)+ COUNTIF(P$7:P98, P98) - 1)","v":" "}]
[null,null,null,null,null,null,null,null,null,null,null,null,null,null,null,0,{"$f":"IF(P99=0,\" \",_xlfn.RANK.EQ(P99,$P$7:$P$206,0)+ COUNTIF(P$7:P99, P99) - 1)","v":" "}]
[null,null,null,null,null,null,null,null,null,null,null,null,null,null,null,0,{"$f":"IF(P100=0,\" \",_xlfn.RANK.EQ(P100,$P$7:$P$206,0)+ COUNTIF(P$7:P100, P100) - 1)","v":" "}]
[null,null,null,null,null,null,null,null,null,null,null,null,null,null,null,0,{"$f":"IF(P101=0,\" \",_xlfn.RANK.EQ(P101,$P$7:$P$206,0)+ COUNTIF(P$7:P101, P101) - 1)","v":" "}]
[null,null,null,null,null,null,null,null,null,null,null,null,null,null,null,0,{"$f":"IF(P102=0,\" \",_xlfn.RANK.EQ(P102,$P$7:$P$206,0)+ COUNTIF(P$7:P102, P102) - 1)","v":" "}]
[null,null,null,null,null,null,null,null,null,null,null,null,null,null,null,{"$f":"SUM(I103:J103)","v":0},{"$f":"IF(P103=0,\" \",_xlfn.RANK.EQ(P103,$P$7:$P$206,0)+ COUNTIF(P$7:P103, P103) - 1)","v":" "}]
[null,null,null,null,null,null,null,null,null,null,null,null,null,null,null,0,{"$f":"IF(P104=0,\" \",_xlfn.RANK.EQ(P104,$P$7:$P$206,0)+ COUNTIF(P$7:P104, P104) - 1)","v":" "}]
[null,null,null,null,null,null,null,null,null,null,null,null,null,null,null,0,{"$f":"IF(P105=0,\" \",_xlfn.RANK.EQ(P105,$P$7:$P$206,0)+ COUNTIF(P$7:P105, P105) - 1)","v":" "}]
[null,null,null,null,null,null,null,null,null,null,null,null,null,null,null,0,{"$f":"IF(P106=0,\" \",_xlfn.RANK.EQ(P106,$P$7:$P$206,0)+ COUNTIF(P$7:P106, P106) - 1)","v":" "}]
[null,null,null,null,null,null,null,null,null,null,null,null,null,null,null,0,{"$f":"IF(P107=0,\" \",_xlfn.RANK.EQ(P107,$P$7:$P$206,0)+ COUNTIF(P$7:P107, P107) - 1)","v":" "}]
[null,null,null,null,null,null,null,null,null,null,null,null,null,null,null,0,{"$f":"IF(P108=0,\" \",_xlfn.RANK.EQ(P108,$P$7:$P$206,0)+ COUNTIF(P$7:P108, P108) - 1)","v":" "}]
[null,null,null,null,null,null,null,null,null,null,null,null,null,null,null,0,{"$f":"IF(P109=0,\" \",_xlfn.RANK.EQ(P109,$P$7:$P$206,0)+ COUNTIF(P$7:P109, P109) - 1)","v":" "}]
[null,null,null,null,null,null,null,null,null,null,null,null,null,null,null,0,{"$f":"IF(P110=0,\" \",_xlfn.RANK.EQ(P110,$P$7:$P$206,0)+ COUNTIF(P$7:P110, P110) - 1)","v":" "}]
[null,null,null,null,null,null,null,null,null,null,null,null,null,null,null,0,{"$f":"IF(P111=0,\" \",_xlfn.RANK.EQ(P111,$P$7:$P$206,0)+ COUNTIF(P$7:P111, P111) - 1)","v":" "}]
[null,null,null,null,null,null,null,null,null,null,null,null,null,null,null,0,{"$f":"IF(P112=0,\" \",_xlfn.RANK.EQ(P112,$P$7:$P$206,0)+ COUNTIF(P$7:P112, P112) - 1)","v":" "}]
[null,null,null,null,null,null,null,null,null,null,null,null,null,null,null,0,{"$f":"IF(P113=0,\" \",_xlfn.RANK.EQ(P113,$P$7:$P$206,0)+ COUNTIF(P$7:P113, P113) - 1)","v":" "}]
[null,null,null,null,null,null,null,null,null,null,null,null,null,null,null,0,{"$f":"IF(P114=0,\" \",_xlfn.RANK.EQ(P114,$P$7:$P$206,0)+ COUNTIF(P$7:P114, P114) - 1)","v":" "}]
[null,null,null,null,null,null,null,null,null,null,null,null,null,null,null,0,{"$f":"IF(P115=0,\" \",_xlfn.RANK.EQ(P115,$P$7:$P$206,0)+ COUNTIF(P$7:P115, P115) - 1)","v":" "}]
[null,null,null,null,null,null,null,null,null,null,null,null,null,null,null,0,{"$f":"IF(P116=0,\" \",_xlfn.RANK.EQ(P116,$P$7:$P$206,0)+ COUNTIF(P$7:P116, P116) - 1)","v":" "}]
[null,null,null,null,null,null,null,null,null,null,null,null,null,null,null,0,{"$f":"IF(P117=0,\" \",_xlfn.RANK.EQ(P117,$P$7:$P$206,0)+ COUNTIF(P$7:P117, P117) - 1)","v":" "}]
[null,null,null,null,null,null,null,null,null,null,null,null,null,null,null,0,{"$f":"IF(P118=0,\" \",_xlfn.RANK.EQ(P118,$P$7:$P$206,0)+ COUNTIF(P$7:P118, P118) - 1)","v":" "}]
[null,null,null,null,null,null,null,null,null,null,null,null,null,null,null,0,{"$f":"IF(P119=0,\" \",_xlfn.RANK.EQ(P119,$P$7:$P$206,0)+ COUNTIF(P$7:P119, P119) - 1)","v":" "}]
[null,null,null,null,null,null,null,null,null,null,null,null,null,null,null,0,{"$f":"IF(P120=0,\" \",_xlfn.RANK.EQ(P120,$P$7:$P$206,0)+ COUNTIF(P$7:P120, P120) - 1)","v":" "}]
[null,null,null,null,null,null,null,null,null,null,null,null,null,null,null,0,{"$f":"IF(P121=0,\" \",_xlfn.RANK.EQ(P121,$P$7:$P$206,0)+ COUNTIF(P$7:P121, P121) - 1)","v":" "}]
[null,null,null,null,null,null,null,null,null,null,null,null,null,null,null,0,{"$f":"IF(P122=0,\" \",_xlfn.RANK.EQ(P122,$P$7:$P$206,0)+ COUNTIF(P$7:P122, P122) - 1)","v":" "}]
[null,null,null,null,null,null,null,null,null,null,null,null,null,null,null,0,{"$f":"IF(P123=0,\" \",_xlfn.RANK.EQ(P123,$P$7:$P$206,0)+ COUNTIF(P$7:P123, P123) - 1)","v":" "}]
[null,null,null,null,null,null,null,null,null,null,null,null,null,null,null,0,{"$f":"IF(P124=0,\" \",_xlfn.RANK.EQ(P124,$P$7:$P$206,0)+ COUNTIF(P$7:P124, P124) - 1)","v":" "}]
[null,null,null,null,null,null,null,null,null,null,null,null,null,null,null,0,{"$f":"IF(P125=0,\" \",_xlfn.RANK.EQ(P125,$P$7:$P$206,0)+ COUNTIF(P$7:P125, P125) - 1)","v":" "}]
[null,null,null,null,null,null,null,null,null,null,null,null,null,null,null,0,{"$f":"IF(P126=0,\" \",_xlfn.RANK.EQ(P126,$P$7:$P$206,0)+ COUNTIF(P$7:P126, P126) - 1)","v":" "}]
[null,null,null,null,null,null,null,null,null,null,null,null,null,null,null,0,{"$f":"IF(P127=0,\" \",_xlfn.RANK.EQ(P127,$P$7:$P$206,0)+ COUNTIF(P$7:P127, P127) - 1)","v":" "}]
[null,null,null,null,null,null,null,null,null,null,null,null,null,null,null,0,{"$f":"IF(P128=0,\" \",_xlfn.RANK.EQ(P128,$P$7:$P$206,0)+ COUNTIF(P$7:P128, P128) - 1)","v":" "}]
[null,null,null,null,null,null,null,null,null,null,null,null,null,null,null,0,{"$f":"IF(P129=0,\" \",_xlfn.RANK.EQ(P129,$P$7:$P$206,0)+ COUNTIF(P$7:P129, P129) - 1)","v":" "}]
[null,null,null,null,null,null,null,null,null,null,null,null,null,null,null,0,{"$f":"IF(P130=0,\" \",_xlfn.RANK.EQ(P130,$P$7:$P$206,0)+ COUNTIF(P$7:P130, P130) - 1)","v":" "}]
[null,null,null,null,null,null,null,null,null,null,null,null,null,null,null,0,{"$f":"IF(P131=0,\" \",_xlfn.RANK.EQ(P131,$P$7:$P$206,0)+ COUNTIF(P$7:P131, P131) - 1)","v":" "}]
[null,null,null,null,null,null,null,null,null,null,null,null,null,null,null,0,{"$f":"IF(P132=0,\" \",_xlfn.RANK.EQ(P132,$P$7:$P$206,0)+ COUNTIF(P$7:P132, P132) - 1)","v":" "}]
[null,null,null,null,null,null,null,null,null,null,null,null,null,null,null,0,{"$f":"IF(P133=0,\" \",_xlfn.RANK.EQ(P133,$P$7:$P$206,0)+ COUNTIF(P$7:P133, P133) - 1)","v":" "}]
[null,null,null,null,null,null,null,null,null,null,null,null,null,null,null,0,{"$f":"IF(P134=0,\" \",_xlfn.RANK.EQ(P134,$P$7:$P$206,0)+ COUNTIF(P$7:P134, P134) - 1)","v":" "}]
[null,null,null,null,null,null,null,null,null,null,null,null,null,null,null,{"$f":"SUM(I135:J135)","v":0},{"$f":"IF(P135=0,\" \",_xlfn.RANK.EQ(P135,$P$7:$P$206,0)+ COUNTIF(P$7:P135, P135) - 1)","v":" "}]
[null,null,null,null,null,null,null,null,null,null,null,null,null,null,null,0,{"$f":"IF(P136=0,\" \",_xlfn.RANK.EQ(P136,$P$7:$P$206,0)+ COUNTIF(P$7:P136, P136) - 1)","v":" "}]
[null,null,null,null,null,null,null,null,null,null,null,null,null,null,null,0,{"$f":"IF(P137=0,\" \",_xlfn.RANK.EQ(P137,$P$7:$P$206,0)+ COUNTIF(P$7:P137, P137) - 1)","v":" "}]
[null,null,null,null,null,null,null,null,null,null,null,null,null,null,null,0,{"$f":"IF(P138=0,\" \",_xlfn.RANK.EQ(P138,$P$7:$P$206,0)+ COUNTIF(P$7:P138, P138) - 1)","v":" "}]
[null,null,null,null,null,null,null,null,null,null,null,null,null,null,null,0,{"$f":"IF(P139=0,\" \",_xlfn.RANK.EQ(P139,$P$7:$P$206,0)+ COUNTIF(P$7:P139, P139) - 1)","v":" "}]
[null,null,null,null,null,null,null,null,null,null,null,null,null,null,null,0,{"$f":"IF(P140=0,\" \",_xlfn.RANK.EQ(P140,$P$7:$P$206,0)+ COUNTIF(P$7:P140, P140) - 1)","v":" "}]
[null,null,null,null,null,null,null,null,null,null,null,null,null,null,null,0,{"$f":"IF(P141=0,\" \",_xlfn.RANK.EQ(P141,$P$7:$P$206,0)+ COUNTIF(P$7:P141, P141) - 1)","v":" "}]
[null,null,null,null,null,null,null,null,null,null,null,null,null,null,null,0,{"$f":"IF(P142=0,\" \",_xlfn.RANK.EQ(P142,$P$7:$P$206,0)+ COUNTIF(P$7:P142, P142) - 1)","v":" "}]
[null,null,null,null,null,null,null,null,null,null,null,null,null,null,null,0,{"$f":"IF(P143=0,\" \",_xlfn.RANK.EQ(P143,$P$7:$P$206,0)+ COUNTIF(P$7:P143, P143) - 1)","v":" "}]
[null,null,null,null,null,null,null,null,null,null,null,null,null,null,null,0,{"$f":"IF(P144=0,\" \",_xlfn.RANK.EQ(P144,$P$7:$P$206,0)+ COUNTIF(P$7:P144, P144) - 1)","v":" "}]
[null,null,null,null,null,null,null,null,null,null,null,null,null,null,null,0,{"$f":"IF(P145=0,\" \",_xlfn.RANK.EQ(P145,$P$7:$P$206,0)+ COUNTIF(P$7:P145, P145) - 1)","v":" "}]
[null,null,null,null,null,null,null,null,null,null,null,null,null,null,null,0,{"$f":"IF(P146=0,\" \",_xlfn.RANK.EQ(P146,$P$7:$P$206,0)+ COUNTIF(P$7:P146, P146) - 1)","v":" "}]
[null,null,null,null,null,null,null,null,null,null,null,null,null,null,null,0,{"$f":"IF(P147=0,\" \",_xlfn.RANK.EQ(P147,$P$7:$P$206,0)+ COUNTIF(P$7:P147, P147) - 1)","v":" "}]
[null,null,null,null,null,null,null,null,null,null,null,null,null,null,null,0,{"$f":"IF(P148=0,\" \",_xlfn.RANK.EQ(P148,$P$7:$P$206,0)+ COUNTIF(P$7:P148, P148) - 1)","v":" "}]
[null,null,null,null,null,null,null,null,null,null,null,null,null,null,null,0,{"$f":"IF(P149=0,\" \",_xlfn.RANK.EQ(P149,$P$7:$P$206,0)+ COUNTIF(P$7:P149, P149) - 1)","v":" "}]
[null,null,null,null,null,null,null,null,null,null,null,null,null,null,null,0,{"$f":"IF(P150=0,\" \",_xlfn.RANK.EQ(P150,$P$7:$P$206,0)+ COUNTIF(P$7:P150, P150) - 1)","v":" "}]
[null,null,null,null,null,null,null,null,null,null,null,null,null,null,null,0,{"$f":"IF(P151=0,\" \",_xlfn.RANK.EQ(P151,$P$7:$P$206,0)+ COUNTIF(P$7:P151, P151) - 1)","v":" "}]
[null,null,null,null,null,null,null,null,null,null,null,null,null,null,null,0,{"$f":"IF(P152=0,\" \",_xlfn.RANK.EQ(P152,$P$7:$P$206,0)+ COUNTIF(P$7:P152, P152) - 1)","v":" "}]
[null,null,null,null,null,null,null,null,null,null,null,null,null,null,null,0,{"$f":"IF(P153=0,\" \",_xlfn.RANK.EQ(P153,$P$7:$P$206,0)+ COUNTIF(P$7:P153, P153) - 1)","v":" "}]
[null,null,null,null,null,null,null,null,null,null,null,null,null,null,null,0,{"$f":"IF(P154=0,\" \",_xlfn.RANK.EQ(P154,$P$7:$P$206,0)+ COUNTIF(P$7:P154, P154) - 1)","v":" "}]
[null,null,null,null,null,null,null,null,null,null,null,null,null,null,null,0,{"$f":"IF(P155=0,\" \",_xlfn.RANK.EQ(P155,$P$7:$P$206,0)+ COUNTIF(P$7:P155, P155) - 1)","v":" "}]
[null,null,null,null,null,null,null,null,null,null,null,null,null,null,null,0,{"$f":"IF(P156=0,\" \",_xlfn.RANK.EQ(P156,$P$7:$P$206,0)+ COUNTIF(P$7:P156, P156) - 1)","v":" "}]
[null,null,null,null,null,null,null,null,null,null,null,null,null,null,null,0,{"$f":"IF(P157=0,\" \",_xlfn.RANK.EQ(P157,$P$7:$P$206,0)+ COUNTIF(P$7:P157, P157) - 1)","v":" "}]
[null,null,null,null,null,null,null,null,null,null,null,null,null,null,null,0,{"$f":"IF(P158=0,\" \",_xlfn.RANK.EQ(P158,$P$7:$P$206,0)+ COUNTIF(P$7:P158, P158) - 1)","v":" "}]
[null,null,null,null,null,null,null,null,null,null,null,null,null,null,null,0,{"$f":"IF(P159=0,\" \",_xlfn.RANK.EQ(P159,$P$7:$P$206,0)+ COUNTIF(P$7:P159, P159) - 1)","v":" "}]
[null,null,null,null,null,null,null,null,null,null,null,null,null,null,null,0,{"$f":"IF(P160=0,\" \",_xlfn.RANK.EQ(P160,$P$7:$P$206,0)+ COUNTIF(P$7:P160, P160) - 1)","v":" "}]
[null,null,null,null,null,null,null,null,null,null,null,null,null,null,null,0,{"$f":"IF(P161=0,\" \",_xlfn.RANK.EQ(P161,$P$7:$P$206,0)+ COUNTIF(P$7:P161, P161) - 1)","v":" "}]
[null,null,null,null,null,null,null,null,null,null,null,null,null,null,null,0,{"$f":"IF(P162=0,\" \",_xlfn.RANK.EQ(P162,$P$7:$P$206,0)+ COUNTIF(P$7:P162, P162) - 1)","v":" "}]
[null,null,null,null,null,null,null,null,null,null,null,null,null,null,null,0,{"$f":"IF(P163=0,\" \",_xlfn.RANK.EQ(P163,$P$7:$P$206,0)+ COUNTIF(P$7:P163, P163) - 1)","v":" "}]
[null,null,null,null,null,null,null,null,null,null,null,null,null,null,null,0,{"$f":"IF(P164=0,\" \",_xlfn.RANK.EQ(P164,$P$7:$P$206,0)+ COUNTIF(P$7:P164, P164) - 1)","v":" "}]
[null,null,null,null,null,null,null,null,null,null,null,null,null,null,null,0,{"$f":"IF(P165=0,\" \",_xlfn.RANK.EQ(P165,$P$7:$P$206,0)+ COUNTIF(P$7:P165, P165) - 1)","v":" "}]
[null,null,null,null,null,null,null,null,null,null,null,null,null,null,null,0,{"$f":"IF(P166=0,\" \",_xlfn.RANK.EQ(P166,$P$7:$P$206,0)+ COUNTIF(P$7:P166, P166) - 1)","v":" "}]
[null,null,null,null,null,null,null,null,null,null,null,null,null,null,null,{"$f":"SUM(I167:J167)","v":0},{"$f":"IF(P167=0,\" \",_xlfn.RANK.EQ(P167,$P$7:$P$206,0)+ COUNTIF(P$7:P167, P167) - 1)","v":" "}]
[null,null,null,null,null,null,null,null,null,null,null,null,null,null,null,0,{"$f":"IF(P168=0,\" \",_xlfn.RANK.EQ(P168,$P$7:$P$206,0)+ COUNTIF(P$7:P168, P168) - 1)","v":" "}]
[null,null,null,null,null,null,null,null,null,null,null,null,null,null,null,0,{"$f":"IF(P169=0,\" \",_xlfn.RANK.EQ(P169,$P$7:$P$206,0)+ COUNTIF(P$7:P169, P169) - 1)","v":" "}]
[null,null,null,null,null,null,null,null,null,null,null,null,null,null,null,0,{"$f":"IF(P170=0,\" \",_xlfn.RANK.EQ(P170,$P$7:$P$206,0)+ COUNTIF(P$7:P170, P170) - 1)","v":" "}]
[null,null,null,null,null,null,null,null,null,null,null,null,null,null,null,0,{"$f":"IF(P171=0,\" \",_xlfn.RANK.EQ(P171,$P$7:$P$206,0)+ COUNTIF(P$7:P171, P171) - 1)","v":" "}]
[null,null,null,null,null,null,null,null,null,null,null,null,null,null,null,0,{"$f":"IF(P172=0,\" \",_xlfn.RANK.EQ(P172,$P$7:$P$206,0)+ COUNTIF(P$7:P172, P172) - 1)","v":" "}]
[null,null,null,null,null,null,null,null,null,null,null,null,null,null,null,0,{"$f":"IF(P173=0,\" \",_xlfn.RANK.EQ(P173,$P$7:$P$206,0)+ COUNTIF(P$7:P173, P173) - 1)","v":" "}]
[null,null,null,null,null,null,null,null,null,null,null,null,null,null,null,0,{"$f":"IF(P174=0,\" \",_xlfn.RANK.EQ(P174,$P$7:$P$206,0)+ COUNTIF(P$7:P174, P174) - 1)","v":" "}]
[null,null,null,null,null,null,null,null,null,null,null,null,null,null,null,0,{"$f":"IF(P175=0,\" \",_xlfn.RANK.EQ(P175,$P$7:$P$206,0)+ COUNTIF(P$7:P175, P175) - 1)","v":" "}]
[null,null,null,null,null,null,null,null,null,null,null,null,null,null,null,0,{"$f":"IF(P176=0,\" \",_xlfn.RANK.EQ(P176,$P$7:$P$206,0)+ COUNTIF(P$7:P176, P176) - 1)","v":" "}]
[null,null,null,null,null,null,null,null,null,null,null,null,null,null,null,0,{"$f":"IF(P177=0,\" \",_xlfn.RANK.EQ(P177,$P$7:$P$206,0)+ COUNTIF(P$7:P177, P177) - 1)","v":" "}]
[null,null,null,null,null,null,null,null,null,null,null,null,null,null,null,0,{"$f":"IF(P178=0,\" \",_xlfn.RANK.EQ(P178,$P$7:$P$206,0)+ COUNTIF(P$7:P178, P178) - 1)","v":" "}]
[null,null,null,null,null,null,null,null,null,null,null,null,null,null,null,0,{"$f":"IF(P179=0,\" \",_xlfn.RANK.EQ(P179,$P$7:$P$206,0)+ COUNTIF(P$7:P179, P179) - 1)","v":" "}]
[null,null,null,null,null,null,null,null,null,null,null,null,null,null,null,0,{"$f":"IF(P180=0,\" \",_xlfn.RANK.EQ(P180,$P$7:$P$206,0)+ COUNTIF(P$7:P180, P180) - 1)","v":" "}]
[null,null,null,null,null,null,null,null,null,null,null,null,null,null,null,0,{"$f":"IF(P181=0,\" \",_xlfn.RANK.EQ(P181,$P$7:$P$206,0)+ COUNTIF(P$7:P181, P181) - 1)","v":" "}]
[null,null,null,null,null,null,null,null,null,null,null,null,null,null,null,0,{"$f":"IF(P182=0,\" \",_xlfn.RANK.EQ(P182,$P$7:$P$206,0)+ COUNTIF(P$7:P182, P182) - 1)","v":" "}]
[null,null,null,null,null,null,null,null,null,null,null,null,null,null,null,0,{"$f":"IF(P183=0,\" \",_xlfn.RANK.EQ(P183,$P$7:$P$206,0)+ COUNTIF(P$7:P183, P183) - 1)","v":" "}]
[null,null,null,null,null,null,null,null,null,null,null,null,null,null,null,0,{"$f":"IF(P184=0,\" \",_xlfn.RANK.EQ(P184,$P$7:$P$206,0)+ COUNTIF(P$7:P184, P184) - 1)","v":" "}]
[null,null,null,null,null,null,null,null,null,null,null,null,null,null,null,0,{"$f":"IF(P185=0,\" \",_xlfn.RANK.EQ(P185,$P$7:$P$206,0)+ COUNTIF(P$7:P185, P185) - 1)","v":" "}]
[null,null,null,null,null,null,null,null,null,null,null,null,null,null,null,0,{"$f":"IF(P186=0,\" \",_xlfn.RANK.EQ(P186,$P$7:$P$206,0)+ COUNTIF(P$7:P186, P186) - 1)","v":" "}]
[null,null,null,null,null,null,null,null,null,null,null,null,null,null,null,0,{"$f":"IF(P187=0,\" \",_xlfn.RANK.EQ(P187,$P$7:$P$206,0)+ COUNTIF(P$7:P187, P187) - 1)","v":" "}]
[null,null,null,null,null,null,null,null,null,null,null,null,null,null,null,0,{"$f":"IF(P188=0,\" \",_xlfn.RANK.EQ(P188,$P$7:$P$206,0)+ COUNTIF(P$7:P188, P188) - 1)","v":" "}]
[null,null,null,null,null,null,null,null,null,null,null,null,null,null,null,0,{"$f":"IF(P189=0,\" \",_xlfn.RANK.EQ(P189,$P$7:$P$206,0)+ COUNTIF(P$7:P189, P189) - 1)","v":" "}]
[null,null,null,null,null,null,null,null,null,null,null,null,null,null,null,0,{"$f":"IF(P190=0,\" \",_xlfn.RANK.EQ(P190,$P$7:$P$206,0)+ COUNTIF(P$7:P190, P190) - 1)","v":" "}]
[null,null,null,null,null,null,null,null,null,null,null,null,null,null,null,0,{"$f":"IF(P191=0,\" \",_xlfn.RANK.EQ(P191,$P$7:$P$206,0)+ COUNTIF(P$7:P191, P191) - 1)","v":" "}]
[null,null,null,null,null,null,null,null,null,null,null,null,null,null,null,0,{"$f":"IF(P192=0,\" \",_xlfn.RANK.EQ(P192,$P$7:$P$206,0)+ COUNTIF(P$7:P192, P192) - 1)","v":" "}]
[null,null,null,null,null,null,null,null,null,null,null,null,null,null,null,0,{"$f":"IF(P193=0,\" \",_xlfn.RANK.EQ(P193,$P$7:$P$206,0)+ COUNTIF(P$7:P193, P193) - 1)","v":" "}]
[null,null,null,null,null,null,null,null,null,null,null,null,null,null,null,0,{"$f":"IF(P194=0,\" \",_xlfn.RANK.EQ(P194,$P$7:$P$206,0)+ COUNTIF(P$7:P194, P194) - 1)","v":" "}]
[null,null,null,null,null,null,null,null,null,null,null,null,null,null,null,0,{"$f":"IF(P195=0,\" \",_xlfn.RANK.EQ(P195,$P$7:$P$206,0)+ COUNTIF(P$7:P195, P195) - 1)","v":" "}]
[null,null,null,null,null,null,null,null,null,null,null,null,null,null,null,0,{"$f":"IF(P196=0,\" \",_xlfn.RANK.EQ(P196,$P$7:$P$206,0)+ COUNTIF(P$7:P196, P196) - 1)","v":" "}]
[null,null,null,null,null,null,null,null,null,null,null,null,null,null,null,0,{"$f":"IF(P197=0,\" \",_xlfn.RANK.EQ(P197,$P$7:$P$206,0)+ COUNTIF(P$7:P197, P197) - 1)","v":" "}]
[null,null,null,null,null,null,null,null,null,null,null,null,null,null,null,0,{"$f":"IF(P198=0,\" \",_xlfn.RANK.EQ(P198,$P$7:$P$206,0)+ COUNTIF(P$7:P198, P198) - 1)","v":" "}]
[null,null,null,null,null,null,null,null,null,null,null,null,null,null,null,{"$f":"SUM(I199:J199)","v":0},{"$f":"IF(P199=0,\" \",_xlfn.RANK.EQ(P199,$P$7:$P$206,0)+ COUNTIF(P$7:P199, P199) - 1)","v":" "}]
[null,null,null,null,null,null,null,null,null,null,null,null,null,null,null,0,{"$f":"IF(P200=0,\" \",_xlfn.RANK.EQ(P200,$P$7:$P$206,0)+ COUNTIF(P$7:P200, P200) - 1)","v":" "}]
[null,null,null,null,null,null,null,null,null,null,null,null,null,null,null,0,{"$f":"IF(P201=0,\" \",_xlfn.RANK.EQ(P201,$P$7:$P$206,0)+ COUNTIF(P$7:P201, P201) - 1)","v":" "}]
[null,null,null,null,null,null,null,null,null,null,null,null,null,null,null,0,{"$f":"IF(P202=0,\" \",_xlfn.RANK.EQ(P202,$P$7:$P$206,0)+ COUNTIF(P$7:P202, P202) - 1)","v":" "}]
[null,null,null,null,null,null,null,null,null,null,null,null,null,null,null,0,{"$f":"IF(P203=0,\" \",_xlfn.RANK.EQ(P203,$P$7:$P$206,0)+ COUNTIF(P$7:P203, P203) - 1)","v":" "}]
[null,null,null,null,null,null,null,null,null,null,null,null,null,null,null,0,{"$f":"IF(P204=0,\" \",_xlfn.RANK.EQ(P204,$P$7:$P$206,0)+ COUNTIF(P$7:P204, P204) - 1)","v":" "}]
[null,null,null,null,null,null,null,null,null,null,null,null,null,null,null,0,{"$f":"IF(P205=0,\" \",_xlfn.RANK.EQ(P205,$P$7:$P$206,0)+ COUNTIF(P$7:P205, P205) - 1)","v":" "}]
[null,null,null,null,null,null,null,null,null,null,null,null,null,null,null,0,{"$f":"IF(P206=0,\" \",_xlfn.RANK.EQ(P206,$P$7:$P$206,0)+ COUNTIF(P$7:P206, P206) - 1)","v":" "}]

{"sheet":"Kategorie 4","index":5,"n_rows":206,"n_cols":19,"rows_kept":206,"cut":false,"hidden":false,"merged":[[5,16,5,17],[4,10,4,11],[0,0,0,17],[1,0,1,17],[2,0,2,17],[3,0,3,17],[4,8,4,9]]}
[]
[{"$f":"Parameter!C7","v":"OSPSV"}]
[{"$f":"Parameter!C9","v":"Jugendtag 2022"}]
[{"$f":"Parameter!C17","v":"Kat. 4  Jugend kniend U17"}]
[null,null,null,null,null,null,null,null,"liegend",null,"kniend"]
["Nr","Abl.","Sch.-Nr","Name","Vorname","JG","Kat","Sektion","P1","P2","P3","P4","P5","P6","IZ","Total","Rang",null,"KK"]
[60,null,null,"Locher","Livio",2002,4,"Weissbad",null,null,92,93,null,null,4,{"$f":"SUM(K7:L7)","v":185},{"$f":"IF(P7=0,\" \",_xlfn.RANK.EQ(P7,$P$7:$P$206,0)+ COUNTIF(P$7:P7, P7) - 1)","v":1},{"$f":"IF(Q7=2,\"Silber\",\"\")","v":""},"G"]
[68,null,null,"Marciello","Chiara",2008,4,"Weinfelden",null,null,89,90,null,null,4,179,{"$f":"IF(P8=0,\" \",_xlfn.RANK.EQ(P8,$P$7:$P$206,0)+ COUNTIF(P$7:P8, P8) - 1)","v":2},{"$f":"IF(Q8=1,\"Gold\",\"\")","v":""},"S"]
[91,null,null,"Schittenhelm","Dennis",2003,4,"Goldach",null,null,90,86,null,null,3,176,{"$f":"IF(P9=0,\" \",_xlfn.RANK.EQ(P9,$P$7:$P$206,0)+ COUNTIF(P$7:P9, P9) - 1)","v":3},null,"B"]
[75,null,null,"Moser","Jan",2007,4,"Wildhaus",null,null,87,88,null,null,2,175,{"$f":"IF(P10=0,\" \",_xlfn.RANK.EQ(P10,$P$7:$P$206,0)+ COUNTIF(P$7:P10, P10) - 1)","v":4},{"$f":"IF(Q10=3,\"Bronze\",\"\")","v":""},8]
[4,null,null,"Ammann","Pirmin",2007,4,"Neckertal",null,null,89,86,null,null,1,175,{"$f":"IF(P11=0,\" \",_xlfn.RANK.EQ(P11,$P$7:$P$206,0)+ COUNTIF(P$7:P11, P11) - 1)","v":5},null,8]
[28,null,null,"Fritsche","Maurus",2002,4,"Weissbad",null,null,90,83,null,null,4,173,{"$f":"IF(P12=0,\" \",_xlfn.RANK.EQ(P12,$P$7:$P$206,0)+ COUNTIF(P$7:P12, P12) - 1)","v":6},null,8]
[18,null,null,"Broger","Simon",2006,4,"Weissbad",null,null,85,84,null,null,null,169,{"$f":"IF(P13=0,\" \",_xlfn.RANK.EQ(P13,$P$7:$P$206,0)+ COUNTIF(P$7:P13, P13) - 1)","v":7},null,5]
[126,null,null,"Ulmann","Jan ",2005,4,"Weissbad",null,null,83,85,null,null,1,168,{"$f":"IF(P14=0,\" \",_xlfn.RANK.EQ(P14,$P$7:$P$206,0)+ COUNTIF(P$7:P14, P14) - 1)","v":8},null,5]
[115,null,null,"Strübi ","Manuel",2008,4,"Wildhaus",null,null,84,83,null,null,2,167,{"$f":"IF(P15=0,\" \",_xlfn.RANK.EQ(P15,$P$7:$P$206,0)+ COUNTIF(P$7:P15, P15) - 1)","v":9}]
[66,null,null,"Manser","Jonas",2006,4,"Weissbad",null,null,80,83,null,null,null,163,{"$f":"IF(P16=0,\" \",_xlfn.RANK.EQ(P16,$P$7:$P$206,0)+ COUNTIF(P$7:P16, P16) - 1)","v":10}]
[90,null,null,"Scherrer","Benjamin",2003,4,"Weinfelden",null,null,83,74,null,null,null,157,{"$f":"IF(P17=0,\" \",_xlfn.RANK.EQ(P17,$P$7:$P$206,0)+ COUNTIF(P$7:P17, P17) - 1)","v":11}]
[97,null,null,"Schönenberger","Zoé",2007,4,"Sitterdorf",null,null,62,71,null,null,0,133,{"$f":"IF(P18=0,\" \",_xlfn.RANK.EQ(P18,$P$7:$P$206,0)+ COUNTIF(P$7:P18, P18) - 1)","v":12}]
[null,null,null,null,null,null,null,null,null,null,null,null,null,null,null,0,{"$f":"IF(P19=0,\" \",_xlfn.RANK.EQ(P19,$P$7:$P$206,0)+ COUNTIF(P$7:P19, P19) - 1)","v":" "}]
[null,null,null,null,null,null,null,null,null,null,null,null,null,null,null,0,{"$f":"IF(P20=0,\" \",_xlfn.RANK.EQ(P20,$P$7:$P$206,0)+ COUNTIF(P$7:P20, P20) - 1)","v":" "}]
[null,null,null,null,null,null,null,null,null,null,null,null,null,null,null,0,{"$f":"IF(P21=0,\" \",_xlfn.RANK.EQ(P21,$P$7:$P$206,0)+ COUNTIF(P$7:P21, P21) - 1)","v":" "}]
[null,null,null,null,null,null,null,null,null,null,null,null,null,null,null,0,{"$f":"IF(P22=0,\" \",_xlfn.RANK.EQ(P22,$P$7:$P$206,0)+ COUNTIF(P$7:P22, P22) - 1)","v":" "}]
[null,null,null,null,null,null,null,null,null,null,null,null,null,null,null,0,{"$f":"IF(P23=0,\" \",_xlfn.RANK.EQ(P23,$P$7:$P$206,0)+ COUNTIF(P$7:P23, P23) - 1)","v":" "}]
[null,null,null,null,null,null,null,null,null,null,null,null,null,null,null,0,{"$f":"IF(P24=0,\" \",_xlfn.RANK.EQ(P24,$P$7:$P$206,0)+ COUNTIF(P$7:P24, P24) - 1)","v":" "}]
[null,null,null,null,null,null,null,null,null,null,null,null,null,null,null,0,{"$f":"IF(P25=0,\" \",_xlfn.RANK.EQ(P25,$P$7:$P$206,0)+ COUNTIF(P$7:P25, P25) - 1)","v":" "}]
[null,null,null,null,null,null,null,null,null,null,null,null,null,null,null,0,{"$f":"IF(P26=0,\" \",_xlfn.RANK.EQ(P26,$P$7:$P$206,0)+ COUNTIF(P$7:P26, P26) - 1)","v":" "}]
[null,null,null,null,null,null,null,null,null,null,null,null,null,null,null,0,{"$f":"IF(P27=0,\" \",_xlfn.RANK.EQ(P27,$P$7:$P$206,0)+ COUNTIF(P$7:P27, P27) - 1)","v":" "}]
[null,null,null,null,null,null,null,null,null,null,null,null,null,null,null,0,{"$f":"IF(P28=0,\" \",_xlfn.RANK.EQ(P28,$P$7:$P$206,0)+ COUNTIF(P$7:P28, P28) - 1)","v":" "}]
[null,null,null,null,null,null,null,null,null,null,null,null,null,null,null,0,{"$f":"IF(P29=0,\" \",_xlfn.RANK.EQ(P29,$P$7:$P$206,0)+ COUNTIF(P$7:P29, P29) - 1)","v":" "}]
[null,null,null,null,null,null,null,null,null,null,null,null,null,null,null,0,{"$f":"IF(P30=0,\" \",_xlfn.RANK.EQ(P30,$P$7:$P$206,0)+ COUNTIF(P$7:P30, P30) - 1)","v":" "}]
[null,null,null,null,null,null,null,null,null,null,null,null,null,null,null,0,{"$f":"IF(P31=0,\" \",_xlfn.RANK.EQ(P31,$P$7:$P$206,0)+ COUNTIF(P$7:P31, P31) - 1)","v":" "}]
[null,null,null,null,null,null,null,null,null,null,null,null,null,null,null,0,{"$f":"IF(P32=0,\" \",_xlfn.RANK.EQ(P32,$P$7:$P$206,0)+ COUNTIF(P$7:P32, P32) - 1)","v":" "}]
[null,null,null,null,null,null,null,null,null,null,null,null,null,null,null,0,{"$f":"IF(P33=0,\" \",_xlfn.RANK.EQ(P33,$P$7:$P$206,0)+ COUNTIF(P$7:P33, P33) - 1)","v":" "}]
[null,null,null,null,null,null,null,null,null,null,null,null,null,null,null,0,{"$f":"IF(P34=0,\" \",_xlfn.RANK.EQ(P34,$P$7:$P$206,0)+ COUNTIF(P$7:P34, P34) - 1)","v":" "}]
[null,null,null,null,null,null,null,null,null,null,null,null,null,null,null,0,{"$f":"IF(P35=0,\" \",_xlfn.RANK.EQ(P35,$P$7:$P$206,0)+ COUNTIF(P$7:P35, P35) - 1)","v":" "}]
[null,null,null,null,null,null,null,null,null,null,null,null,null,null,null,0,{"$f":"IF(P36=0,\" \",_xlfn.RANK.EQ(P36,$P$7:$P$206,0)+ COUNTIF(P$7:P36, P36) - 1)","v":" "}]
[null,null,null,null,null,null,null,null,null,null,null,null,null,null,null,0,{"$f":"IF(P37=0,\" \",_xlfn.RANK.EQ(P37,$P$7:$P$206,0)+ COUNTIF(P$7:P37, P37) - 1)","v":" "}]
[null,null,null,null,null,null,null,null,null,null,null,null,null,null,null,0,{"$f":"IF(P38=0,\" \",_xlfn.RANK.EQ(P38,$P$7:$P$206,0)+ COUNTIF(P$7:P38, P38) - 1)","v":" "}]
[null,null,null,null,null,null,null,null,null,null,null,null,null,null,null,{"$f":"SUM(K39:L39)","v":0},{"$f":"IF(P39=0,\" \",_xlfn.RANK.EQ(P39,$P$7:$P$206,0)+ COUNTIF(P$7:P39, P39) - 1)","v":" "}]
[null,null,null,null,null,null,null,null,null,null,null,null,null,null,null,0,{"$f":"IF(P40=0,\" \",_xlfn.RANK.EQ(P40,$P$7:$P$206,0)+ COUNTIF(P$7:P40, P40) - 1)","v":" "}]
[null,null,null,null,null,null,null,null,null,null,null,null,null,null,null,0,{"$f":"IF(P41=0,\" \",_xlfn.RANK.EQ(P41,$P$7:$P$206,0)+ COUNTIF(P$7:P41, P41) - 1)","v":" "}]
[null,null,null,null,null,null,null,null,null,null,null,null,null,null,null,0,{"$f":"IF(P42=0,\" \",_xlfn.RANK.EQ(P42,$P$7:$P$206,0)+ COUNTIF(P$7:P42, P42) - 1)","v":" "}]
[null,null,null,null,null,null,null,null,null,null,null,null,null,null,null,0,{"$f":"IF(P43=0,\" \",_xlfn.RANK.EQ(P43,$P$7:$P$206,0)+ COUNTIF(P$7:P43, P43) - 1)","v":" "}]
[null,null,null,null,null,null,null,null,null,null,null,null,null,null,null,0,{"$f":"IF(P44=0,\" \",_xlfn.RANK.EQ(P44,$P$7:$P$206,0)+ COUNTIF(P$7:P44, P44) - 1)","v":" "}]
[null,null,null,null,null,null,null,null,null,null,null,null,null,null,null,0,{"$f":"IF(P45=0,\" \",_xlfn.RANK.EQ(P45,$P$7:$P$206,0)+ COUNTIF(P$7:P45, P45) - 1)","v":" "}]
[null,null,null,null,null,null,null,null,null,null,null,null,null,null,null,0,{"$f":"IF(P46=0,\" \",_xlfn.RANK.EQ(P46,$P$7:$P$206,0)+ COUNTIF(P$7:P46, P46) - 1)","v":" "}]
[null,null,null,null,null,null,null,null,null,null,null,null,null,null,null,0,{"$f":"IF(P47=0,\" \",_xlfn.RANK.EQ(P47,$P$7:$P$206,0)+ COUNTIF(P$7:P47, P47) - 1)","v":" "}]
[null,null,null,null,null,null,null,null,null,null,null,null,null,null,null,0,{"$f":"IF(P48=0,\" \",_xlfn.RANK.EQ(P48,$P$7:$P$206,0)+ COUNTIF(P$7:P48, P48) - 1)","v":" "}]
[null,null,null,null,null,null,null,null,null,null,null,null,null,null,null,0,{"$f":"IF(P49=0,\" \",_xlfn.RANK.EQ(P49,$P$7:$P$206,0)+ COUNTIF(P$7:P49, P49) - 1)","v":" "}]
[null,null,null,null,null,null,null,null,null,null,null,null,null,null,null,0,{"$f":"IF(P50=0,\" \",_xlfn.RANK.EQ(P50,$P$7:$P$206,0)+ COUNTIF(P$7:P50, P50) - 1)","v":" "}]
[null,null,null,null,null,null,null,null,null,null,null,null,null,null,null,0,{"$f":"IF(P51=0,\" \",_xlfn.RANK.EQ(P51,$P$7:$P$206,0)+ COUNTIF(P$7:P51, P51) - 1)","v":" "}]
[null,null,null,null,null,null,null,null,null,null,null,null,null,null,null,0,{"$f":"IF(P52=0,\" \",_xlfn.RANK.EQ(P52,$P$7:$P$206,0)+ COUNTIF(P$7:P52, P52) - 1)","v":" "}]
[null,null,null,null,null,null,null,null,null,null,null,null,null,null,null,0,{"$f":"IF(P53=0,\" \",_xlfn.RANK.EQ(P53,$P$7:$P$206,0)+ COUNTIF(P$7:P53, P53) - 1)","v":" "}]
[null,null,null,null,null,null,null,null,null,null,null,null,null,null,null,0,{"$f":"IF(P54=0,\" \",_xlfn.RANK.EQ(P54,$P$7:$P$206,0)+ COUNTIF(P$7:P54, P54) - 1)","v":" "}]
[null,null,null,null,null,null,null,null,null,null,null,null,null,null,null,0,{"$f":"IF(P55=0,\" \",_xlfn.RANK.EQ(P55,$P$7:$P$206,0)+ COUNTIF(P$7:P55, P55) - 1)","v":" "}]
[null,null,null,null,null,null,null,null,null,null,null,null,null,null,null,0,{"$f":"IF(P56=0,\" \",_xlfn.RANK.EQ(P56,$P$7:$P$206,0)+ COUNTIF(P$7:P56, P56) - 1)","v":" "}]
[null,null,null,null,null,null,null,null,null,null,null,null,null,null,null,0,{"$f":"IF(P57=0,\" \",_xlfn.RANK.EQ(P57,$P$7:$P$206,0)+ COUNTIF(P$7:P57, P57) - 1)","v":" "}]
[null,null,null,null,null,null,null,null,null,null,null,null,null,null,null,0,{"$f":"IF(P58=0,\" \",_xlfn.RANK.EQ(P58,$P$7:$P$206,0)+ COUNTIF(P$7:P58, P58) - 1)","v":" "}]
[null,null,null,null,null,null,null,null,null,null,null,null,null,null,null,0,{"$f":"IF(P59=0,\" \",_xlfn.RANK.EQ(P59,$P$7:$P$206,0)+ COUNTIF(P$7:P59, P59) - 1)","v":" "}]
[null,null,null,null,null,null,null,null,null,null,null,null,null,null,null,0,{"$f":"IF(P60=0,\" \",_xlfn.RANK.EQ(P60,$P$7:$P$206,0)+ COUNTIF(P$7:P60, P60) - 1)","v":" "}]
[null,null,null,null,null,null,null,null,null,null,null,null,null,null,null,0,{"$f":"IF(P61=0,\" \",_xlfn.RANK.EQ(P61,$P$7:$P$206,0)+ COUNTIF(P$7:P61, P61) - 1)","v":" "}]
[null,null,null,null,null,null,null,null,null,null,null,null,null,null,null,0,{"$f":"IF(P62=0,\" \",_xlfn.RANK.EQ(P62,$P$7:$P$206,0)+ COUNTIF(P$7:P62, P62) - 1)","v":" "}]
[null,null,null,null,null,null,null,null,null,null,null,null,null,null,null,0,{"$f":"IF(P63=0,\" \",_xlfn.RANK.EQ(P63,$P$7:$P$206,0)+ COUNTIF(P$7:P63, P63) - 1)","v":" "}]
[null,null,null,null,null,null,null,null,null,null,null,null,null,null,null,0,{"$f":"IF(P64=0,\" \",_xlfn.RANK.EQ(P64,$P$7:$P$206,0)+ COUNTIF(P$7:P64, P64) - 1)","v":" "}]
[null,null,null,null,null,null,null,null,null,null,null,null,null,null,null,0,{"$f":"IF(P65=0,\" \",_xlfn.RANK.EQ(P65,$P$7:$P$206,0)+ COUNTIF(P$7:P65, P65) - 1)","v":" "}]
[null,null,null,null,null,null,null,null,null,null,null,null,null,null,null,0,{"$f":"IF(P66=0,\" \",_xlfn.RANK.EQ(P66,$P$7:$P$206,0)+ COUNTIF(P$7:P66, P66) - 1)","v":" "}]
[null,null,null,null,null,null,null,null,null,null,null,null,null,null,null,0,{"$f":"IF(P67=0,\" \",_xlfn.RANK.EQ(P67,$P$7:$P$206,0)+ COUNTIF(P$7:P67, P67) - 1)","v":" "}]
[null,null,null,null,null,null,null,null,null,null,null,null,null,null,null,0,{"$f":"IF(P68=0,\" \",_xlfn.RANK.EQ(P68,$P$7:$P$206,0)+ COUNTIF(P$7:P68, P68) - 1)","v":" "}]
[null,null,null,null,null,null,null,null,null,null,null,null,null,null,null,0,{"$f":"IF(P69=0,\" \",_xlfn.RANK.EQ(P69,$P$7:$P$206,0)+ COUNTIF(P$7:P69, P69) - 1)","v":" "}]
[null,null,null,null,null,null,null,null,null,null,null,null,null,null,null,0,{"$f":"IF(P70=0,\" \",_xlfn.RANK.EQ(P70,$P$7:$P$206,0)+ COUNTIF(P$7:P70, P70) - 1)","v":" "}]
[null,null,null,null,null,null,null,null,null,null,null,null,null,null,null,{"$f":"SUM(K71:L71)","v":0},{"$f":"IF(P71=0,\" \",_xlfn.RANK.EQ(P71,$P$7:$P$206,0)+ COUNTIF(P$7:P71, P71) - 1)","v":" "}]
[null,null,null,null,null,null,null,null,null,null,null,null,null,null,null,0,{"$f":"IF(P72=0,\" \",_xlfn.RANK.EQ(P72,$P$7:$P$206,0)+ COUNTIF(P$7:P72, P72) - 1)","v":" "}]
[null,null,null,null,null,null,null,null,null,null,null,null,null,null,null,0,{"$f":"IF(P73=0,\" \",_xlfn.RANK.EQ(P73,$P$7:$P$206,0)+ COUNTIF(P$7:P73, P73) - 1)","v":" "}]
[null,null,null,null,null,null,null,null,null,null,null,null,null,null,null,0,{"$f":"IF(P74=0,\" \",_xlfn.RANK.EQ(P74,$P$7:$P$206,0)+ COUNTIF(P$7:P74, P74) - 1)","v":" "}]
[null,null,null,null,null,null,null,null,null,null,null,null,null,null,null,0,{"$f":"IF(P75=0,\" \",_xlfn.RANK.EQ(P75,$P$7:$P$206,0)+ COUNTIF(P$7:P75, P75) - 1)","v":" "}]
[null,null,null,null,null,null,null,null,null,null,null,null,null,null,null,0,{"$f":"IF(P76=0,\" \",_xlfn.RANK.EQ(P76,$P$7:$P$206,0)+ COUNTIF(P$7:P76, P76) - 1)","v":" "}]
[null,null,null,null,null,null,null,null,null,null,null,null,null,null,null,0,{"$f":"IF(P77=0,\" \",_xlfn.RANK.EQ(P77,$P$7:$P$206,0)+ COUNTIF(P$7:P77, P77) - 1)","v":" "}]
[null,null,null,null,null,null,null,null,null,null,null,null,null,null,null,0,{"$f":"IF(P78=0,\" \",_xlfn.RANK.EQ(P78,$P$7:$P$206,0)+ COUNTIF(P$7:P78, P78) - 1)","v":" "}]
[null,null,null,null,null,null,null,null,null,null,null,null,null,null,null,0,{"$f":"IF(P79=0,\" \",_xlfn.RANK.EQ(P79,$P$7:$P$206,0)+ COUNTIF(P$7:P79, P79) - 1)","v":" "}]
[null,null,null,null,null,null,null,null,null,null,null,null,null,null,null,0,{"$f":"IF(P80=0,\" \",_xlfn.RANK.EQ(P80,$P$7:$P$206,0)+ COUNTIF(P$7:P80, P80) - 1)","v":" "}]
[null,null,null,null,null,null,null,null,null,null,null,null,null,null,null,0,{"$f":"IF(P81=0,\" \",_xlfn.RANK.EQ(P81,$P$7:$P$206,0)+ COUNTIF(P$7:P81, P81) - 1)","v":" "}]
[null,null,null,null,null,null,null,null,null,null,null,null,null,null,null,0,{"$f":"IF(P82=0,\" \",_xlfn.RANK.EQ(P82,$P$7:$P$206,0)+ COUNTIF(P$7:P82, P82) - 1)","v":" "}]
[null,null,null,null,null,null,null,null,null,null,null,null,null,null,null,0,{"$f":"IF(P83=0,\" \",_xlfn.RANK.EQ(P83,$P$7:$P$206,0)+ COUNTIF(P$7:P83, P83) - 1)","v":" "}]
[null,null,null,null,null,null,null,null,null,null,null,null,null,null,null,0,{"$f":"IF(P84=0,\" \",_xlfn.RANK.EQ(P84,$P$7:$P$206,0)+ COUNTIF(P$7:P84, P84) - 1)","v":" "}]
[null,null,null,null,null,null,null,null,null,null,null,null,null,null,null,0,{"$f":"IF(P85=0,\" \",_xlfn.RANK.EQ(P85,$P$7:$P$206,0)+ COUNTIF(P$7:P85, P85) - 1)","v":" "}]
[null,null,null,null,null,null,null,null,null,null,null,null,null,null,null,0,{"$f":"IF(P86=0,\" \",_xlfn.RANK.EQ(P86,$P$7:$P$206,0)+ COUNTIF(P$7:P86, P86) - 1)","v":" "}]
[null,null,null,null,null,null,null,null,null,null,null,null,null,null,null,0,{"$f":"IF(P87=0,\" \",_xlfn.RANK.EQ(P87,$P$7:$P$206,0)+ COUNTIF(P$7:P87, P87) - 1)","v":" "}]
[null,null,null,null,null,null,null,null,null,null,null,null,null,null,null,0,{"$f":"IF(P88=0,\" \",_xlfn.RANK.EQ(P88,$P$7:$P$206,0)+ COUNTIF(P$7:P88, P88) - 1)","v":" "}]
[null,null,null,null,null,null,null,null,null,null,null,null,null,null,null,0,{"$f":"IF(P89=0,\" \",_xlfn.RANK.EQ(P89,$P$7:$P$206,0)+ COUNTIF(P$7:P89, P89) - 1)","v":" "}]
[null,null,null,null,null,null,null,null,null,null,null,null,null,null,null,0,{"$f":"IF(P90=0,\" \",_xlfn.RANK.EQ(P90,$P$7:$P$206,0)+ COUNTIF(P$7:P90, P90) - 1)","v":" "}]
[null,null,null,null,null,null,null,null,null,null,null,null,null,null,null,0,{"$f":"IF(P91=0,\" \",_xlfn.RANK.EQ(P91,$P$7:$P$206,0)+ COUNTIF(P$7:P91, P91) - 1)","v":" "}]
[null,null,null,null,null,null,null,null,null,null,null,null,null,null,null,0,{"$f":"IF(P92=0,\" \",_xlfn.RANK.EQ(P92,$P$7:$P$206,0)+ COUNTIF(P$7:P92, P92) - 1)","v":" "}]
[null,null,null,null,null,null,null,null,null,null,null,null,null,null,null,0,{"$f":"IF(P93=0,\" \",_xlfn.RANK.EQ(P93,$P$7:$P$206,0)+ COUNTIF(P$7:P93, P93) - 1)","v":" "}]
[null,null,null,null,null,null,null,null,null,null,null,null,null,null,null,0,{"$f":"IF(P94=0,\" \",_xlfn.RANK.EQ(P94,$P$7:$P$206,0)+ COUNTIF(P$7:P94, P94) - 1)","v":" "}]
[null,null,null,null,null,null,null,null,null,null,null,null,null,null,null,0,{"$f":"IF(P95=0,\" \",_xlfn.RANK.EQ(P95,$P$7:$P$206,0)+ COUNTIF(P$7:P95, P95) - 1)","v":" "}]
[null,null,null,null,null,null,null,null,null,null,null,null,null,null,null,0,{"$f":"IF(P96=0,\" \",_xlfn.RANK.EQ(P96,$P$7:$P$206,0)+ COUNTIF(P$7:P96, P96) - 1)","v":" "}]
[null,null,null,null,null,null,null,null,null,null,null,null,null,null,null,0,{"$f":"IF(P97=0,\" \",_xlfn.RANK.EQ(P97,$P$7:$P$206,0)+ COUNTIF(P$7:P97, P97) - 1)","v":" "}]
[null,null,null,null,null,null,null,null,null,null,null,null,null,null,null,0,{"$f":"IF(P98=0,\" \",_xlfn.RANK.EQ(P98,$P$7:$P$206,0)+ COUNTIF(P$7:P98, P98) - 1)","v":" "}]
[null,null,null,null,null,null,null,null,null,null,null,null,null,null,null,0,{"$f":"IF(P99=0,\" \",_xlfn.RANK.EQ(P99,$P$7:$P$206,0)+ COUNTIF(P$7:P99, P99) - 1)","v":" "}]
[null,null,null,null,null,null,null,null,null,null,null,null,null,null,null,0,{"$f":"IF(P100=0,\" \",_xlfn.RANK.EQ(P100,$P$7:$P$206,0)+ COUNTIF(P$7:P100, P100) - 1)","v":" "}]
[null,null,null,null,null,null,null,null,null,null,null,null,null,null,null,0,{"$f":"IF(P101=0,\" \",_xlfn.RANK.EQ(P101,$P$7:$P$206,0)+ COUNTIF(P$7:P101, P101) - 1)","v":" "}]
[null,null,null,null,null,null,null,null,null,null,null,null,null,null,null,0,{"$f":"IF(P102=0,\" \",_xlfn.RANK.EQ(P102,$P$7:$P$206,0)+ COUNTIF(P$7:P102, P102) - 1)","v":" "}]
[null,null,null,null,null,null,null,null,null,null,null,null,null,null,null,{"$f":"SUM(K103:L103)","v":0},{"$f":"IF(P103=0,\" \",_xlfn.RANK.EQ(P103,$P$7:$P$206,0)+ COUNTIF(P$7:P103, P103) - 1)","v":" "}]
[null,null,null,null,null,null,null,null,null,null,null,null,null,null,null,0,{"$f":"IF(P104=0,\" \",_xlfn.RANK.EQ(P104,$P$7:$P$206,0)+ COUNTIF(P$7:P104, P104) - 1)","v":" "}]
[null,null,null,null,null,null,null,null,null,null,null,null,null,null,null,0,{"$f":"IF(P105=0,\" \",_xlfn.RANK.EQ(P105,$P$7:$P$206,0)+ COUNTIF(P$7:P105, P105) - 1)","v":" "}]
[null,null,null,null,null,null,null,null,null,null,null,null,null,null,null,0,{"$f":"IF(P106=0,\" \",_xlfn.RANK.EQ(P106,$P$7:$P$206,0)+ COUNTIF(P$7:P106, P106) - 1)","v":" "}]
[null,null,null,null,null,null,null,null,null,null,null,null,null,null,null,0,{"$f":"IF(P107=0,\" \",_xlfn.RANK.EQ(P107,$P$7:$P$206,0)+ COUNTIF(P$7:P107, P107) - 1)","v":" "}]
[null,null,null,null,null,null,null,null,null,null,null,null,null,null,null,0,{"$f":"IF(P108=0,\" \",_xlfn.RANK.EQ(P108,$P$7:$P$206,0)+ COUNTIF(P$7:P108, P108) - 1)","v":" "}]
[null,null,null,null,null,null,null,null,null,null,null,null,null,null,null,0,{"$f":"IF(P109=0,\" \",_xlfn.RANK.EQ(P109,$P$7:$P$206,0)+ COUNTIF(P$7:P109, P109) - 1)","v":" "}]
[null,null,null,null,null,null,null,null,null,null,null,null,null,null,null,0,{"$f":"IF(P110=0,\" \",_xlfn.RANK.EQ(P110,$P$7:$P$206,0)+ COUNTIF(P$7:P110, P110) - 1)","v":" "}]
[null,null,null,null,null,null,null,null,null,null,null,null,null,null,null,0,{"$f":"IF(P111=0,\" \",_xlfn.RANK.EQ(P111,$P$7:$P$206,0)+ COUNTIF(P$7:P111, P111) - 1)","v":" "}]
[null,null,null,null,null,null,null,null,null,null,null,null,null,null,null,0,{"$f":"IF(P112=0,\" \",_xlfn.RANK.EQ(P112,$P$7:$P$206,0)+ COUNTIF(P$7:P112, P112) - 1)","v":" "}]
[null,null,null,null,null,null,null,null,null,null,null,null,null,null,null,0,{"$f":"IF(P113=0,\" \",_xlfn.RANK.EQ(P113,$P$7:$P$206,0)+ COUNTIF(P$7:P113, P113) - 1)","v":" "}]
[null,null,null,null,null,null,null,null,null,null,null,null,null,null,null,0,{"$f":"IF(P114=0,\" \",_xlfn.RANK.EQ(P114,$P$7:$P$206,0)+ COUNTIF(P$7:P114, P114) - 1)","v":" "}]
[null,null,null,null,null,null,null,null,null,null,null,null,null,null,null,0,{"$f":"IF(P115=0,\" \",_xlfn.RANK.EQ(P115,$P$7:$P$206,0)+ COUNTIF(P$7:P115, P115) - 1)","v":" "}]
[null,null,null,null,null,null,null,null,null,null,null,null,null,null,null,0,{"$f":"IF(P116=0,\" \",_xlfn.RANK.EQ(P116,$P$7:$P$206,0)+ COUNTIF(P$7:P116, P116) - 1)","v":" "}]
[null,null,null,null,null,null,null,null,null,null,null,null,null,null,null,0,{"$f":"IF(P117=0,\" \",_xlfn.RANK.EQ(P117,$P$7:$P$206,0)+ COUNTIF(P$7:P117, P117) - 1)","v":" "}]
[null,null,null,null,null,null,null,null,null,null,null,null,null,null,null,0,{"$f":"IF(P118=0,\" \",_xlfn.RANK.EQ(P118,$P$7:$P$206,0)+ COUNTIF(P$7:P118, P118) - 1)","v":" "}]
[null,null,null,null,null,null,null,null,null,null,null,null,null,null,null,0,{"$f":"IF(P119=0,\" \",_xlfn.RANK.EQ(P119,$P$7:$P$206,0)+ COUNTIF(P$7:P119, P119) - 1)","v":" "}]
[null,null,null,null,null,null,null,null,null,null,null,null,null,null,null,0,{"$f":"IF(P120=0,\" \",_xlfn.RANK.EQ(P120,$P$7:$P$206,0)+ COUNTIF(P$7:P120, P120) - 1)","v":" "}]
[null,null,null,null,null,null,null,null,null,null,null,null,null,null,null,0,{"$f":"IF(P121=0,\" \",_xlfn.RANK.EQ(P121,$P$7:$P$206,0)+ COUNTIF(P$7:P121, P121) - 1)","v":" "}]
[null,null,null,null,null,null,null,null,null,null,null,null,null,null,null,0,{"$f":"IF(P122=0,\" \",_xlfn.RANK.EQ(P122,$P$7:$P$206,0)+ COUNTIF(P$7:P122, P122) - 1)","v":" "}]
[null,null,null,null,null,null,null,null,null,null,null,null,null,null,null,0,{"$f":"IF(P123=0,\" \",_xlfn.RANK.EQ(P123,$P$7:$P$206,0)+ COUNTIF(P$7:P123, P123) - 1)","v":" "}]
[null,null,null,null,null,null,null,null,null,null,null,null,null,null,null,0,{"$f":"IF(P124=0,\" \",_xlfn.RANK.EQ(P124,$P$7:$P$206,0)+ COUNTIF(P$7:P124, P124) - 1)","v":" "}]
[null,null,null,null,null,null,null,null,null,null,null,null,null,null,null,0,{"$f":"IF(P125=0,\" \",_xlfn.RANK.EQ(P125,$P$7:$P$206,0)+ COUNTIF(P$7:P125, P125) - 1)","v":" "}]
[null,null,null,null,null,null,null,null,null,null,null,null,null,null,null,0,{"$f":"IF(P126=0,\" \",_xlfn.RANK.EQ(P126,$P$7:$P$206,0)+ COUNTIF(P$7:P126, P126) - 1)","v":" "}]
[null,null,null,null,null,null,null,null,null,null,null,null,null,null,null,0,{"$f":"IF(P127=0,\" \",_xlfn.RANK.EQ(P127,$P$7:$P$206,0)+ COUNTIF(P$7:P127, P127) - 1)","v":" "}]
[null,null,null,null,null,null,null,null,null,null,null,null,null,null,null,0,{"$f":"IF(P128=0,\" \",_xlfn.RANK.EQ(P128,$P$7:$P$206,0)+ COUNTIF(P$7:P128, P128) - 1)","v":" "}]
[null,null,null,null,null,null,null,null,null,null,null,null,null,null,null,0,{"$f":"IF(P129=0,\" \",_xlfn.RANK.EQ(P129,$P$7:$P$206,0)+ COUNTIF(P$7:P129, P129) - 1)","v":" "}]
[null,null,null,null,null,null,null,null,null,null,null,null,null,null,null,0,{"$f":"IF(P130=0,\" \",_xlfn.RANK.EQ(P130,$P$7:$P$206,0)+ COUNTIF(P$7:P130, P130) - 1)","v":" "}]
[null,null,null,null,null,null,null,null,null,null,null,null,null,null,null,0,{"$f":"IF(P131=0,\" \",_xlfn.RANK.EQ(P131,$P$7:$P$206,0)+ COUNTIF(P$7:P131, P131) - 1)","v":" "}]
[null,null,null,null,null,null,null,null,null,null,null,null,null,null,null,0,{"$f":"IF(P132=0,\" \",_xlfn.RANK.EQ(P132,$P$7:$P$206,0)+ COUNTIF(P$7:P132, P132) - 1)","v":" "}]
[null,null,null,null,null,null,null,null,null,null,null,null,null,null,null,0,{"$f":"IF(P133=0,\" \",_xlfn.RANK.EQ(P133,$P$7:$P$206,0)+ COUNTIF(P$7:P133, P133) - 1)","v":" "}]
[null,null,null,null,null,null,null,null,null,null,null,null,null,null,null,0,{"$f":"IF(P134=0,\" \",_xlfn.RANK.EQ(P134,$P$7:$P$206,0)+ COUNTIF(P$7:P134, P134) - 1)","v":" "}]
[null,null,null,null,null,null,null,null,null,null,null,null,null,null,null,{"$f":"SUM(K135:L135)","v":0},{"$f":"IF(P135=0,\" \",_xlfn.RANK.EQ(P135,$P$7:$P$206,0)+ COUNTIF(P$7:P135, P135) - 1)","v":" "}]
[null,null,null,null,null,null,null,null,null,null,null,null,null,null,null,0,{"$f":"IF(P136=0,\" \",_xlfn.RANK.EQ(P136,$P$7:$P$206,0)+ COUNTIF(P$7:P136, P136) - 1)","v":" "}]
[null,null,null,null,null,null,null,null,null,null,null,null,null,null,null,0,{"$f":"IF(P137=0,\" \",_xlfn.RANK.EQ(P137,$P$7:$P$206,0)+ COUNTIF(P$7:P137, P137) - 1)","v":" "}]
[null,null,null,null,null,null,null,null,null,null,null,null,null,null,null,0,{"$f":"IF(P138=0,\" \",_xlfn.RANK.EQ(P138,$P$7:$P$206,0)+ COUNTIF(P$7:P138, P138) - 1)","v":" "}]
[null,null,null,null,null,null,null,null,null,null,null,null,null,null,null,0,{"$f":"IF(P139=0,\" \",_xlfn.RANK.EQ(P139,$P$7:$P$206,0)+ COUNTIF(P$7:P139, P139) - 1)","v":" "}]
[null,null,null,null,null,null,null,null,null,null,null,null,null,null,null,0,{"$f":"IF(P140=0,\" \",_xlfn.RANK.EQ(P140,$P$7:$P$206,0)+ COUNTIF(P$7:P140, P140) - 1)","v":" "}]
[null,null,null,null,null,null,null,null,null,null,null,null,null,null,null,0,{"$f":"IF(P141=0,\" \",_xlfn.RANK.EQ(P141,$P$7:$P$206,0)+ COUNTIF(P$7:P141, P141) - 1)","v":" "}]
[null,null,null,null,null,null,null,null,null,null,null,null,null,null,null,0,{"$f":"IF(P142=0,\" \",_xlfn.RANK.EQ(P142,$P$7:$P$206,0)+ COUNTIF(P$7:P142, P142) - 1)","v":" "}]
[null,null,null,null,null,null,null,null,null,null,null,null,null,null,null,0,{"$f":"IF(P143=0,\" \",_xlfn.RANK.EQ(P143,$P$7:$P$206,0)+ COUNTIF(P$7:P143, P143) - 1)","v":" "}]
[null,null,null,null,null,null,null,null,null,null,null,null,null,null,null,0,{"$f":"IF(P144=0,\" \",_xlfn.RANK.EQ(P144,$P$7:$P$206,0)+ COUNTIF(P$7:P144, P144) - 1)","v":" "}]
[null,null,null,null,null,null,null,null,null,null,null,null,null,null,null,0,{"$f":"IF(P145=0,\" \",_xlfn.RANK.EQ(P145,$P$7:$P$206,0)+ COUNTIF(P$7:P145, P145) - 1)","v":" "}]
[null,null,null,null,null,null,null,null,null,null,null,null,null,null,null,0,{"$f":"IF(P146=0,\" \",_xlfn.RANK.EQ(P146,$P$7:$P$206,0)+ COUNTIF(P$7:P146, P146) - 1)","v":" "}]
[null,null,null,null,null,null,null,null,null,null,null,null,null,null,null,0,{"$f":"IF(P147=0,\" \",_xlfn.RANK.EQ(P147,$P$7:$P$206,0)+ COUNTIF(P$7:P147, P147) - 1)","v":" "}]
[null,null,null,null,null,null,null,null,null,null,null,null,null,null,null,0,{"$f":"IF(P148=0,\" \",_xlfn.RANK.EQ(P148,$P$7:$P$206,0)+ COUNTIF(P$7:P148, P148) - 1)","v":" "}]
[null,null,null,null,null,null,null,null,null,null,null,null,null,null,null,0,{"$f":"IF(P149=0,\" \",_xlfn.RANK.EQ(P149,$P$7:$P$206,0)+ COUNTIF(P$7:P149, P149) - 1)","v":" "}]
[null,null,null,null,null,null,null,null,null,null,null,null,null,null,null,0,{"$f":"IF(P150=0,\" \",_xlfn.RANK.EQ(P150,$P$7:$P$206,0)+ COUNTIF(P$7:P150, P150) - 1)","v":" "}]
[null,null,null,null,null,null,null,null,null,null,null,null,null,null,null,0,{"$f":"IF(P151=0,\" \",_xlfn.RANK.EQ(P151,$P$7:$P$206,0)+ COUNTIF(P$7:P151, P151) - 1)","v":" "}]
[null,null,null,null,null,null,null,null,null,null,null,null,null,null,null,0,{"$f":"IF(P152=0,\" \",_xlfn.RANK.EQ(P152,$P$7:$P$206,0)+ COUNTIF(P$7:P152, P152) - 1)","v":" "}]
[null,null,null,null,null,null,null,null,null,null,null,null,null,null,null,0,{"$f":"IF(P153=0,\" \",_xlfn.RANK.EQ(P153,$P$7:$P$206,0)+ COUNTIF(P$7:P153, P153) - 1)","v":" "}]
[null,null,null,null,null,null,null,null,null,null,null,null,null,null,null,0,{"$f":"IF(P154=0,\" \",_xlfn.RANK.EQ(P154,$P$7:$P$206,0)+ COUNTIF(P$7:P154, P154) - 1)","v":" "}]
[null,null,null,null,null,null,null,null,null,null,null,null,null,null,null,0,{"$f":"IF(P155=0,\" \",_xlfn.RANK.EQ(P155,$P$7:$P$206,0)+ COUNTIF(P$7:P155, P155) - 1)","v":" "}]
[null,null,null,null,null,null,null,null,null,null,null,null,null,null,null,0,{"$f":"IF(P156=0,\" \",_xlfn.RANK.EQ(P156,$P$7:$P$206,0)+ COUNTIF(P$7:P156, P156) - 1)","v":" "}]
[null,null,null,null,null,null,null,null,null,null,null,null,null,null,null,0,{"$f":"IF(P157=0,\" \",_xlfn.RANK.EQ(P157,$P$7:$P$206,0)+ COUNTIF(P$7:P157, P157) - 1)","v":" "}]
[null,null,null,null,null,null,null,null,null,null,null,null,null,null,null,0,{"$f":"IF(P158=0,\" \",_xlfn.RANK.EQ(P158,$P$7:$P$206,0)+ COUNTIF(P$7:P158, P158) - 1)","v":" "}]
[null,null,null,null,null,null,null,null,null,null,null,null,null,null,null,0,{"$f":"IF(P159=0,\" \",_xlfn.RANK.EQ(P159,$P$7:$P$206,0)+ COUNTIF(P$7:P159, P159) - 1)","v":" "}]
[null,null,null,null,null,null,null,null,null,null,null,null,null,null,null,0,{"$f":"IF(P160=0,\" \",_xlfn.RANK.EQ(P160,$P$7:$P$206,0)+ COUNTIF(P$7:P160, P160) - 1)","v":" "}]
[null,null,null,null,null,null,null,null,null,null,null,null,null,null,null,0,{"$f":"IF(P161=0,\" \",_xlfn.RANK.EQ(P161,$P$7:$P$206,0)+ COUNTIF(P$7:P161, P161) - 1)","v":" "}]
[null,null,null,null,null,null,null,null,null,null,null,null,null,null,null,0,{"$f":"IF(P162=0,\" \",_xlfn.RANK.EQ(P162,$P$7:$P$206,0)+ COUNTIF(P$7:P162, P162) - 1)","v":" "}]
[null,null,null,null,null,null,null,null,null,null,null,null,null,null,null,0,{"$f":"IF(P163=0,\" \",_xlfn.RANK.EQ(P163,$P$7:$P$206,0)+ COUNTIF(P$7:P163, P163) - 1)","v":" "}]
[null,null,null,null,null,null,null,null,null,null,null,null,null,null,null,0,{"$f":"IF(P164=0,\" \",_xlfn.RANK.EQ(P164,$P$7:$P$206,0)+ COUNTIF(P$7:P164, P164) - 1)","v":" "}]
[null,null,null,null,null,null,null,null,null,null,null,null,null,null,null,0,{"$f":"IF(P165=0,\" \",_xlfn.RANK.EQ(P165,$P$7:$P$206,0)+ COUNTIF(P$7:P165, P165) - 1)","v":" "}]
[null,null,null,null,null,null,null,null,null,null,null,null,null,null,null,0,{"$f":"IF(P166=0,\" \",_xlfn.RANK.EQ(P166,$P$7:$P$206,0)+ COUNTIF(P$7:P166, P166) - 1)","v":" "}]
[null,null,null,null,null,null,null,null,null,null,null,null,null,null,null,{"$f":"SUM(K167:L167)","v":0},{"$f":"IF(P167=0,\" \",_xlfn.RANK.EQ(P167,$P$7:$P$206,0)+ COUNTIF(P$7:P167, P167) - 1)","v":" "}]
[null,null,null,null,null,null,null,null,null,null,null,null,null,null,null,0,{"$f":"IF(P168=0,\" \",_xlfn.RANK.EQ(P168,$P$7:$P$206,0)+ COUNTIF(P$7:P168, P168) - 1)","v":" "}]
[null,null,null,null,null,null,null,null,null,null,null,null,null,null,null,0,{"$f":"IF(P169=0,\" \",_xlfn.RANK.EQ(P169,$P$7:$P$206,0)+ COUNTIF(P$7:P169, P169) - 1)","v":" "}]
[null,null,null,null,null,null,null,null,null,null,null,null,null,null,null,0,{"$f":"IF(P170=0,\" \",_xlfn.RANK.EQ(P170,$P$7:$P$206,0)+ COUNTIF(P$7:P170, P170) - 1)","v":" "}]
[null,null,null,null,null,null,null,null,null,null,null,null,null,null,null,0,{"$f":"IF(P171=0,\" \",_xlfn.RANK.EQ(P171,$P$7:$P$206,0)+ COUNTIF(P$7:P171, P171) - 1)","v":" "}]
[null,null,null,null,null,null,null,null,null,null,null,null,null,null,null,0,{"$f":"IF(P172=0,\" \",_xlfn.RANK.EQ(P172,$P$7:$P$206,0)+ COUNTIF(P$7:P172, P172) - 1)","v":" "}]
[null,null,null,null,null,null,null,null,null,null,null,null,null,null,null,0,{"$f":"IF(P173=0,\" \",_xlfn.RANK.EQ(P173,$P$7:$P$206,0)+ COUNTIF(P$7:P173, P173) - 1)","v":" "}]
[null,null,null,null,null,null,null,null,null,null,null,null,null,null,null,0,{"$f":"IF(P174=0,\" \",_xlfn.RANK.EQ(P174,$P$7:$P$206,0)+ COUNTIF(P$7:P174, P174) - 1)","v":" "}]
[null,null,null,null,null,null,null,null,null,null,null,null,null,null,null,0,{"$f":"IF(P175=0,\" \",_xlfn.RANK.EQ(P175,$P$7:$P$206,0)+ COUNTIF(P$7:P175, P175) - 1)","v":" "}]
[null,null,null,null,null,null,null,null,null,null,null,null,null,null,null,0,{"$f":"IF(P176=0,\" \",_xlfn.RANK.EQ(P176,$P$7:$P$206,0)+ COUNTIF(P$7:P176, P176) - 1)","v":" "}]
[null,null,null,null,null,null,null,null,null,null,null,null,null,null,null,0,{"$f":"IF(P177=0,\" \",_xlfn.RANK.EQ(P177,$P$7:$P$206,0)+ COUNTIF(P$7:P177, P177) - 1)","v":" "}]
[null,null,null,null,null,null,null,null,null,null,null,null,null,null,null,0,{"$f":"IF(P178=0,\" \",_xlfn.RANK.EQ(P178,$P$7:$P$206,0)+ COUNTIF(P$7:P178, P178) - 1)","v":" "}]
[null,null,null,null,null,null,null,null,null,null,null,null,null,null,null,0,{"$f":"IF(P179=0,\" \",_xlfn.RANK.EQ(P179,$P$7:$P$206,0)+ COUNTIF(P$7:P179, P179) - 1)","v":" "}]
[null,null,null,null,null,null,null,null,null,null,null,null,null,null,null,0,{"$f":"IF(P180=0,\" \",_xlfn.RANK.EQ(P180,$P$7:$P$206,0)+ COUNTIF(P$7:P180, P180) - 1)","v":" "}]
[null,null,null,null,null,null,null,null,null,null,null,null,null,null,null,0,{"$f":"IF(P181=0,\" \",_xlfn.RANK.EQ(P181,$P$7:$P$206,0)+ COUNTIF(P$7:P181, P181) - 1)","v":" "}]
[null,null,null,null,null,null,null,null,null,null,null,null,null,null,null,0,{"$f":"IF(P182=0,\" \",_xlfn.RANK.EQ(P182,$P$7:$P$206,0)+ COUNTIF(P$7:P182, P182) - 1)","v":" "}]
[null,null,null,null,null,null,null,null,null,null,null,null,null,null,null,0,{"$f":"IF(P183=0,\" \",_xlfn.RANK.EQ(P183,$P$7:$P$206,0)+ COUNTIF(P$7:P183, P183) - 1)","v":" "}]
[null,null,null,null,null,null,null,null,null,null,null,null,null,null,null,0,{"$f":"IF(P184=0,\" \",_xlfn.RANK.EQ(P184,$P$7:$P$206,0)+ COUNTIF(P$7:P184, P184) - 1)","v":" "}]
[null,null,null,null,null,null,null,null,null,null,null,null,null,null,null,0,{"$f":"IF(P185=0,\" \",_xlfn.RANK.EQ(P185,$P$7:$P$206,0)+ COUNTIF(P$7:P185, P185) - 1)","v":" "}]
[null,null,null,null,null,null,null,null,null,null,null,null,null,null,null,0,{"$f":"IF(P186=0,\" \",_xlfn.RANK.EQ(P186,$P$7:$P$206,0)+ COUNTIF(P$7:P186, P186) - 1)","v":" "}]
[null,null,null,null,null,null,null,null,null,null,null,null,null,null,null,0,{"$f":"IF(P187=0,\" \",_xlfn.RANK.EQ(P187,$P$7:$P$206,0)+ COUNTIF(P$7:P187, P187) - 1)","v":" "}]
[null,null,null,null,null,null,null,null,null,null,null,null,null,null,null,0,{"$f":"IF(P188=0,\" \",_xlfn.RANK.EQ(P188,$P$7:$P$206,0)+ COUNTIF(P$7:P188, P188) - 1)","v":" "}]
[null,null,null,null,null,null,null,null,null,null,null,null,null,null,null,0,{"$f":"IF(P189=0,\" \",_xlfn.RANK.EQ(P189,$P$7:$P$206,0)+ COUNTIF(P$7:P189, P189) - 1)","v":" "}]
[null,null,null,null,null,null,null,null,null,null,null,null,null,null,null,0,{"$f":"IF(P190=0,\" \",_xlfn.RANK.EQ(P190,$P$7:$P$206,0)+ COUNTIF(P$7:P190, P190) - 1)","v":" "}]
[null,null,null,null,null,null,null,null,null,null,null,null,null,null,null,0,{"$f":"IF(P191=0,\" \",_xlfn.RANK.EQ(P191,$P$7:$P$206,0)+ COUNTIF(P$7:P191, P191) - 1)","v":" "}]
[null,null,null,null,null,null,null,null,null,null,null,null,null,null,null,0,{"$f":"IF(P192=0,\" \",_xlfn.RANK.EQ(P192,$P$7:$P$206,0)+ COUNTIF(P$7:P192, P192) - 1)","v":" "}]
[null,null,null,null,null,null,null,null,null,null,null,null,null,null,null,0,{"$f":"IF(P193=0,\" \",_xlfn.RANK.EQ(P193,$P$7:$P$206,0)+ COUNTIF(P$7:P193, P193) - 1)","v":" "}]
[null,null,null,null,null,null,null,null,null,null,null,null,null,null,null,0,{"$f":"IF(P194=0,\" \",_xlfn.RANK.EQ(P194,$P$7:$P$206,0)+ COUNTIF(P$7:P194, P194) - 1)","v":" "}]
[null,null,null,null,null,null,null,null,null,null,null,null,null,null,null,0,{"$f":"IF(P195=0,\" \",_xlfn.RANK.EQ(P195,$P$7:$P$206,0)+ COUNTIF(P$7:P195, P195) - 1)","v":" "}]
[null,null,null,null,null,null,null,null,null,null,null,null,null,null,null,0,{"$f":"IF(P196=0,\" \",_xlfn.RANK.EQ(P196,$P$7:$P$206,0)+ COUNTIF(P$7:P196, P196) - 1)","v":" "}]
[null,null,null,null,null,null,null,null,null,null,null,null,null,null,null,0,{"$f":"IF(P197=0,\" \",_xlfn.RANK.EQ(P197,$P$7:$P$206,0)+ COUNTIF(P$7:P197, P197) - 1)","v":" "}]
[null,null,null,null,null,null,null,null,null,null,null,null,null,null,null,0,{"$f":"IF(P198=0,\" \",_xlfn.RANK.EQ(P198,$P$7:$P$206,0)+ COUNTIF(P$7:P198, P198) - 1)","v":" "}]
[null,null,null,null,null,null,null,null,null,null,null,null,null,null,null,{"$f":"SUM(K199:L199)","v":0},{"$f":"IF(P199=0,\" \",_xlfn.RANK.EQ(P199,$P$7:$P$206,0)+ COUNTIF(P$7:P199, P199) - 1)","v":" "}]
[null,null,null,null,null,null,null,null,null,null,null,null,null,null,null,0,{"$f":"IF(P200=0,\" \",_xlfn.RANK.EQ(P200,$P$7:$P$206,0)+ COUNTIF(P$7:P200, P200) - 1)","v":" "}]
[null,null,null,null,null,null,null,null,null,null,null,null,null,null,null,0,{"$f":"IF(P201=0,\" \",_xlfn.RANK.EQ(P201,$P$7:$P$206,0)+ COUNTIF(P$7:P201, P201) - 1)","v":" "}]
[null,null,null,null,null,null,null,null,null,null,null,null,null,null,null,0,{"$f":"IF(P202=0,\" \",_xlfn.RANK.EQ(P202,$P$7:$P$206,0)+ COUNTIF(P$7:P202, P202) - 1)","v":" "}]
[null,null,null,null,null,null,null,null,null,null,null,null,null,null,null,0,{"$f":"IF(P203=0,\" \",_xlfn.RANK.EQ(P203,$P$7:$P$206,0)+ COUNTIF(P$7:P203, P203) - 1)","v":" "}]
[null,null,null,null,null,null,null,null,null,null,null,null,null,null,null,0,{"$f":"IF(P204=0,\" \",_xlfn.RANK.EQ(P204,$P$7:$P$206,0)+ COUNTIF(P$7:P204, P204) - 1)","v":" "}]
[null,null,null,null,null,null,null,null,null,null,null,null,null,null,null,0,{"$f":"IF(P205=0,\" \",_xlfn.RANK.EQ(P205,$P$7:$P$206,0)+ COUNTIF(P$7:P205, P205) - 1)","v":" "}]
[null,null,null,null,null,null,null,null,null,null,null,null,null,null,null,0,{"$f":"IF(P206=0,\" \",_xlfn.RANK.EQ(P206,$P$7:$P$206,0)+ COUNTIF(P$7:P206, P206) - 1)","v":" "}]

{"sheet":"Kategorie 5","index":6,"n_rows":206,"n_cols":19,"rows_kept":206,"cut":false,"hidden":false,"merged":[[0,0,0,17],[1,0,1,17],[2,0,2,17],[3,0,3,17],[4,8,4,9],[4,10,4,11],[4,12,4,13]]}
[]
[{"$f":"Parameter!C7","v":"OSPSV"}]
[{"$f":"Parameter!C9","v":"Jugendtag 2022"}]
[{"$f":"Parameter!C19","v":"Kat. 5  Jugend 3 Stellung U19/U21"}]
[null,null,null,null,null,null,null,null,"liegend",null,"kniend",null,"stehend"]
["Nr","Abl.","Sch.-Nr","Name","Vorname","JG","Kat","Sektion","P1","P2","P3","P4","P5","P6","IZ","Total","Rang",null,"KK"]
[89,null,null,"Scherrer","Benjamin",2003,3,"Weinfelden",96,97,null,null,null,null,9,{"$f":"SUM(I7:N7)","v":193},{"$f":"IF(P7=0,\" \",_xlfn.RANK.EQ(P7,$P$7:$P$206,0)+ COUNTIF(P$7:P7, P7) - 1)","v":1},{"$f":"IF(Q7=1,\"Gold\",\"\")","v":"Gold"},"G"]
[81,null,null,"Patt","Michel",2009,1,"St.Gallen",98,95,null,null,null,null,8,193,{"$f":"IF(P8=0,\" \",_xlfn.RANK.EQ(P8,$P$7:$P$206,0)+ COUNTIF(P$7:P8, P8) - 1)","v":2},null,"S"]
[104,null,null,"Speck","Corina",2005,3,"Weissbad",97,96,null,null,null,null,7,193,{"$f":"IF(P9=0,\" \",_xlfn.RANK.EQ(P9,$P$7:$P$206,0)+ COUNTIF(P$7:P9, P9) - 1)","v":3},{"$f":"IF(Q9=2,\"Silber\",\"\")","v":""},"B"]
[3,null,null,"Ammann","Pirmin",2007,2,"Neckertal",95,97,null,null,null,null,7,192,{"$f":"IF(P10=0,\" \",_xlfn.RANK.EQ(P10,$P$7:$P$206,0)+ COUNTIF(P$7:P10, P10) - 1)","v":4}]
[52,null,null,"Kressel ","Niclas",2006,2,"Sargans",96,96,null,null,null,null,2,192,{"$f":"IF(P11=0,\" \",_xlfn.RANK.EQ(P11,$P$7:$P$206,0)+ COUNTIF(P$7:P11, P11) - 1)","v":5}]
[30,null,null,"Früh","Janis",2004,3,"Kirchberg",94,97,null,null,null,null,8,191,{"$f":"IF(P12=0,\" \",_xlfn.RANK.EQ(P12,$P$7:$P$206,0)+ COUNTIF(P$7:P12, P12) - 1)","v":6},{"$f":"IF(Q12=3,\"Bronze\",\"\")","v":""}]
[40,null,null,"Hagen","Linn",2009,1,"Dettighofen",94,96,null,null,null,null,8,190,{"$f":"IF(P13=0,\" \",_xlfn.RANK.EQ(P13,$P$7:$P$206,0)+ COUNTIF(P$7:P13, P13) - 1)","v":7}]
[109,null,null,"Staub","Lea",2002,3,"Schönholzerswilen",95,95,null,null,null,null,6,190,{"$f":"IF(P14=0,\" \",_xlfn.RANK.EQ(P14,$P$7:$P$206,0)+ COUNTIF(P$7:P14, P14) - 1)","v":8}]
[51,null,null,"Krähemann","Levano",2006,2,"Wil",94,95,null,null,null,null,7,189,{"$f":"IF(P15=0,\" \",_xlfn.RANK.EQ(P15,$P$7:$P$206,0)+ COUNTIF(P$7:P15, P15) - 1)","v":9}]
[92,null,null,"Schittenhelm","Dennis",2003,3,"Goldach",93,96,null,null,null,null,5,189,{"$f":"IF(P16=0,\" \",_xlfn.RANK.EQ(P16,$P$7:$P$206,0)+ COUNTIF(P$7:P16, P16) - 1)","v":10}]
[105,null,null,"Sprenger","Sven",2008,2,"Altstätten",95,94,null,null,null,null,5,189,{"$f":"IF(P17=0,\" \",_xlfn.RANK.EQ(P17,$P$7:$P$206,0)+ COUNTIF(P$7:P17, P17) - 1)","v":11}]
[53,null,null,"Kummer","Livio",2005,3,"Munot Schaffhausen",94,94,null,null,null,null,7,188,{"$f":"IF(P18=0,\" \",_xlfn.RANK.EQ(P18,$P$7:$P$206,0)+ COUNTIF(P$7:P18, P18) - 1)","v":12}]
[58,null,null,"Lengyel ","Zsombor",2006,2,"Sargans",94,94,null,null,null,null,6,188,{"$f":"IF(P19=0,\" \",_xlfn.RANK.EQ(P19,$P$7:$P$206,0)+ COUNTIF(P$7:P19, P19) - 1)","v":13}]
[34,null,null,"Gmünder","Ralf",2005,3,"Weissbad",92,96,null,null,null,null,2,188,{"$f":"IF(P20=0,\" \",_xlfn.RANK.EQ(P20,$P$7:$P$206,0)+ COUNTIF(P$7:P20, P20) - 1)","v":14}]
[118,null,null,"Sutter","Janine",2010,1,"Schönholzerswilen",94,93,null,null,null,null,8,187,{"$f":"IF(P21=0,\" \",_xlfn.RANK.EQ(P21,$P$7:$P$206,0)+ COUNTIF(P$7:P21, P21) - 1)","v":15}]
[101,null,null,"Segmüller","Joe",2010,1,"Altstätten",94,93,null,null,null,null,5,187,{"$f":"IF(P22=0,\" \",_xlfn.RANK.EQ(P22,$P$7:$P$206,0)+ COUNTIF(P$7:P22, P22) - 1)","v":16}]
[85,null,null,"Rohner","Ciril",2006,2,"Kirchberg",94,93,null,null,null,null,5,187,{"$f":"IF(P23=0,\" \",_xlfn.RANK.EQ(P23,$P$7:$P$206,0)+ COUNTIF(P$7:P23, P23) - 1)","v":17}]
[77,null,null,"Niederer","Remo",2011,1,"Neckertal",95,92,null,null,null,null,4,187,{"$f":"IF(P24=0,\" \",_xlfn.RANK.EQ(P24,$P$7:$P$206,0)+ COUNTIF(P$7:P24, P24) - 1)","v":18}]
[57,null,null,"Lengwiler","Tobias",2003,3,"Sitterdorf",92,95,null,null,null,null,3,187,{"$f":"IF(P25=0,\" \",_xlfn.RANK.EQ(P25,$P$7:$P$206,0)+ COUNTIF(P$7:P25, P25) - 1)","v":19}]
[8,null,null,"Beerle","Nina",2007,2,"Goldach",95,92,null,null,null,null,3,187,{"$f":"IF(P26=0,\" \",_xlfn.RANK.EQ(P26,$P$7:$P$206,0)+ COUNTIF(P$7:P26, P26) - 1)","v":20}]
[20,null,null,"Correia","Jannic",2009,1,"Schönholzerswilen",92,94,null,null,null,null,6,186,{"$f":"IF(P27=0,\" \",_xlfn.RANK.EQ(P27,$P$7:$P$206,0)+ COUNTIF(P$7:P27, P27) - 1)","v":21}]
[111,null,null,"Steuck","Luca",2009,1,"Mosnang",92,94,null,null,null,null,6,186,{"$f":"IF(P28=0,\" \",_xlfn.RANK.EQ(P28,$P$7:$P$206,0)+ COUNTIF(P$7:P28, P28) - 1)","v":22}]
[131,null,null,"Wiederkehr","Yari",2006,2,"Kirchberg",92,94,null,null,null,null,5,186,{"$f":"IF(P29=0,\" \",_xlfn.RANK.EQ(P29,$P$7:$P$206,0)+ COUNTIF(P$7:P29, P29) - 1)","v":23}]
[14,null,null,"Böhi","Marc",2009,1,"Schönholzerswilen",90,96,null,null,null,null,4,186,{"$f":"IF(P30=0,\" \",_xlfn.RANK.EQ(P30,$P$7:$P$206,0)+ COUNTIF(P$7:P30, P30) - 1)","v":24}]
[114,null,null,"Strübi ","Manuel",2008,2,"Wildhaus",92,94,null,null,null,null,4,186,{"$f":"IF(P31=0,\" \",_xlfn.RANK.EQ(P31,$P$7:$P$206,0)+ COUNTIF(P$7:P31, P31) - 1)","v":25}]
[27,null,null,"Fritsche","Maurus",2002,3,"Weissbad",91,94,null,null,null,null,6,185,{"$f":"IF(P32=0,\" \",_xlfn.RANK.EQ(P32,$P$7:$P$206,0)+ COUNTIF(P$7:P32, P32) - 1)","v":26}]
[60,null,null,"Locher","Livio",2002,4,"Weissbad",null,null,92,93,null,null,4,185,{"$f":"IF(P33=0,\" \",_xlfn.RANK.EQ(P33,$P$7:$P$206,0)+ COUNTIF(P$7:P33, P33) - 1)","v":27}]
[48,null,null,"Klein","Elias",2003,3,"Kirchberg",93,92,null,null,null,null,4,185,{"$f":"IF(P34=0,\" \",_xlfn.RANK.EQ(P34,$P$7:$P$206,0)+ COUNTIF(P$7:P34, P34) - 1)","v":28}]
[61,null,null,"Lüber","Lara",2008,2,"Kirchberg",93,92,null,null,null,null,3,185,{"$f":"IF(P35=0,\" \",_xlfn.RANK.EQ(P35,$P$7:$P$206,0)+ COUNTIF(P$7:P35, P35) - 1)","v":29}]
[64,null,null,"Mäder","Ramona",2008,1,"Sitterdorf",93,92,null,null,null,null,3,185,{"$f":"IF(P36=0,\" \",_xlfn.RANK.EQ(P36,$P$7:$P$206,0)+ COUNTIF(P$7:P36, P36) - 1)","v":30}]
[65,null,null,"Manser","Jonas",2006,2,"Weissbad",93,91,null,null,null,null,5,184,{"$f":"IF(P37=0,\" \",_xlfn.RANK.EQ(P37,$P$7:$P$206,0)+ COUNTIF(P$7:P37, P37) - 1)","v":31}]
[46,null,null,"Jordi","Lena",2010,1,"Dicken Ebnat-Kappel",92,92,null,null,null,null,4,184,{"$f":"IF(P38=0,\" \",_xlfn.RANK.EQ(P38,$P$7:$P$206,0)+ COUNTIF(P$7:P38, P38) - 1)","v":32}]
[83,null,null,"Pfützner ","Philipp",2006,2,"Sargans",92,92,null,null,null,null,4,{"$f":"SUM(I39:N39)","v":184},{"$f":"IF(P39=0,\" \",_xlfn.RANK.EQ(P39,$P$7:$P$206,0)+ COUNTIF(P$7:P39, P39) - 1)","v":33}]
[54,null,null,"Künzli","Ian",2006,2,"Dicken Ebnat-Kappel",94,90,null,null,null,null,4,184,{"$f":"IF(P40=0,\" \",_xlfn.RANK.EQ(P40,$P$7:$P$206,0)+ COUNTIF(P$7:P40, P40) - 1)","v":34}]
[128,null,null,"Weitbrecht ","Talitha",2009,2,"Sargans",91,93,null,null,null,null,3,184,{"$f":"IF(P41=0,\" \",_xlfn.RANK.EQ(P41,$P$7:$P$206,0)+ COUNTIF(P$7:P41, P41) - 1)","v":35}]
[103,null,null,"Segmüller","Nando",2003,3,"Altstätten",88,96,null,null,null,null,2,184,{"$f":"IF(P42=0,\" \",_xlfn.RANK.EQ(P42,$P$7:$P$206,0)+ COUNTIF(P$7:P42, P42) - 1)","v":36}]
[15,null,null,"Böhi","Sarina",2009,1,"Schönholzerswilen",93,91,null,null,null,null,1,184,{"$f":"IF(P43=0,\" \",_xlfn.RANK.EQ(P43,$P$7:$P$206,0)+ COUNTIF(P$7:P43, P43) - 1)","v":37}]
[88,null,null,"Schaub","Alyssia",2009,1,"Mosnang",95,88,null,null,null,null,6,183,{"$f":"IF(P44=0,\" \",_xlfn.RANK.EQ(P44,$P$7:$P$206,0)+ COUNTIF(P$7:P44, P44) - 1)","v":38}]
[33,null,null,"Geisser","Roman",2006,2,"Dicken Ebnat-Kappel",93,90,null,null,null,null,5,183,{"$f":"IF(P45=0,\" \",_xlfn.RANK.EQ(P45,$P$7:$P$206,0)+ COUNTIF(P$7:P45, P45) - 1)","v":39}]
[96,null,null,"Schönenberger","Zoé",2007,2,"Sitterdorf",92,91,null,null,null,null,4,183,{"$f":"IF(P46=0,\" \",_xlfn.RANK.EQ(P46,$P$7:$P$206,0)+ COUNTIF(P$7:P46, P46) - 1)","v":40}]
[22,null,null,"Deubelbeiss","Jano",2010,1,"Goldach",88,95,null,null,null,null,2,183,{"$f":"IF(P47=0,\" \",_xlfn.RANK.EQ(P47,$P$7:$P$206,0)+ COUNTIF(P$7:P47, P47) - 1)","v":41}]
[125,null,null,"Ulmann","Jan ",2005,3,"Weissbad",90,93,null,null,null,null,2,183,{"$f":"IF(P48=0,\" \",_xlfn.RANK.EQ(P48,$P$7:$P$206,0)+ COUNTIF(P$7:P48, P48) - 1)","v":42}]
[130,null,null,"Wichser","Mia",2009,1,"Grabs",91,92,null,null,null,null,2,183,{"$f":"IF(P49=0,\" \",_xlfn.RANK.EQ(P49,$P$7:$P$206,0)+ COUNTIF(P$7:P49, P49) - 1)","v":43}]
[67,null,null,"Marciello","Chiara",2008,2,"Weinfelden",91,92,null,null,null,null,1,183,{"$f":"IF(P50=0,\" \",_xlfn.RANK.EQ(P50,$P$7:$P$206,0)+ COUNTIF(P$7:P50, P50) - 1)","v":44}]
[76,null,null,"Munskgaard ","William",2007,2,"Sargans",93,89,null,null,null,null,6,182,{"$f":"IF(P51=0,\" \",_xlfn.RANK.EQ(P51,$P$7:$P$206,0)+ COUNTIF(P$7:P51, P51) - 1)","v":45}]
[110,null,null,"Steiner","Joshua",2009,1,"Neckertal",89,93,null,null,null,null,4,182,{"$f":"IF(P52=0,\" \",_xlfn.RANK.EQ(P52,$P$7:$P$206,0)+ COUNTIF(P$7:P52, P52) - 1)","v":46}]
[119,null,null,"Sutter","Natascha",2004,3,"Schönholzerswilen",89,93,null,null,null,null,4,182,{"$f":"IF(P53=0,\" \",_xlfn.RANK.EQ(P53,$P$7:$P$206,0)+ COUNTIF(P$7:P53, P53) - 1)","v":47}]
[133,null,null,"Ziegler","Timo",2010,1,"Neckertal",92,90,null,null,null,null,4,182,{"$f":"IF(P54=0,\" \",_xlfn.RANK.EQ(P54,$P$7:$P$206,0)+ COUNTIF(P$7:P54, P54) - 1)","v":48}]
[39,null,null,"Graf","Rahel",2010,1,"Kirchberg",89,93,null,null,null,null,3,182,{"$f":"IF(P55=0,\" \",_xlfn.RANK.EQ(P55,$P$7:$P$206,0)+ COUNTIF(P$7:P55, P55) - 1)","v":49}]
[74,null,null,"Moser","Jan",2007,2,"Wildhaus",91,91,null,null,null,null,3,182,{"$f":"IF(P56=0,\" \",_xlfn.RANK.EQ(P56,$P$7:$P$206,0)+ COUNTIF(P$7:P56, P56) - 1)","v":50}]
[29,null,null,"Fromm","Valentin",2008,2,"Sargans",94,88,null,null,null,null,3,182,{"$f":"IF(P57=0,\" \",_xlfn.RANK.EQ(P57,$P$7:$P$206,0)+ COUNTIF(P$7:P57, P57) - 1)","v":51}]
[135,null,null,"Zumstein","Vincenza",2005,3,"Weissbad",92,90,null,null,null,null,2,182,{"$f":"IF(P58=0,\" \",_xlfn.RANK.EQ(P58,$P$7:$P$206,0)+ COUNTIF(P$7:P58, P58) - 1)","v":52}]
[32,null,null,"Gad","Karim",2003,3,"Munot Schaffhausen",94,88,null,null,null,null,2,182,{"$f":"IF(P59=0,\" \",_xlfn.RANK.EQ(P59,$P$7:$P$206,0)+ COUNTIF(P$7:P59, P59) - 1)","v":53}]
[35,null,null,"Gmünder","Janin",2005,3,"Weissbad",91,91,null,null,null,null,1,182,{"$f":"IF(P60=0,\" \",_xlfn.RANK.EQ(P60,$P$7:$P$206,0)+ COUNTIF(P$7:P60, P60) - 1)","v":54}]
[59,null,null,"Locher","Livio",2002,3,"Weissbad",92,90,null,null,null,null,1,182,{"$f":"IF(P61=0,\" \",_xlfn.RANK.EQ(P61,$P$7:$P$206,0)+ COUNTIF(P$7:P61, P61) - 1)","v":55}]
[100,null,null,"Schumacher","Manuel",2003,3,"Weinfelden",93,88,null,null,null,null,5,181,{"$f":"IF(P62=0,\" \",_xlfn.RANK.EQ(P62,$P$7:$P$206,0)+ COUNTIF(P$7:P62, P62) - 1)","v":56}]
[70,null,null,"Meier","Noah",2010,1,"Goldach",88,93,null,null,null,null,2,181,{"$f":"IF(P63=0,\" \",_xlfn.RANK.EQ(P63,$P$7:$P$206,0)+ COUNTIF(P$7:P63, P63) - 1)","v":57}]
[12,null,null,"Blattner","Mia",2009,1,"Goldach",92,88,null,null,null,null,5,180,{"$f":"IF(P64=0,\" \",_xlfn.RANK.EQ(P64,$P$7:$P$206,0)+ COUNTIF(P$7:P64, P64) - 1)","v":58}]
[7,null,null,"Baumgartner","Michael",2003,3,"Munot Schaffhausen",87,93,null,null,null,null,3,180,{"$f":"IF(P65=0,\" \",_xlfn.RANK.EQ(P65,$P$7:$P$206,0)+ COUNTIF(P$7:P65, P65) - 1)","v":59}]
[21,null,null,"Correia","Sandro",2006,2,"Schönholzerswilen",90,90,null,null,null,null,1,180,{"$f":"IF(P66=0,\" \",_xlfn.RANK.EQ(P66,$P$7:$P$206,0)+ COUNTIF(P$7:P66, P66) - 1)","v":60}]
[68,null,null,"Marciello","Chiara",2008,4,"Weinfelden",null,null,89,90,null,null,4,179,{"$f":"IF(P67=0,\" \",_xlfn.RANK.EQ(P67,$P$7:$P$206,0)+ COUNTIF(P$7:P67, P67) - 1)","v":61}]
[42,null,null,"Hassioui","Elias",2011,1,"Sitterdorf",86,93,null,null,null,null,4,179,{"$f":"IF(P68=0,\" \",_xlfn.RANK.EQ(P68,$P$7:$P$206,0)+ COUNTIF(P$7:P68, P68) - 1)","v":62}]
[129,null,null,"Wenk","Alexander",2011,1,"Goldach",86,93,null,null,null,null,3,179,{"$f":"IF(P69=0,\" \",_xlfn.RANK.EQ(P69,$P$7:$P$206,0)+ COUNTIF(P$7:P69, P69) - 1)","v":63}]
[127,null,null,"Wachsmann","Phillip",2008,1,"Sargans",89,90,null,null,null,null,3,179,{"$f":"IF(P70=0,\" \",_xlfn.RANK.EQ(P70,$P$7:$P$206,0)+ COUNTIF(P$7:P70, P70) - 1)","v":64}]
[132,null,null,"Wildi","Clarissa",2008,1,"Grabs",92,87,null,null,null,null,1,{"$f":"SUM(I71:N71)","v":179},{"$f":"IF(P71=0,\" \",_xlfn.RANK.EQ(P71,$P$7:$P$206,0)+ COUNTIF(P$7:P71, P71) - 1)","v":65}]
[16,null,null,"Brändli","Joya",2004,3,"Schönholzerswilen",86,92,null,null,null,null,5,178,{"$f":"IF(P72=0,\" \",_xlfn.RANK.EQ(P72,$P$7:$P$206,0)+ COUNTIF(P$7:P72, P72) - 1)","v":66}]
[44,null,null,"Huldi","Patrick ",2009,1,"Neckertal",89,89,null,null,null,null,4,178,{"$f":"IF(P73=0,\" \",_xlfn.RANK.EQ(P73,$P$7:$P$206,0)+ COUNTIF(P$7:P73, P73) - 1)","v":67}]
[38,null,null,"Graf","Felix",2011,1,"Kirchberg",86,92,null,null,null,null,2,178,{"$f":"IF(P74=0,\" \",_xlfn.RANK.EQ(P74,$P$7:$P$206,0)+ COUNTIF(P$7:P74, P74) - 1)","v":68}]
[108,null,null,"Staub","Kaya",2008,1,"Schönholzerswilen",87,91,null,null,null,null,2,178,{"$f":"IF(P75=0,\" \",_xlfn.RANK.EQ(P75,$P$7:$P$206,0)+ COUNTIF(P$7:P75, P75) - 1)","v":69}]
[95,null,null,"Schönenberger","Fynn",2010,1,"Sitterdorf",90,88,null,null,null,null,1,178,{"$f":"IF(P76=0,\" \",_xlfn.RANK.EQ(P76,$P$7:$P$206,0)+ COUNTIF(P$7:P76, P76) - 1)","v":70}]
[5,null,null,"Auer","Tobias",2005,3,"Sitterdorf",90,88,null,null,null,null,0,178,{"$f":"IF(P77=0,\" \",_xlfn.RANK.EQ(P77,$P$7:$P$206,0)+ COUNTIF(P$7:P77, P77) - 1)","v":71}]
[17,null,null,"Broger","Simon",2006,2,"Weissbad",87,90,null,null,null,null,4,177,{"$f":"IF(P78=0,\" \",_xlfn.RANK.EQ(P78,$P$7:$P$206,0)+ COUNTIF(P$7:P78, P78) - 1)","v":72}]
[82,null,null,"Patt","Andrea",2006,2,"St.Gallen",89,88,null,null,null,null,4,177,{"$f":"IF(P79=0,\" \",_xlfn.RANK.EQ(P79,$P$7:$P$206,0)+ COUNTIF(P$7:P79, P79) - 1)","v":73}]
[6,null,null,"Balgar","Samuel",2009,2,"Goldach",88,89,null,null,null,null,3,177,{"$f":"IF(P80=0,\" \",_xlfn.RANK.EQ(P80,$P$7:$P$206,0)+ COUNTIF(P$7:P80, P80) - 1)","v":74}]
[26,null,null,"Fries","Eliano",2010,1,"Goldach",87,90,null,null,null,null,2,177,{"$f":"IF(P81=0,\" \",_xlfn.RANK.EQ(P81,$P$7:$P$206,0)+ COUNTIF(P$7:P81, P81) - 1)","v":75}]
[78,null,null,"Oberholzer","Raffael ",2005,3,"Sitterdorf",88,89,null,null,null,null,1,177,{"$f":"IF(P82=0,\" \",_xlfn.RANK.EQ(P82,$P$7:$P$206,0)+ COUNTIF(P$7:P82, P82) - 1)","v":76}]
[99,null,null,"Schrittwieser","Thomas",2005,3,"Weinfelden",90,87,null,null,null,null,1,177,{"$f":"IF(P83=0,\" \",_xlfn.RANK.EQ(P83,$P$7:$P$206,0)+ COUNTIF(P$7:P83, P83) - 1)","v":77}]
[91,null,null,"Schittenhelm","Dennis",2003,4,"Goldach",null,null,90,86,null,null,3,176,{"$f":"IF(P84=0,\" \",_xlfn.RANK.EQ(P84,$P$7:$P$206,0)+ COUNTIF(P$7:P84, P84) - 1)","v":78}]
[93,null,null,"Schläpfer ","Michael",2009,2,"Weinfelden",90,86,null,null,null,null,3,176,{"$f":"IF(P85=0,\" \",_xlfn.RANK.EQ(P85,$P$7:$P$206,0)+ COUNTIF(P$7:P85, P85) - 1)","v":79}]
[73,null,null,"Mettler","Andri",2010,1,"Neckertal",83,92,null,null,null,null,4,175,{"$f":"IF(P86=0,\" \",_xlfn.RANK.EQ(P86,$P$7:$P$206,0)+ COUNTIF(P$7:P86, P86) - 1)","v":80}]
[75,null,null,"Moser","Jan",2007,4,"Wildhaus",null,null,87,88,null,null,2,175,{"$f":"IF(P87=0,\" \",_xlfn.RANK.EQ(P87,$P$7:$P$206,0)+ COUNTIF(P$7:P87, P87) - 1)","v":81}]
[4,null,null,"Ammann","Pirmin",2007,4,"Neckertal",null,null,89,86,null,null,1,175,{"$f":"IF(P88=0,\" \",_xlfn.RANK.EQ(P88,$P$7:$P$206,0)+ COUNTIF(P$7:P88, P88) - 1)","v":82}]
[134,null,null,"Ziltener","Sina",2007,2,"Goldach",86,89,null,null,null,null,1,175,{"$f":"IF(P89=0,\" \",_xlfn.RANK.EQ(P89,$P$7:$P$206,0)+ COUNTIF(P$7:P89, P89) - 1)","v":83}]
[87,null,null,"Sawall","Fabienne",2007,2,"Grabs",88,86,null,null,null,null,5,174,{"$f":"IF(P90=0,\" \",_xlfn.RANK.EQ(P90,$P$7:$P$206,0)+ COUNTIF(P$7:P90, P90) - 1)","v":84}]
[23,null,null,"Dornbierer","Timon",2007,2,"Goldach",87,87,null,null,null,null,2,174,{"$f":"IF(P91=0,\" \",_xlfn.RANK.EQ(P91,$P$7:$P$206,0)+ COUNTIF(P$7:P91, P91) - 1)","v":85}]
[10,null,null,"Bernet","Kevin",2005,3,"Kirchberg",89,85,null,null,null,null,2,174,{"$f":"IF(P92=0,\" \",_xlfn.RANK.EQ(P92,$P$7:$P$206,0)+ COUNTIF(P$7:P92, P92) - 1)","v":86}]
[13,null,null,"Bleiker","Beda",2009,1,"Mosnang",85,89,null,null,null,null,1,174,{"$f":"IF(P93=0,\" \",_xlfn.RANK.EQ(P93,$P$7:$P$206,0)+ COUNTIF(P$7:P93, P93) - 1)","v":87}]
[79,null,null,"Oettli ","Philipp",2006,2,"Weinfelden",86,88,null,null,null,null,1,174,{"$f":"IF(P94=0,\" \",_xlfn.RANK.EQ(P94,$P$7:$P$206,0)+ COUNTIF(P$7:P94, P94) - 1)","v":88}]
[107,null,null,"Städler","Sven",2005,3,"Weissbad",87,87,null,null,null,null,1,174,{"$f":"IF(P95=0,\" \",_xlfn.RANK.EQ(P95,$P$7:$P$206,0)+ COUNTIF(P$7:P95, P95) - 1)","v":89}]
[37,null,null,"Good ","Cedric",2009,2,"Sargans",89,85,null,null,null,null,1,174,{"$f":"IF(P96=0,\" \",_xlfn.RANK.EQ(P96,$P$7:$P$206,0)+ COUNTIF(P$7:P96, P96) - 1)","v":90}]
[28,null,null,"Fritsche","Maurus",2002,4,"Weissbad",null,null,90,83,null,null,4,173,{"$f":"IF(P97=0,\" \",_xlfn.RANK.EQ(P97,$P$7:$P$206,0)+ COUNTIF(P$7:P97, P97) - 1)","v":91}]
[136,null,null,"Zweifel","Noel",2010,2,"Kirchberg",85,87,null,null,null,null,4,172,{"$f":"IF(P98=0,\" \",_xlfn.RANK.EQ(P98,$P$7:$P$206,0)+ COUNTIF(P$7:P98, P98) - 1)","v":92}]
[25,null,null,"Fässler","Ryan",2011,1,"Goldach",90,82,null,null,null,null,3,172,{"$f":"IF(P99=0,\" \",_xlfn.RANK.EQ(P99,$P$7:$P$206,0)+ COUNTIF(P$7:P99, P99) - 1)","v":93}]
[123,null,null,"Truniger","Nils",2008,1,"Mosnang",86,86,null,null,null,null,2,172,{"$f":"IF(P100=0,\" \",_xlfn.RANK.EQ(P100,$P$7:$P$206,0)+ COUNTIF(P$7:P100, P100) - 1)","v":94}]
[84,null,null,"Rick","Colin",2009,2,"Goldach",95,77,null,null,null,null,2,172,{"$f":"IF(P101=0,\" \",_xlfn.RANK.EQ(P101,$P$7:$P$206,0)+ COUNTIF(P$7:P101, P101) - 1)","v":95}]
[117,null,null,"Studer","Julien",2010,1,"Munot Schaffhausen",85,87,null,null,null,null,1,172,{"$f":"IF(P102=0,\" \",_xlfn.RANK.EQ(P102,$P$7:$P$206,0)+ COUNTIF(P$7:P102, P102) - 1)","v":96}]
[19,null,null,"Brühlmann","David",2004,3,"Munot Schaffhausen",85,87,null,null,null,null,1,{"$f":"SUM(I103:N103)","v":172},{"$f":"IF(P103=0,\" \",_xlfn.RANK.EQ(P103,$P$7:$P$206,0)+ COUNTIF(P$7:P103, P103) - 1)","v":97}]
[69,null,null,"Matanovic","Josipa",2007,2,"Grabs",85,85,null,null,null,null,1,170,{"$f":"IF(P104=0,\" \",_xlfn.RANK.EQ(P104,$P$7:$P$206,0)+ COUNTIF(P$7:P104, P104) - 1)","v":98}]
[50,null,null,"Koller ","Bryan",2009,1,"Kirchberg",86,84,null,null,null,null,1,170,{"$f":"IF(P105=0,\" \",_xlfn.RANK.EQ(P105,$P$7:$P$206,0)+ COUNTIF(P$7:P105, P105) - 1)","v":99}]
[56,null,null,"Kutter","Joel",2010,2,"Dettighofen",83,87,null,null,null,null,0,170,{"$f":"IF(P106=0,\" \",_xlfn.RANK.EQ(P106,$P$7:$P$206,0)+ COUNTIF(P$7:P106, P106) - 1)","v":100}]
[18,null,null,"Broger","Simon",2006,4,"Weissbad",null,null,85,84,null,null,null,169,{"$f":"IF(P107=0,\" \",_xlfn.RANK.EQ(P107,$P$7:$P$206,0)+ COUNTIF(P$7:P107, P107) - 1)","v":101}]
[126,null,null,"Ulmann","Jan ",2005,4,"Weissbad",null,null,83,85,null,null,1,168,{"$f":"IF(P108=0,\" \",_xlfn.RANK.EQ(P108,$P$7:$P$206,0)+ COUNTIF(P$7:P108, P108) - 1)","v":102}]
[115,null,null,"Strübi ","Manuel",2008,4,"Wildhaus",null,null,84,83,null,null,2,167,{"$f":"IF(P109=0,\" \",_xlfn.RANK.EQ(P109,$P$7:$P$206,0)+ COUNTIF(P$7:P109, P109) - 1)","v":103}]
[55,null,null,"Küttel","Patrick",2006,2,"Schönholzerswilen",82,82,null,null,null,null,3,164,{"$f":"IF(P110=0,\" \",_xlfn.RANK.EQ(P110,$P$7:$P$206,0)+ COUNTIF(P$7:P110, P110) - 1)","v":104}]
[24,null,null,"Eggenberger","Raffael",2007,2,"Grabs",80,84,null,null,null,null,2,164,{"$f":"IF(P111=0,\" \",_xlfn.RANK.EQ(P111,$P$7:$P$206,0)+ COUNTIF(P$7:P111, P111) - 1)","v":105}]
[49,null,null,"Koch","Leandro",2011,1,"Weissbad",85,79,null,null,null,null,1,164,{"$f":"IF(P112=0,\" \",_xlfn.RANK.EQ(P112,$P$7:$P$206,0)+ COUNTIF(P$7:P112, P112) - 1)","v":106}]
[102,null,null,"Segmüller","Arno",2006,2,"Altstätten",77,87,null,null,null,null,0,164,{"$f":"IF(P113=0,\" \",_xlfn.RANK.EQ(P113,$P$7:$P$206,0)+ COUNTIF(P$7:P113, P113) - 1)","v":107}]
[113,null,null,"Straub","Patrick",2009,2,"Dettighofen",79,84,null,null,null,null,1,163,{"$f":"IF(P114=0,\" \",_xlfn.RANK.EQ(P114,$P$7:$P$206,0)+ COUNTIF(P$7:P114, P114) - 1)","v":108}]
[120,null,null,"Taranto","Arya",2008,2,"Wil",81,82,null,null,null,null,1,163,{"$f":"IF(P115=0,\" \",_xlfn.RANK.EQ(P115,$P$7:$P$206,0)+ COUNTIF(P$7:P115, P115) - 1)","v":109}]
[66,null,null,"Manser","Jonas",2006,4,"Weissbad",null,null,80,83,null,null,null,163,{"$f":"IF(P116=0,\" \",_xlfn.RANK.EQ(P116,$P$7:$P$206,0)+ COUNTIF(P$7:P116, P116) - 1)","v":110}]
[9,null,null,"Berger","Marc",2013,1,"Sitterdorf",81,80,null,null,null,null,1,161,{"$f":"IF(P117=0,\" \",_xlfn.RANK.EQ(P117,$P$7:$P$206,0)+ COUNTIF(P$7:P117, P117) - 1)","v":111}]
[112,null,null,"Stieger","Ken",2006,2,"Weinfelden",82,78,null,null,null,null,1,160,{"$f":"IF(P118=0,\" \",_xlfn.RANK.EQ(P118,$P$7:$P$206,0)+ COUNTIF(P$7:P118, P118) - 1)","v":112}]
[71,null,null,"Meier","Jerome",2012,1,"Schönholzerswilen",81,79,null,null,null,null,0,160,{"$f":"IF(P119=0,\" \",_xlfn.RANK.EQ(P119,$P$7:$P$206,0)+ COUNTIF(P$7:P119, P119) - 1)","v":113}]
[47,null,null,"Kalbitz","Andrin",2008,2,"Weinfelden",81,78,null,null,null,null,0,159,{"$f":"IF(P120=0,\" \",_xlfn.RANK.EQ(P120,$P$7:$P$206,0)+ COUNTIF(P$7:P120, P120) - 1)","v":114}]
[86,null,null,"Rohner","Enea",2012,1,"Sitterdorf",78,80,null,null,null,null,0,158,{"$f":"IF(P121=0,\" \",_xlfn.RANK.EQ(P121,$P$7:$P$206,0)+ COUNTIF(P$7:P121, P121) - 1)","v":115}]
[90,null,null,"Scherrer","Benjamin",2003,4,"Weinfelden",null,null,83,74,null,null,null,157,{"$f":"IF(P122=0,\" \",_xlfn.RANK.EQ(P122,$P$7:$P$206,0)+ COUNTIF(P$7:P122, P122) - 1)","v":116}]
[43,null,null,"Henke","Quentin",2009,2,"Kirchberg",81,72,null,null,null,null,0,153,{"$f":"IF(P123=0,\" \",_xlfn.RANK.EQ(P123,$P$7:$P$206,0)+ COUNTIF(P$7:P123, P123) - 1)","v":117}]
[122,null,null,"Thalmann","Silas",2010,1,"Weinfelden",66,84,null,null,null,null,1,150,{"$f":"IF(P124=0,\" \",_xlfn.RANK.EQ(P124,$P$7:$P$206,0)+ COUNTIF(P$7:P124, P124) - 1)","v":118}]
[137,null,null,"Münger","Benaja",2008,1,"Neckertal",75,73,null,null,null,null,0,148,{"$f":"IF(P125=0,\" \",_xlfn.RANK.EQ(P125,$P$7:$P$206,0)+ COUNTIF(P$7:P125, P125) - 1)","v":119}]
[1,null,null,"Aeberli","Lionél",2010,1,"Dettighofen",65,75,null,null,null,null,0,140,{"$f":"IF(P126=0,\" \",_xlfn.RANK.EQ(P126,$P$7:$P$206,0)+ COUNTIF(P$7:P126, P126) - 1)","v":120}]
[97,null,null,"Schönenberger","Zoé",2007,4,"Sitterdorf",null,null,62,71,null,null,0,133,{"$f":"IF(P127=0,\" \",_xlfn.RANK.EQ(P127,$P$7:$P$206,0)+ COUNTIF(P$7:P127, P127) - 1)","v":121}]
[121,null,null,"Thalmann","Robin",2012,1,"Weinfelden",62,69,null,null,null,null,1,131,{"$f":"IF(P128=0,\" \",_xlfn.RANK.EQ(P128,$P$7:$P$206,0)+ COUNTIF(P$7:P128, P128) - 1)","v":122}]
[72,null,null,"Meier","Astid",2002,3,"St.Gallen",100,97,null,null,null,null,6,{"$f":"SUM(Startliste!K12977)","v":0},{"$f":"IF(P129=0,\" \",_xlfn.RANK.EQ(P129,$P$7:$P$206,0)+ COUNTIF(P$7:P129, P129) - 1)","v":" "}]
[45,null,null,"Jenal","Jarik",2012,1,"Sitterdorf",null,null,null,null,null,null,null,{"$f":"SUM(I130:N130)","v":0},{"$f":"IF(P130=0,\" \",_xlfn.RANK.EQ(P130,$P$7:$P$206,0)+ COUNTIF(P$7:P130, P130) - 1)","v":" "}]
[98,null,null,"Schorta ","Moreno",2012,1,"Sitterdorf",null,null,null,null,null,null,null,0,{"$f":"IF(P131=0,\" \",_xlfn.RANK.EQ(P131,$P$7:$P$206,0)+ COUNTIF(P$7:P131, P131) - 1)","v":" "}]
[2,null,null,"Alder","James",2009,1,"Sitterdorf",null,null,null,null,null,null,null,0,{"$f":"IF(P132=0,\" \",_xlfn.RANK.EQ(P132,$P$7:$P$206,0)+ COUNTIF(P$7:P132, P132) - 1)","v":" "}]
[116,null,null,"Studer","Lorin",2009,1,"Dettighofen",null,null,null,null,null,null,null,0,{"$f":"IF(P133=0,\" \",_xlfn.RANK.EQ(P133,$P$7:$P$206,0)+ COUNTIF(P$7:P133, P133) - 1)","v":" "}]
[41,null,null,"Häseli","Max",2008,2,"Kirchberg",null,null,null,null,null,null,null,0,{"$f":"IF(P134=0,\" \",_xlfn.RANK.EQ(P134,$P$7:$P$206,0)+ COUNTIF(P$7:P134, P134) - 1)","v":" "}]
[106,null,null,"Sprenger","Sven",2008,4,"Altstätten",null,null,null,null,null,null,null,0,{"$f":"IF(P135=0,\" \",_xlfn.RANK.EQ(P135,$P$7:$P$206,0)+ COUNTIF(P$7:P135, P135) - 1)","v":" "}]
[62,null,null,"Mäder","Alex",2005,3,"Sitterdorf",null,null,null,null,null,null,null,0,{"$f":"IF(P136=0,\" \",_xlfn.RANK.EQ(P136,$P$7:$P$206,0)+ COUNTIF(P$7:P136, P136) - 1)","v":" "}]
[63,null,null,"Mäder","Alex",2005,4,"Sitterdorf",null,null,null,null,null,null,null,0,{"$f":"IF(P137=0,\" \",_xlfn.RANK.EQ(P137,$P$7:$P$206,0)+ COUNTIF(P$7:P137, P137) - 1)","v":" "}]
[80,null,null,"Oppliger","Alisa",2005,3,"Dicken Ebnat-Kappel",null,null,null,null,null,null,null,0,{"$f":"IF(P138=0,\" \",_xlfn.RANK.EQ(P138,$P$7:$P$206,0)+ COUNTIF(P$7:P138, P138) - 1)","v":" "}]
[11,null,null,"Bissegger","Robin",2004,3,"Weinfelden",null,null,null,null,null,null,null,0,{"$f":"IF(P139=0,\" \",_xlfn.RANK.EQ(P139,$P$7:$P$206,0)+ COUNTIF(P$7:P139, P139) - 1)","v":" "}]
[31,null,null,"Früh","Janis",2004,4,"Kirchberg",null,null,null,null,null,null,null,0,{"$f":"IF(P140=0,\" \",_xlfn.RANK.EQ(P140,$P$7:$P$206,0)+ COUNTIF(P$7:P140, P140) - 1)","v":" "}]
[36,null,null,"Gmünder","Simon",2003,3,"Weissbad",null,null,null,null,null,null,null,0,{"$f":"IF(P141=0,\" \",_xlfn.RANK.EQ(P141,$P$7:$P$206,0)+ COUNTIF(P$7:P141, P141) - 1)","v":" "}]
[94,null,null,"Schnetzer","Colin",2003,3,"Sitterdorf",null,null,null,null,null,null,null,0,{"$f":"IF(P142=0,\" \",_xlfn.RANK.EQ(P142,$P$7:$P$206,0)+ COUNTIF(P$7:P142, P142) - 1)","v":" "}]
[124,null,null,"Tunyogi ","Daniel",2003,3,"Sargans",null,null,null,null,null,null,null,0,{"$f":"IF(P143=0,\" \",_xlfn.RANK.EQ(P143,$P$7:$P$206,0)+ COUNTIF(P$7:P143, P143) - 1)","v":" "}]
[138,null,null,null,null,null,null,null,null,null,null,null,null,null,null,0,{"$f":"IF(P144=0,\" \",_xlfn.RANK.EQ(P144,$P$7:$P$206,0)+ COUNTIF(P$7:P144, P144) - 1)","v":" "}]
[null,null,null,null,null,null,null,null,null,null,null,null,null,null,null,0,{"$f":"IF(P145=0,\" \",_xlfn.RANK.EQ(P145,$P$7:$P$206,0)+ COUNTIF(P$7:P145, P145) - 1)","v":" "}]
[null,null,null,null,null,null,null,null,null,null,null,null,null,null,null,0,{"$f":"IF(P146=0,\" \",_xlfn.RANK.EQ(P146,$P$7:$P$206,0)+ COUNTIF(P$7:P146, P146) - 1)","v":" "}]
[null,null,null,null,null,null,null,null,null,null,null,null,null,null,null,0,{"$f":"IF(P147=0,\" \",_xlfn.RANK.EQ(P147,$P$7:$P$206,0)+ COUNTIF(P$7:P147, P147) - 1)","v":" "}]
[null,null,null,null,null,null,null,null,null,null,null,null,null,null,null,0,{"$f":"IF(P148=0,\" \",_xlfn.RANK.EQ(P148,$P$7:$P$206,0)+ COUNTIF(P$7:P148, P148) - 1)","v":" "}]
[null,null,null,null,null,null,null,null,null,null,null,null,null,null,null,0,{"$f":"IF(P149=0,\" \",_xlfn.RANK.EQ(P149,$P$7:$P$206,0)+ COUNTIF(P$7:P149, P149) - 1)","v":" "}]
[null,null,null,null,null,null,null,null,null,null,null,null,null,null,null,0,{"$f":"IF(P150=0,\" \",_xlfn.RANK.EQ(P150,$P$7:$P$206,0)+ COUNTIF(P$7:P150, P150) - 1)","v":" "}]
[null,null,null,null,null,null,null,null,null,null,null,null,null,null,null,0,{"$f":"IF(P151=0,\" \",_xlfn.RANK.EQ(P151,$P$7:$P$206,0)+ COUNTIF(P$7:P151, P151) - 1)","v":" "}]
[null,null,null,null,null,null,null,null,null,null,null,null,null,null,null,0,{"$f":"IF(P152=0,\" \",_xlfn.RANK.EQ(P152,$P$7:$P$206,0)+ COUNTIF(P$7:P152, P152) - 1)","v":" "}]
[null,null,null,null,null,null,null,null,null,null,null,null,null,null,null,0,{"$f":"IF(P153=0,\" \",_xlfn.RANK.EQ(P153,$P$7:$P$206,0)+ COUNTIF(P$7:P153, P153) - 1)","v":" "}]
[null,null,null,null,null,null,null,null,null,null,null,null,null,null,null,0,{"$f":"IF(P154=0,\" \",_xlfn.RANK.EQ(P154,$P$7:$P$206,0)+ COUNTIF(P$7:P154, P154) - 1)","v":" "}]
[null,null,null,null,null,null,null,null,null,null,null,null,null,null,null,0,{"$f":"IF(P155=0,\" \",_xlfn.RANK.EQ(P155,$P$7:$P$206,0)+ COUNTIF(P$7:P155, P155) - 1)","v":" "}]
[null,null,null,null,null,null,null,null,null,null,null,null,null,null,null,0,{"$f":"IF(P156=0,\" \",_xlfn.RANK.EQ(P156,$P$7:$P$206,0)+ COUNTIF(P$7:P156, P156) - 1)","v":" "}]
[null,null,null,null,null,null,null,null,null,null,null,null,null,null,null,0,{"$f":"IF(P157=0,\" \",_xlfn.RANK.EQ(P157,$P$7:$P$206,0)+ COUNTIF(P$7:P157, P157) - 1)","v":" "}]
[null,null,null,null,null,null,null,null,null,null,null,null,null,null,null,0,{"$f":"IF(P158=0,\" \",_xlfn.RANK.EQ(P158,$P$7:$P$206,0)+ COUNTIF(P$7:P158, P158) - 1)","v":" "}]
[null,null,null,null,null,null,null,null,null,null,null,null,null,null,null,0,{"$f":"IF(P159=0,\" \",_xlfn.RANK.EQ(P159,$P$7:$P$206,0)+ COUNTIF(P$7:P159, P159) - 1)","v":" "}]
[null,null,null,null,null,null,null,null,null,null,null,null,null,null,null,0,{"$f":"IF(P160=0,\" \",_xlfn.RANK.EQ(P160,$P$7:$P$206,0)+ COUNTIF(P$7:P160, P160) - 1)","v":" "}]
[null,null,null,null,null,null,null,null,null,null,null,null,null,null,null,0,{"$f":"IF(P161=0,\" \",_xlfn.RANK.EQ(P161,$P$7:$P$206,0)+ COUNTIF(P$7:P161, P161) - 1)","v":" "}]
[null,null,null,null,null,null,null,null,null,null,null,null,null,null,null,{"$f":"SUM(I162:N162)","v":0},{"$f":"IF(P162=0,\" \",_xlfn.RANK.EQ(P162,$P$7:$P$206,0)+ COUNTIF(P$7:P162, P162) - 1)","v":" "}]
[null,null,null,null,null,null,null,null,null,null,null,null,null,null,null,0,{"$f":"IF(P163=0,\" \",_xlfn.RANK.EQ(P163,$P$7:$P$206,0)+ COUNTIF(P$7:P163, P163) - 1)","v":" "}]
[null,null,null,null,null,null,null,null,null,null,null,null,null,null,null,0,{"$f":"IF(P164=0,\" \",_xlfn.RANK.EQ(P164,$P$7:$P$206,0)+ COUNTIF(P$7:P164, P164) - 1)","v":" "}]
[null,null,null,null,null,null,null,null,null,null,null,null,null,null,null,0,{"$f":"IF(P165=0,\" \",_xlfn.RANK.EQ(P165,$P$7:$P$206,0)+ COUNTIF(P$7:P165, P165) - 1)","v":" "}]
[null,null,null,null,null,null,null,null,null,null,null,null,null,null,null,0,{"$f":"IF(P166=0,\" \",_xlfn.RANK.EQ(P166,$P$7:$P$206,0)+ COUNTIF(P$7:P166, P166) - 1)","v":" "}]
[null,null,null,null,null,null,null,null,null,null,null,null,null,null,null,0,{"$f":"IF(P167=0,\" \",_xlfn.RANK.EQ(P167,$P$7:$P$206,0)+ COUNTIF(P$7:P167, P167) - 1)","v":" "}]
[null,null,null,null,null,null,null,null,null,null,null,null,null,null,null,0,{"$f":"IF(P168=0,\" \",_xlfn.RANK.EQ(P168,$P$7:$P$206,0)+ COUNTIF(P$7:P168, P168) - 1)","v":" "}]
[null,null,null,null,null,null,null,null,null,null,null,null,null,null,null,0,{"$f":"IF(P169=0,\" \",_xlfn.RANK.EQ(P169,$P$7:$P$206,0)+ COUNTIF(P$7:P169, P169) - 1)","v":" "}]
[null,null,null,null,null,null,null,null,null,null,null,null,null,null,null,0,{"$f":"IF(P170=0,\" \",_xlfn.RANK.EQ(P170,$P$7:$P$206,0)+ COUNTIF(P$7:P170, P170) - 1)","v":" "}]
[null,null,null,null,null,null,null,null,null,null,null,null,null,null,null,0,{"$f":"IF(P171=0,\" \",_xlfn.RANK.EQ(P171,$P$7:$P$206,0)+ COUNTIF(P$7:P171, P171) - 1)","v":" "}]
[null,null,null,null,null,null,null,null,null,null,null,null,null,null,null,0,{"$f":"IF(P172=0,\" \",_xlfn.RANK.EQ(P172,$P$7:$P$206,0)+ COUNTIF(P$7:P172, P172) - 1)","v":" "}]
[null,null,null,null,null,null,null,null,null,null,null,null,null,null,null,0,{"$f":"IF(P173=0,\" \",_xlfn.RANK.EQ(P173,$P$7:$P$206,0)+ COUNTIF(P$7:P173, P173) - 1)","v":" "}]
[null,null,null,null,null,null,null,null,null,null,null,null,null,null,null,0,{"$f":"IF(P174=0,\" \",_xlfn.RANK.EQ(P174,$P$7:$P$206,0)+ COUNTIF(P$7:P174, P174) - 1)","v":" "}]
[null,null,null,null,null,null,null,null,null,null,null,null,null,null,null,0,{"$f":"IF(P175=0,\" \",_xlfn.RANK.EQ(P175,$P$7:$P$206,0)+ COUNTIF(P$7:P175, P175) - 1)","v":" "}]
[null,null,null,null,null,null,null,null,null,null,null,null,null,null,null,0,{"$f":"IF(P176=0,\" \",_xlfn.RANK.EQ(P176,$P$7:$P$206,0)+ COUNTIF(P$7:P176, P176) - 1)","v":" "}]
[null,null,null,null,null,null,null,null,null,null,null,null,null,null,null,0,{"$f":"IF(P177=0,\" \",_xlfn.RANK.EQ(P177,$P$7:$P$206,0)+ COUNTIF(P$7:P177, P177) - 1)","v":" "}]
[null,null,null,null,null,null,null,null,null,null,null,null,null,null,null,0,{"$f":"IF(P178=0,\" \",_xlfn.RANK.EQ(P178,$P$7:$P$206,0)+ COUNTIF(P$7:P178, P178) - 1)","v":" "}]
[null,null,null,null,null,null,null,null,null,null,null,null,null,null,null,0,{"$f":"IF(P179=0,\" \",_xlfn.RANK.EQ(P179,$P$7:$P$206,0)+ COUNTIF(P$7:P179, P179) - 1)","v":" "}]
[null,null,null,null,null,null,null,null,null,null,null,null,null,null,null,0,{"$f":"IF(P180=0,\" \",_xlfn.RANK.EQ(P180,$P$7:$P$206,0)+ COUNTIF(P$7:P180, P180) - 1)","v":" "}]
[null,null,null,null,null,null,null,null,null,null,null,null,null,null,null,0,{"$f":"IF(P181=0,\" \",_xlfn.RANK.EQ(P181,$P$7:$P$206,0)+ COUNTIF(P$7:P181, P181) - 1)","v":" "}]
[null,null,null,null,null,null,null,null,null,null,null,null,null,null,null,0,{"$f":"IF(P182=0,\" \",_xlfn.RANK.EQ(P182,$P$7:$P$206,0)+ COUNTIF(P$7:P182, P182) - 1)","v":" "}]
[null,null,null,null,null,null,null,null,null,null,null,null,null,null,null,0,{"$f":"IF(P183=0,\" \",_xlfn.RANK.EQ(P183,$P$7:$P$206,0)+ COUNTIF(P$7:P183, P183) - 1)","v":" "}]
[null,null,null,null,null,null,null,null,null,null,null,null,null,null,null,0,{"$f":"IF(P184=0,\" \",_xlfn.RANK.EQ(P184,$P$7:$P$206,0)+ COUNTIF(P$7:P184, P184) - 1)","v":" "}]
[null,null,null,null,null,null,null,null,null,null,null,null,null,null,null,0,{"$f":"IF(P185=0,\" \",_xlfn.RANK.EQ(P185,$P$7:$P$206,0)+ COUNTIF(P$7:P185, P185) - 1)","v":" "}]
[null,null,null,null,null,null,null,null,null,null,null,null,null,null,null,0,{"$f":"IF(P186=0,\" \",_xlfn.RANK.EQ(P186,$P$7:$P$206,0)+ COUNTIF(P$7:P186, P186) - 1)","v":" "}]
[null,null,null,null,null,null,null,null,null,null,null,null,null,null,null,0,{"$f":"IF(P187=0,\" \",_xlfn.RANK.EQ(P187,$P$7:$P$206,0)+ COUNTIF(P$7:P187, P187) - 1)","v":" "}]
[null,null,null,null,null,null,null,null,null,null,null,null,null,null,null,0,{"$f":"IF(P188=0,\" \",_xlfn.RANK.EQ(P188,$P$7:$P$206,0)+ COUNTIF(P$7:P188, P188) - 1)","v":" "}]
[null,null,null,null,null,null,null,null,null,null,null,null,null,null,null,0,{"$f":"IF(P189=0,\" \",_xlfn.RANK.EQ(P189,$P$7:$P$206,0)+ COUNTIF(P$7:P189, P189) - 1)","v":" "}]
[null,null,null,null,null,null,null,null,null,null,null,null,null,null,null,0,{"$f":"IF(P190=0,\" \",_xlfn.RANK.EQ(P190,$P$7:$P$206,0)+ COUNTIF(P$7:P190, P190) - 1)","v":" "}]
[null,null,null,null,null,null,null,null,null,null,null,null,null,null,null,0,{"$f":"IF(P191=0,\" \",_xlfn.RANK.EQ(P191,$P$7:$P$206,0)+ COUNTIF(P$7:P191, P191) - 1)","v":" "}]
[null,null,null,null,null,null,null,null,null,null,null,null,null,null,null,0,{"$f":"IF(P192=0,\" \",_xlfn.RANK.EQ(P192,$P$7:$P$206,0)+ COUNTIF(P$7:P192, P192) - 1)","v":" "}]
[null,null,null,null,null,null,null,null,null,null,null,null,null,null,null,0,{"$f":"IF(P193=0,\" \",_xlfn.RANK.EQ(P193,$P$7:$P$206,0)+ COUNTIF(P$7:P193, P193) - 1)","v":" "}]
[null,null,null,null,null,null,null,null,null,null,null,null,null,null,null,{"$f":"SUM(I194:N194)","v":0},{"$f":"IF(P194=0,\" \",_xlfn.RANK.EQ(P194,$P$7:$P$206,0)+ COUNTIF(P$7:P194, P194) - 1)","v":" "}]
[null,null,null,null,null,null,null,null,null,null,null,null,null,null,null,0,{"$f":"IF(P195=0,\" \",_xlfn.RANK.EQ(P195,$P$7:$P$206,0)+ COUNTIF(P$7:P195, P195) - 1)","v":" "}]
[null,null,null,null,null,null,null,null,null,null,null,null,null,null,null,0,{"$f":"IF(P196=0,\" \",_xlfn.RANK.EQ(P196,$P$7:$P$206,0)+ COUNTIF(P$7:P196, P196) - 1)","v":" "}]
[null,null,null,null,null,null,null,null,null,null,null,null,null,null,null,0,{"$f":"IF(P197=0,\" \",_xlfn.RANK.EQ(P197,$P$7:$P$206,0)+ COUNTIF(P$7:P197, P197) - 1)","v":" "}]
[null,null,null,null,null,null,null,null,null,null,null,null,null,null,null,0,{"$f":"IF(P198=0,\" \",_xlfn.RANK.EQ(P198,$P$7:$P$206,0)+ COUNTIF(P$7:P198, P198) - 1)","v":" "}]
[null,null,null,null,null,null,null,null,null,null,null,null,null,null,null,0,{"$f":"IF(P199=0,\" \",_xlfn.RANK.EQ(P199,$P$7:$P$206,0)+ COUNTIF(P$7:P199, P199) - 1)","v":" "}]
[null,null,null,null,null,null,null,null,null,null,null,null,null,null,null,0,{"$f":"IF(P200=0,\" \",_xlfn.RANK.EQ(P200,$P$7:$P$206,0)+ COUNTIF(P$7:P200, P200) - 1)","v":" "}]
[null,null,null,null,null,null,null,null,null,null,null,null,null,null,null,0,{"$f":"IF(P201=0,\" \",_xlfn.RANK.EQ(P201,$P$7:$P$206,0)+ COUNTIF(P$7:P201, P201) - 1)","v":" "}]
[null,null,null,null,null,null,null,null,null,null,null,null,null,null,null,0,{"$f":"IF(P202=0,\" \",_xlfn.RANK.EQ(P202,$P$7:$P$206,0)+ COUNTIF(P$7:P202, P202) - 1)","v":" "}]
[null,null,null,null,null,null,null,null,null,null,null,null,null,null,null,0,{"$f":"IF(P203=0,\" \",_xlfn.RANK.EQ(P203,$P$7:$P$206,0)+ COUNTIF(P$7:P203, P203) - 1)","v":" "}]
[null,null,null,null,null,null,null,null,null,null,null,null,null,null,null,0,{"$f":"IF(P204=0,\" \",_xlfn.RANK.EQ(P204,$P$7:$P$206,0)+ COUNTIF(P$7:P204, P204) - 1)","v":" "}]
[null,null,null,null,null,null,null,null,null,null,null,null,null,null,null,0,{"$f":"IF(P205=0,\" \",_xlfn.RANK.EQ(P205,$P$7:$P$206,0)+ COUNTIF(P$7:P205, P205) - 1)","v":" "}]
[null,null,null,null,null,null,null,null,null,null,null,null,null,null,null,0,{"$f":"IF(P206=0,\" \",_xlfn.RANK.EQ(P206,$P$7:$P$206,0)+ COUNTIF(P$7:P206, P206) - 1)","v":" "}]

{"sheet":"Kategorie 5 Rangliste","index":7,"n_rows":62,"n_cols":13,"rows_kept":62,"cut":false,"hidden":false,"merged":[[1,0,1,12],[2,0,2,12]]}
[]
[{"$f":"Parameter!C9","v":"Jugendtag 2022"}]
[{"$f":"Parameter!C21","v":"Kat. 5  Jugend 3 Stellung  U19 / U21 eg"}]
[]
[]
[null,"Rang","Name","Vorname","JG","Kat","Verein",null,null,"Total","IZ","KK"]
[null,{"$f":"'Kategorie 5'!Q7","v":1},{"$f":"'Kategorie 5'!D7","v":"Scherrer"},{"$f":"'Kategorie 5'!E7","v":"Benjamin"},{"$f":"'Kategorie 5'!F7","v":2003},{"$f":"'Kategorie 5'!G7","v":3},{"$f":"'Kategorie 5'!H7","v":"Weinfelden"},null,null,{"$f":"'Kategorie 5'!P7","v":193},{"$f":"'Kategorie 5'!O7","v":9},{"$f":"'Kategorie 5'!S7","v":"G"},{"$f":"IF(B7=1,\"GOLD\",\"\")","v":"GOLD"}]
[null,null,null,null,null,null,"P1 / P2 liegend",{"$f":"'Kategorie 5'!I7","v":96},{"$f":"'Kategorie 5'!J7","v":97},{"$f":"SUM(H8:I8)","v":193}]
[null,null,null,null,null,null,"P3 / P4 kniend",{"$f":"'Kategorie 5'!K7","v":0},{"$f":"'Kategorie 5'!L7","v":0},{"$f":"SUM(H9:I9)","v":0}]
[null,null,null,null,null,null,"P5 / P6 stehend",{"$f":"'Kategorie 5'!M7","v":0},{"$f":"'Kategorie 5'!N7","v":0},{"$f":"SUM(H10:I10)","v":0}]
[null,{"$f":"'Kategorie 5'!Q8","v":2},{"$f":"'Kategorie 5'!D8","v":"Patt"},{"$f":"'Kategorie 5'!E8","v":"Michel"},{"$f":"'Kategorie 5'!F8","v":2009},{"$f":"'Kategorie 5'!G8","v":1},{"$f":"'Kategorie 5'!H8","v":"St.Gallen"},null,null,{"$f":"'Kategorie 5'!P8","v":193},{"$f":"'Kategorie 5'!Q8","v":2},{"$f":"'Kategorie 5'!S8","v":"S"},{"$f":"IF(B11=2,\"SILBER\",\"\")","v":"SILBER"}]
[null,null,null,null,null,null,"P1 / P2 liegend",{"$f":"'Kategorie 5'!I8","v":98},{"$f":"'Kategorie 5'!J8","v":95},{"$f":"SUM(H12:I12)","v":193}]
[null,null,null,null,null,null,"P3 / P4 kniend",{"$f":"'Kategorie 5'!K8","v":0},{"$f":"'Kategorie 5'!L8","v":0},{"$f":"SUM(H13:I13)","v":0}]
[null,null,null,null,null,null,"P5 / P6 stehend",{"$f":"'Kategorie 5'!M8","v":0},{"$f":"'Kategorie 5'!N8","v":0},{"$f":"SUM(H14:I14)","v":0}]
[null,{"$f":"'Kategorie 5'!Q9","v":3},{"$f":"'Kategorie 5'!D9","v":"Speck"},{"$f":"'Kategorie 5'!E9","v":"Corina"},{"$f":"'Kategorie 5'!F9","v":2005},{"$f":"'Kategorie 5'!G9","v":3},{"$f":"'Kategorie 5'!H9","v":"Weissbad"},null,null,{"$f":"'Kategorie 5'!P9","v":193},{"$f":"'Kategorie 5'!Q9","v":3},{"$f":"'Kategorie 5'!S9","v":"B"},{"$f":"IF(B15=3,\"Bronze\",\"\")","v":"Bronze"}]
[null,null,null,null,null,null,"P1 / P2 liegend",{"$f":"'Kategorie 5'!I9","v":97},{"$f":"'Kategorie 5'!J9","v":96},{"$f":"SUM(H16:I16)","v":193}]
[null,null,null,null,null,null,"P3 / P4 kniend",{"$f":"'Kategorie 5'!K9","v":0},{"$f":"'Kategorie 5'!L9","v":0},{"$f":"SUM(H17:I17)","v":0}]
[null,null,null,null,null,null,"P5 / P6 stehend",{"$f":"'Kategorie 5'!M9","v":0},{"$f":"'Kategorie 5'!N9","v":0},{"$f":"SUM(H18:I18)","v":0}]
[null,{"$f":"'Kategorie 5'!Q10","v":4},{"$f":"'Kategorie 5'!D10","v":"Ammann"},{"$f":"'Kategorie 5'!E10","v":"Pirmin"},{"$f":"'Kategorie 5'!F10","v":2007},{"$f":"'Kategorie 5'!G10","v":2},{"$f":"'Kategorie 5'!H10","v":"Neckertal"},null,null,{"$f":"'Kategorie 5'!P10","v":192},{"$f":"'Kategorie 5'!Q10","v":4},{"$f":"'Kategorie 5'!S10","v":0},{"$f":"IF(B19=2,\"SILBER\",\"\")","v":""}]
[null,null,null,null,null,null,"P1 / P2 liegend",{"$f":"'Kategorie 5'!I10","v":95},{"$f":"'Kategorie 5'!J10","v":97},{"$f":"SUM(H20:I20)","v":192}]
[null,null,null,null,null,null,"P3 / P4 kniend",{"$f":"'Kategorie 5'!K10","v":0},{"$f":"'Kategorie 5'!L10","v":0},{"$f":"SUM(H21:I21)","v":0}]
[null,null,null,null,null,null,"P5 / P6 stehend",{"$f":"'Kategorie 5'!M10","v":0},{"$f":"'Kategorie 5'!N10","v":0},{"$f":"SUM(H22:I22)","v":0}]
[null,{"$f":"'Kategorie 5'!Q11","v":5},{"$f":"'Kategorie 5'!D11","v":"Kressel "},{"$f":"'Kategorie 5'!E11","v":"Niclas"},{"$f":"'Kategorie 5'!F11","v":2006},{"$f":"'Kategorie 5'!G11","v":2},{"$f":"'Kategorie 5'!H11","v":"Sargans"},null,null,{"$f":"'Kategorie 5'!P11","v":192},{"$f":"'Kategorie 5'!Q11","v":5},{"$f":"'Kategorie 5'!S11","v":0},{"$f":"IF(B23=2,\"SILBER\",\"\")","v":""}]
[null,null,null,null,null,null,"P1 / P2 liegend",{"$f":"'Kategorie 5'!I11","v":96},{"$f":"'Kategorie 5'!J11","v":96},{"$f":"SUM(H24:I24)","v":192}]
[null,null,null,null,null,null,"P3 / P4 kniend",{"$f":"'Kategorie 5'!K11","v":0},{"$f":"'Kategorie 5'!L11","v":0},{"$f":"SUM(H25:I25)","v":0}]
[null,null,null,null,null,null,"P5 / P6 stehend",{"$f":"'Kategorie 5'!M11","v":0},{"$f":"'Kategorie 5'!N11","v":0},{"$f":"SUM(H26:I26)","v":0}]
[null,{"$f":"'Kategorie 5'!Q12","v":6},{"$f":"'Kategorie 5'!D12","v":"Früh"},{"$f":"'Kategorie 5'!E12","v":"Janis"},{"$f":"'Kategorie 5'!F12","v":2004},{"$f":"'Kategorie 5'!G12","v":3},{"$f":"'Kategorie 5'!H12","v":"Kirchberg"},null,null,{"$f":"'Kategorie 5'!P12","v":191},{"$f":"'Kategorie 5'!Q12","v":6},{"$f":"'Kategorie 5'!S12","v":0},{"$f":"IF(B27=2,\"SILBER\",\"\")","v":""}]
[null,null,null,null,null,null,"P1 / P2 liegend",{"$f":"'Kategorie 5'!I12","v":94},{"$f":"'Kategorie 5'!J12","v":97},{"$f":"SUM(H28:I28)","v":191}]
[null,null,null,null,null,null,"P3 / P4 kniend",{"$f":"'Kategorie 5'!K12","v":0},{"$f":"'Kategorie 5'!L12","v":0},{"$f":"SUM(H29:I29)","v":0}]
[null,null,null,null,null,null,"P5 / P6 stehend",{"$f":"'Kategorie 5'!M12","v":0},{"$f":"'Kategorie 5'!N12","v":0},{"$f":"SUM(H30:I30)","v":0}]
[null,{"$f":"'Kategorie 5'!Q13","v":7},{"$f":"'Kategorie 5'!D13","v":"Hagen"},{"$f":"'Kategorie 5'!E13","v":"Linn"},{"$f":"'Kategorie 5'!F13","v":2009},{"$f":"'Kategorie 5'!G13","v":1},{"$f":"'Kategorie 5'!H13","v":"Dettighofen"},null,null,{"$f":"'Kategorie 5'!P13","v":190},{"$f":"'Kategorie 5'!Q13","v":7},{"$f":"'Kategorie 5'!S13","v":0},{"$f":"IF(B31=2,\"SILBER\",\"\")","v":""}]
[null,null,null,null,null,null,"P1 / P2 liegend",{"$f":"'Kategorie 5'!I13","v":94},{"$f":"'Kategorie 5'!J13","v":96},{"$f":"SUM(H32:I32)","v":190}]
[null,null,null,null,null,null,"P3 / P4 kniend",{"$f":"'Kategorie 5'!K13","v":0},{"$f":"'Kategorie 5'!L13","v":0},{"$f":"SUM(H33:I33)","v":0}]
[null,null,null,null,null,null,"P5 / P6 stehend",{"$f":"'Kategorie 5'!M13","v":0},{"$f":"'Kategorie 5'!N13","v":0},{"$f":"SUM(H34:I34)","v":0}]
[null,{"$f":"'Kategorie 5'!Q14","v":8},{"$f":"'Kategorie 5'!D14","v":"Staub"},{"$f":"'Kategorie 5'!E14","v":"Lea"},{"$f":"'Kategorie 5'!F14","v":2002},{"$f":"'Kategorie 5'!G14","v":3},{"$f":"'Kategorie 5'!H14","v":"Schönholzerswilen"},null,null,{"$f":"'Kategorie 5'!P14","v":190},{"$f":"'Kategorie 5'!Q14","v":8},{"$f":"'Kategorie 5'!S14","v":0},{"$f":"IF(B35=2,\"SILBER\",\"\")","v":""}]
[null,null,null,null,null,null,"P1 / P2 liegend",{"$f":"'Kategorie 5'!I14","v":95},{"$f":"'Kategorie 5'!J14","v":95},{"$f":"SUM(H36:I36)","v":190}]
[null,null,null,null,null,null,"P3 / P4 kniend",{"$f":"'Kategorie 5'!K14","v":0},{"$f":"'Kategorie 5'!L14","v":0},{"$f":"SUM(H37:I37)","v":0}]
[null,null,null,null,null,null,"P5 / P6 stehend",{"$f":"'Kategorie 5'!M14","v":0},{"$f":"'Kategorie 5'!N14","v":0},{"$f":"SUM(H38:I38)","v":0}]
[null,{"$f":"'Kategorie 5'!Q15","v":9},{"$f":"'Kategorie 5'!D15","v":"Krähemann"},{"$f":"'Kategorie 5'!E15","v":"Levano"},{"$f":"'Kategorie 5'!F15","v":2006},{"$f":"'Kategorie 5'!G15","v":2},{"$f":"'Kategorie 5'!H15","v":"Wil"},null,null,{"$f":"'Kategorie 5'!P15","v":189},{"$f":"'Kategorie 5'!Q15","v":9},{"$f":"'Kategorie 5'!S15","v":0},{"$f":"IF(B39=2,\"SILBER\",\"\")","v":""}]
[null,null,null,null,null,null,"P1 / P2 liegend",{"$f":"'Kategorie 5'!I15","v":94},{"$f":"'Kategorie 5'!J15","v":95},{"$f":"SUM(H40:I40)","v":189}]
[null,null,null,null,null,null,"P3 / P4 kniend",{"$f":"'Kategorie 5'!K15","v":0},{"$f":"'Kategorie 5'!L15","v":0},{"$f":"SUM(H41:I41)","v":0}]
[null,null,null,null,null,null,"P5 / P6 stehend",{"$f":"'Kategorie 5'!M15","v":0},{"$f":"'Kategorie 5'!N15","v":0},{"$f":"SUM(H42:I42)","v":0}]
[null,{"$f":"'Kategorie 5'!Q16","v":10},{"$f":"'Kategorie 5'!D16","v":"Schittenhelm"},{"$f":"'Kategorie 5'!E16","v":"Dennis"},{"$f":"'Kategorie 5'!F16","v":2003},{"$f":"'Kategorie 5'!G16","v":3},{"$f":"'Kategorie 5'!H16","v":"Goldach"},null,null,{"$f":"'Kategorie 5'!P16","v":189},{"$f":"'Kategorie 5'!Q16","v":10},{"$f":"'Kategorie 5'!S16","v":0},{"$f":"IF(B43=2,\"SILBER\",\"\")","v":""}]
[null,null,null,null,null,null,"P1 / P2 liegend",{"$f":"'Kategorie 5'!I16","v":93},{"$f":"'Kategorie 5'!J16","v":96},{"$f":"SUM(H44:I44)","v":189}]
[null,null,null,null,null,null,"P3 / P4 kniend",{"$f":"'Kategorie 5'!K16","v":0},{"$f":"'Kategorie 5'!L16","v":0},{"$f":"SUM(H45:I45)","v":0}]
[null,null,null,null,null,null,"P5 / P6 stehend",{"$f":"'Kategorie 5'!M16","v":0},{"$f":"'Kategorie 5'!N16","v":0},{"$f":"SUM(H46:I46)","v":0}]
[null,{"$f":"'Kategorie 5'!Q17","v":11},{"$f":"'Kategorie 5'!D17","v":"Sprenger"},{"$f":"'Kategorie 5'!E17","v":"Sven"},{"$f":"'Kategorie 5'!F17","v":2008},{"$f":"'Kategorie 5'!G17","v":2},{"$f":"'Kategorie 5'!H17","v":"Altstätten"},null,null,{"$f":"'Kategorie 5'!P17","v":189},{"$f":"'Kategorie 5'!Q17","v":11},{"$f":"'Kategorie 5'!S17","v":0},{"$f":"IF(B47=2,\"SILBER\",\"\")","v":""}]
[null,null,null,null,null,null,"P1 / P2 liegend",{"$f":"'Kategorie 5'!I17","v":95},{"$f":"'Kategorie 5'!J17","v":94},{"$f":"SUM(H48:I48)","v":189}]
[null,null,null,null,null,null,"P3 / P4 kniend",{"$f":"'Kategorie 5'!K17","v":0},{"$f":"'Kategorie 5'!L17","v":0},{"$f":"SUM(H49:I49)","v":0}]
[null,null,null,null,null,null,"P5 / P6 stehend",{"$f":"'Kategorie 5'!M17","v":0},{"$f":"'Kategorie 5'!N17","v":0},{"$f":"SUM(H50:I50)","v":0}]
[null,{"$f":"'Kategorie 5'!Q18","v":12},{"$f":"'Kategorie 5'!D18","v":"Kummer"},{"$f":"'Kategorie 5'!E18","v":"Livio"},{"$f":"'Kategorie 5'!F18","v":2005},{"$f":"'Kategorie 5'!G18","v":3},{"$f":"'Kategorie 5'!H18","v":"Munot Schaffhausen"},null,null,{"$f":"'Kategorie 5'!P18","v":188},{"$f":"'Kategorie 5'!Q18","v":12},{"$f":"'Kategorie 5'!S18","v":0},{"$f":"IF(B51=2,\"SILBER\",\"\")","v":""}]
[null,null,null,null,null,null,"P1 / P2 liegend",{"$f":"'Kategorie 5'!I18","v":94},{"$f":"'Kategorie 5'!J18","v":94},{"$f":"SUM(H52:I52)","v":188}]
[null,null,null,null,null,null,"P3 / P4 kniend",{"$f":"'Kategorie 5'!K18","v":0},{"$f":"'Kategorie 5'!L18","v":0},{"$f":"SUM(H53:I53)","v":0}]
[null,null,null,null,null,null,"P5 / P6 stehend",{"$f":"'Kategorie 5'!M18","v":0},{"$f":"'Kategorie 5'!N18","v":0},{"$f":"SUM(H54:I54)","v":0}]
[null,{"$f":"'Kategorie 5'!Q19","v":13},{"$f":"'Kategorie 5'!D19","v":"Lengyel "},{"$f":"'Kategorie 5'!E19","v":"Zsombor"},{"$f":"'Kategorie 5'!F19","v":2006},{"$f":"'Kategorie 5'!G19","v":2},{"$f":"'Kategorie 5'!H19","v":"Sargans"},null,null,{"$f":"'Kategorie 5'!P19","v":188},{"$f":"'Kategorie 5'!Q19","v":13},{"$f":"'Kategorie 5'!S19","v":0},{"$f":"IF(B55=2,\"SILBER\",\"\")","v":""}]
[null,null,null,null,null,null,"P1 / P2 liegend",{"$f":"'Kategorie 5'!I19","v":94},{"$f":"'Kategorie 5'!J19","v":94},{"$f":"SUM(H56:I56)","v":188}]
[null,null,null,null,null,null,"P3 / P4 kniend",{"$f":"'Kategorie 5'!K19","v":0},{"$f":"'Kategorie 5'!L19","v":0},{"$f":"SUM(H57:I57)","v":0}]
[null,null,null,null,null,null,"P5 / P6 stehend",{"$f":"'Kategorie 5'!M19","v":0},{"$f":"'Kategorie 5'!N19","v":0},{"$f":"SUM(H58:I58)","v":0}]
[null,{"$f":"'Kategorie 5'!Q20","v":14},{"$f":"'Kategorie 5'!D20","v":"Gmünder"},{"$f":"'Kategorie 5'!E20","v":"Ralf"},{"$f":"'Kategorie 5'!F20","v":2005},{"$f":"'Kategorie 5'!G20","v":3},{"$f":"'Kategorie 5'!H20","v":"Weissbad"},null,null,{"$f":"'Kategorie 5'!P20","v":188},{"$f":"'Kategorie 5'!Q20","v":14},{"$f":"'Kategorie 5'!S20","v":0},{"$f":"IF(B59=2,\"SILBER\",\"\")","v":""}]
[null,null,null,null,null,null,"P1 / P2 liegend",{"$f":"'Kategorie 5'!I20","v":92},{"$f":"'Kategorie 5'!J20","v":96},{"$f":"SUM(H60:I60)","v":188}]
[null,null,null,null,null,null,"P3 / P4 kniend",{"$f":"'Kategorie 5'!K20","v":0},{"$f":"'Kategorie 5'!L20","v":0},{"$f":"SUM(H61:I61)","v":0}]
[null,null,null,null,null,null,"P5 / P6 stehend",{"$f":"'Kategorie 5'!M20","v":0},{"$f":"'Kategorie 5'!N20","v":0},{"$f":"SUM(H62:I62)","v":0}]

{"sheet":"Aktuelle Schützendaten","index":8,"n_rows":143,"n_cols":16,"rows_kept":143,"cut":false,"hidden":false,"merged":[[1,0,1,15],[2,0,2,15],[3,0,3,15]]}
[]
[{"$f":"Parameter!C9","v":"Jugendtag 2022"}]
[{"$f":"Parameter!C7","v":"OSPSV"}]
[]
[]
["Nr","Abl.","Sch.-Nr","Name","Vorname","JG","Kat","Sektion","P1","P2","P3","P4","P5","P6","IZ","Total"]
[1,null,null,"Aeberli","Lionél",2010,1,"Dettighofen"]
[2,null,null,"Alder","James",2009,1,"Sitterdorf"]
[3,null,null,"Ammann","Pirmin",2007,2,"Neckertal"]
[4,null,null,"Ammann","Pirmin",2007,4,"Neckertal"]
[5,null,null,"Auer","Tobias",2005,3,"Sitterdorf"]
[6,null,null,"Balgar","Samuel",2009,2,"Goldach"]
[7,null,null,"Baumgartner","Michael",2003,3,"Munot Schaffhausen"]
[8,null,null,"Beerle","Nina",2007,2,"Goldach"]
[9,null,null,"Berger","Marc",2013,1,"Sitterdorf"]
[10,null,null,"Bernet","Kevin",2005,3,"Kirchberg"]
[11,null,null,"Bissegger","Robin",2004,3,"Weinfelden"]
[12,null,null,"Blattner","Mia",2009,1,"Goldach"]
[13,null,null,"Bleiker","Beda",2009,1,"Mosnang"]
[14,null,null,"Böhi","Marc",2009,1,"Schönholzerswilen"]
[15,null,null,"Böhi","Sarina",2009,1,"Schönholzerswilen"]
[16,null,null,"Brändli","Joya",2004,3,"Schönholzerswilen"]
[17,null,null,"Broger","Simon",2006,2,"Weissbad"]
[18,null,null,"Broger","Simon",2006,4,"Weissbad"]
[19,null,null,"Brühlmann","David",2004,3,"Munot Schaffhausen"]
[20,null,null,"Correia","Jannic",2009,1,"Schönholzerswilen"]
[21,null,null,"Correia","Sandro",2006,2,"Schönholzerswilen"]
[22,null,null,"Deubelbeiss","Jano",2010,1,"Goldach"]
[23,null,null,"Dornbierer","Timon",2007,2,"Goldach"]
[24,null,null,"Eggenberger","Raffael",2007,2,"Grabs"]
[25,null,null,"Fässler","Ryan",2011,1,"Goldach"]
[26,null,null,"Fries","Eliano",2010,1,"Goldach"]
[27,null,null,"Fritsche","Maurus",2002,3,"Weissbad"]
[28,null,null,"Fritsche","Maurus",2002,4,"Weissbad"]
[29,null,null,"Fromm","Valentin",2008,2,"Sargans"]
[30,null,null,"Früh","Janis",2004,3,"Kirchberg"]
[31,null,null,"Früh","Janis",2004,4,"Kirchberg"]
[32,null,null,"Gad","Karim",2003,3,"Munot Schaffhausen"]
[33,null,null,"Geisser","Roman",2006,2,"Dicken Ebnat-Kappel"]
[34,null,null,"Gmünder","Ralf",2005,3,"Weissbad"]
[35,null,null,"Gmünder","Janin",2005,3,"Weissbad"]
[36,null,null,"Gmünder","Simon",2003,3,"Weissbad"]
[37,null,null,"Good ","Cedric",2009,2,"Sargans"]
[38,null,null,"Graf","Felix",2011,1,"Kirchberg"]
[39,null,null,"Graf","Rahel",2010,1,"Kirchberg"]
[40,null,null,"Hagen","Linn",2009,1,"Dettighofen"]
[41,null,null,"Häseli","Max",2008,2,"Kirchberg"]
[42,null,null,"Hassioui","Elias",2011,1,"Sitterdorf"]
[43,null,null,"Henke","Quentin",2009,2,"Kirchberg"]
[44,null,null,"Huldi","Patrick ",2009,1,"Neckertal"]
[45,null,null,"Jenal","Jarik",2012,1,"Sitterdorf"]
[46,null,null,"Jordi","Lena",2010,1,"Dicken Ebnat-Kappel"]
[47,null,null,"Kalbiz","Andrin",2008,2,"Weinfelden"]
[48,null,null,"Klein","Elias",2003,3,"Kirchberg"]
[49,null,null,"Koch","Leandro",2011,1,"Weissbad"]
[50,null,null,"Koller ","Bryan",2009,1,"Kirchberg"]
[51,null,null,"Krähemann","Levano",2006,2,"Will"]
[52,null,null,"Kressel ","Nicolas",2006,2,"Sargans"]
[53,null,null,"Kummer","Livio",2005,3,"Munot Schaffhausen"]
[54,null,null,"Künzli","Ian",2006,2,"Dicken Ebnat-Kappel"]
[55,null,null,"Küttel","Patrick",2006,2,"Schönholzerswilen"]
[56,null,null,"Kutter","Joel",2010,2,"Dettighofen"]
[57,null,null,"Lengwiler","Tobias",2003,3,"Sitterdorf"]
[58,null,null,"Lengyel ","Zsombor",2006,2,"Sargans"]
[59,null,null,"Locher","Livio",2002,3,"Weissbad"]
[60,null,null,"Locher","Livio",2002,4,"Weissbad"]
[61,null,null,"Lüber","Lara",2008,2,"Kirchberg"]
[62,null,null,"Mäder","Alex",2005,3,"Sitterdorf"]
[63,null,null,"Mäder","Alex",2005,4,"Sitterdorf"]
[64,null,null,"Mäder","Ramona",2008,1,"Sitterdorf"]
[65,null,null,"Manser","Jonas",2006,2,"Weissbad"]
[66,null,null,"Manser","Jonas",2006,4,"Weissbad"]
[67,null,null,"Marciello","Chiara",2008,2,"Weinfelden"]
[68,null,null,"Marciello","Chiara",2008,4,"Weinfelden"]
[69,null,null,"Matanovic","Josipa",2007,2,"Grabs"]
[70,null,null,"Meier","Noah",2010,1,"Goldach"]
[71,null,null,"Meier","Jerome",2012,1,"Schönholzerswilen"]
[72,null,null,"Meier","Astid",2002,3,"St.Gallen"]
[73,null,null,"Mettler","Andri",2010,1,"Neckertal"]
[74,null,null,"Moser","Jan",2007,2,"Wildhaus"]
[75,null,null,"Moser","Jan",2007,4,"Wildhaus"]
[76,null,null,"Munskgaard ","William",2007,2,"Sargans"]
[77,null,null,"Niederer","Remo",2011,1,"Neckertal"]
[78,null,null,"Oberholzer","Raffael ",2005,3,"Sitterdorf"]
[79,null,null,"Oetli ","Philipp",2006,2,"Weinfelden"]
[80,null,null,"Oppliger","Alisa",2005,3,"Dicken Ebnat-Kappel"]
[81,null,null,"Patt","Michel",2009,1,"St.Gallen"]
[82,null,null,"Patt","Andrea",2006,2,"St.Gallen"]
[83,null,null,"Pfützner ","Philipp",2006,2,"Sargans"]
[84,null,null,"Rick","Colin",2009,2,"Goldach"]
[85,null,null,"Rohner","Ciril",2006,2,"Kirchberg"]
[86,null,null,"Rohner","Enea",2012,1,"Sitterdorf"]
[87,null,null,"Sawall","Fabienne",2007,2,"Grabs"]
[88,null,null,"Schaub","Alyssia",2009,1,"Mosnang"]
[89,null,null,"Scherrer","Benjamin",2003,3,"Weinfelden"]
[90,null,null,"Scherrer","Benjamin",2003,4,"Weinfelden"]
[91,null,null,"Schittenhelm","Dennis",2003,4,"Goldach"]
[92,null,null,"Schittenhelm","Dennis",2003,3,"Goldach"]
[93,null,null,"Schläpfer ","Michael",2009,2,"Weinfelden"]
[94,null,null,"Schnetzer","Colin",2003,3,"Sitterdorf"]
[95,null,null,"Schönenberger","Fynn",2010,1,"Sitterdorf"]
[96,null,null,"Schönenberger","Zoé",2007,2,"Sitterdorf"]
[97,null,null,"Schönenberger","Zoé",2007,4,"Sitterdorf"]
[98,null,null,"Schorta ","Moreno",2012,1,"Sitterdorf"]
[99,null,null,"Schrittwieser","Thomas",2005,3,"Weinfelden"]
[100,null,null,"Schumacher","Manuel",2003,3,"Weinfelden"]
[101,null,null,"Segmüller","Joe",2010,1,"Altstätten"]
[102,null,null,"Segmüller","Arno",2006,2,"Altstätten"]
[103,null,null,"Segmüller","Nando",2003,3,"Altstätten"]
[104,null,null,"Speck","Corina",2005,3,"Weissbad"]
[105,null,null,"Sprenger","Sven",2008,2,"Altstätten"]
[106,null,null,"Sprenger","Sven",2008,4,"Altstätten"]
[107,null,null,"Stadler","Sven",2005,3,"Weissbad"]
[108,null,null,"Staub","Kaya",2008,1,"Schönholzerswilen"]
[109,null,null,"Staub","Lea",2002,3,"Schönholzerswilen"]
[110,null,null,"Steiner","Joshua",2009,1,"Neckertal"]
[111,null,null,"Steuck","Luca",2009,1,"Mosnang"]
[112,null,null,"Stieger","Ken",2006,2,"Weinfelden"]
[113,null,null,"Straub","Patrick",2009,2,"Dettighofen"]
[114,null,null,"Strübi ","Manuel",2008,2,"Wildhaus"]
[115,null,null,"Strübi ","Manuel",2008,4,"Wildhaus"]
[116,null,null,"Studer","Lorin",2009,1,"Dettighofen"]
[117,null,null,"Studer","Julien",2010,1,"Munot Schaffhausen"]
[118,null,null,"Sutter","Janine",2010,1,"Schönholzerswilen"]
[119,null,null,"Sutter","Natascha",2004,3,"Schönholzerswilen"]
[120,null,null,"Taranto","Arya",2008,2,"Will"]
[121,null,null,"Thalmann","Robin",2012,1,"Weinfelden"]
[122,null,null,"Thalmann","Silas",2010,1,"Weinfelden"]
[123,null,null,"Truniger","Nils",2008,1,"Mosnang"]
[124,null,null,"Tunyogi ","Daniel",2003,3,"Sargans"]
[125,null,null,"Ulmann","Jan ",2005,3,"Weissbad"]
[126,null,null,"Ulmann","Jan ",2005,4,"Weissbad"]
[127,null,null,"Wachsmann","Phillip",2008,1,"Sargans"]
[128,null,null,"Weitbrecht ","Talitha",2009,2,"Sargans"]
[129,null,null,"Wenk","Alexander",2011,1,"Goldach"]
[130,null,null,"Wichser","Mia",2009,1,"Grabs"]
[131,null,null,"Wiederkehr","Yari",2006,2,"Kirchberg"]
[132,null,null,"Wildi","Clarissa",2008,1,"Grabs"]
[133,null,null,"Ziegler","Timo",2010,1,"Neckertal"]
[134,null,null,"Ziltener","Sina",2007,2,"Goldach"]
[135,null,null,"Zumstein","Vincenza",2005,3,"Weissbad"]
[136,null,null,"Zweifel","Noel",2010,2,"Kirchberg"]
[137]

{"sheet":"Save","index":9,"n_rows":206,"n_cols":16,"rows_kept":206,"cut":false,"hidden":true,"merged":[[1,0,1,15],[2,0,2,15],[3,0,3,15]]}
[]
[{"$f":"Parameter!C9","v":"Jugendtag 2022"}]
[{"$f":"Parameter!C7","v":"OSPSV"}]
[]
[]
["Nr","Abl.","Sch.-Nr","Name","Vorname","JG","Kat","Sektion","P1","P2","P3","P4","P5","P6","IZ","Total"]
[2,null,null,"Aeberli","Lionél",2010,1,"Dettighofen",90,91,null,null,null,null,null,181]
[130,null,null,"Ammann","Pirmin",2007,4,"Neckertal",null,null,93,91,null,null,null,184]
[52,null,null,"Balgar","Samuel",2009,2,"Goldach",88,92,null,null,null,null,1,181]
[99,null,null,"Baumgartner","Michael",2003,3,"Munot-Schaffhausen",93,92,null,null,null,null,null,185]
[92,null,null,"Beerle","Fabio",2004,3,"Goldach",98,97,null,null,null,null,null,195]
[53,null,null,"Beerle","Nina",2007,2,"Goldach",93,93,null,null,null,null,2,188]
[94,null,null,"Bernet","Kevin",2005,3,"Kirchberg",92,93,null,null,null,null,1,186]
[112,null,null,"Bissegger","Robin",2004,2,"Weinfelden",92,94,90,90,89,89,2,546]
[6,null,null,"Blattner","Mia",2009,1,"Goldach",94,95,null,null,null,null,1,190]
[7,null,null,"Deubelbeiss","Jano",2010,1,"Goldach",93,96,null,null,null,null,2,191]
[54,null,null,"Dornbierer","Timon",2007,2,"Goldach",88,92,null,null,null,null,3,183]
[58,null,null,"Eggenberger","Raffael",2007,2,"Grabs",97,92,null,null,null,null,4,193]
[8,null,null,"Fässler","Ryan",2011,1,"Goldach",92,97,null,null,null,null,2,191]
[9,null,null,"Fries","Eliano",2010,1,"Goldach",90,91,null,null,null,null,null,181]
[116,null,null,"Fritsche","Maurus",2002,5,"Weissbad",92,94,90,90,89,89,null,544]
[95,null,null,"Früh","Janis",2004,3,"Kirchberg",99,94,null,null,null,null,5,198]
[128,null,null,"Früh","Janis",2004,4,"Kirchberg",null,null,88,89,null,null,null,177]
[50,null,null,"Geisser","Roman",2006,2,"Ebnat-Kappel",90,93,null,null,null,null,null,183]
[3,null,null,"Hagen","Linn",2009,1,"Dettighofen",87,93,null,null,null,null,2,182]
[61,null,null,"Häseli","Max",2008,2,"Kirchberg",93,87,null,null,null,null,null,180]
[62,null,null,"Henke","Quentin",2009,2,"Kirchberg",90,92,null,null,null,null,1,183]
[5,null,null,"Jordi","Lena",2010,1,"Ebnat-Kappel",87,93,null,null,null,null,4,184]
[96,null,null,"Klein","Elias",2003,3,"Kirchberg",89,92,null,null,null,null,null,181]
[51,null,null,"Künzli","Ian",2006,2,"Ebnat-Kappel",89,87,null,null,null,null,null,176]
[63,null,null,"Lüber","Lara",2008,2,"Kirchberg",90,92,null,null,null,null,1,183]
[131,null,null,"Mäder","Alex",2005,4,"Sitterdorf",null,null,93,91,null,null,1,185]
[133,null,null,"Marciello","Chiara",2008,4,"Weinfelden",null,null,92,92,null,null,null,184]
[59,null,null,"Matanovic","Josipa",2007,2,"Grabs",85,89,null,null,null,null,null,174]
[111,null,null,"Meier","Astid",2002,5,"St.Gallen",93,93,90,90,89,89,null,544]
[91,null,null,"Oppliger","Alisa",2005,3,"Ebnat-Kappel",93,94,null,null,null,null,null,187]
[56,null,null,"Rick","Colin",2009,2,"Goldach",93,87,null,null,null,null,null,180]
[64,null,null,"Rohner","Ciril",2006,2,"Kirchberg",92,88,null,null,null,null,null,180]
[113,null,null,"Scherrer","Benjamin",2003,5,"Weinfelden",93,93,90,90,89,89,null,544]
[93,null,null,"Schittenhelm","Dennis",2003,3,"Goldach",92,93,null,null,null,null,1,186]
[127,null,null,"Schittenhelm","Dennis",2003,4,"Goldach",null,null,89,87,null,null,null,176]
[97,null,null,"Schnelli","Livia",2004,3,"Kirchberg",94,91,null,null,null,null,2,187]
[129,null,null,"Schnelli","Livia",2004,4,"Kirchberg",null,null,91,93,null,null,null,184]
[132,null,null,"Schönenberger","Zoé",2007,4,"Sitterdorf",null,null,92,92,null,null,null,184]
[114,null,null,"Schrittwieser","Thomas",2005,5,"Weinfelden",93,93,90,90,89,89,1,545]
[115,null,null,"Schumacher","Manuel",2003,5,"Weinfelden",93,93,89,91,89,89,null,544]
[1,null,null,"Segmüller","Joe",2010,1,"Altstätten",93,89,null,null,null,null,null,182]
[90,null,null,"Segmüller","Nando",2003,3,"Altstätten",88,95,null,null,null,null,null,183]
[126,null,null,"Sprenger","Sven",2008,4,"Altstätten",null,null,88,89,null,null,null,177]
[49,null,null,"Straub","Patrick",2009,2,"Dettighofen",95,91,null,null,null,null,2,188]
[4,null,null,"Studer","Lorin",2009,1,"Dettighofen",95,94,null,null,null,null,1,190]
[98,null,null,"Tunyogi ","Daniel",2003,3,"Sargans",93,92,null,null,null,null,null,185]
[199,null,null,"Kreis","Urs",1948,5,null,98,89,77,88,99,100,8,0]
[null,null,null,null,null,null,null,null,null,null,null,null,null,null,null,0]
[null,null,null,null,null,null,null,null,null,null,null,null,null,null,null,0]
[null,null,null,null,null,null,null,null,null,null,null,null,null,null,null,0]
[null,null,null,null,null,null,null,null,null,null,null,null,null,null,null,0]
[null,null,null,null,null,null,null,null,null,null,null,null,null,null,null,0]
[null,null,null,null,null,null,null,null,null,null,null,null,null,null,null,0]
[null,null,null,null,null,null,null,null,null,null,null,null,null,null,null,0]
[null,null,null,null,null,null,null,null,null,null,null,null,null,null,null,0]
[null,null,null,null,null,null,null,null,null,null,null,null,null,null,null,0]
[null,null,null,null,null,null,null,null,null,null,null,null,null,null,null,0]
[null,null,null,null,null,null,null,null,null,null,null,null,null,null,null,0]
[null,null,null,null,null,null,null,null,null,null,null,null,null,null,null,0]
[null,null,null,null,null,null,null,null,null,null,null,null,null,null,null,0]
[null,null,null,null,null,null,null,null,null,null,null,null,null,null,null,0]
[null,null,null,null,null,null,null,null,null,null,null,null,null,null,null,0]
[null,null,null,null,null,null,null,null,null,null,null,null,null,null,null,0]
[null,null,null,null,null,null,null,null,null,null,null,null,null,null,null,0]
[null,null,null,null,null,null,null,null,null,null,null,null,null,null,null,0]
[null,null,null,null,null,null,null,null,null,null,null,null,null,null,null,0]
[null,null,null,null,null,null,null,null,null,null,null,null,null,null,null,0]
[null,null,null,null,null,null,null,null,null,null,null,null,null,null,null,0]
[null,null,null,null,null,null,null,null,null,null,null,null,null,null,null,0]
[null,null,null,null,null,null,null,null,null,null,null,null,null,null,null,0]
[null,null,null,null,null,null,null,null,null,null,null,null,null,null,null,0]
[null,null,null,null,null,null,null,null,null,null,null,null,null,null,null,0]
[null,null,null,null,null,null,null,null,null,null,null,null,null,null,null,0]
[null,null,null,null,null,null,null,null,null,null,null,null,null,null,null,0]
[null,null,null,null,null,null,null,null,null,null,null,null,null,null,null,0]
[null,null,null,null,null,null,null,null,null,null,null,null,null,null,null,0]
[null,null,null,null,null,null,null,null,null,null,null,null,null,null,null,0]
[null,null,null,null,null,null,null,null,null,null,null,null,null,null,null,0]
[null,null,null,null,null,null,null,null,null,null,null,null,null,null,null,0]
[null,null,null,null,null,null,null,null,null,null,null,null,null,null,null,0]
[null,null,null,null,null,null,null,null,null,null,null,null,null,null,null,0]
[null,null,null,null,null,null,null,null,null,null,null,null,null,null,null,0]
[null,null,null,null,null,null,null,null,null,null,null,null,null,null,null,0]
[null,null,null,null,null,null,null,null,null,null,null,null,null,null,null,0]
[null,null,null,null,null,null,null,null,null,null,null,null,null,null,null,0]
[null,null,null,null,null,null,null,null,null,null,null,null,null,null,null,0]
[null,null,null,null,null,null,null,null,null,null,null,null,null,null,null,0]
[null,null,null,null,null,null,null,null,null,null,null,null,null,null,null,0]
[null,null,null,null,null,null,null,null,null,null,null,null,null,null,null,0]
[null,null,null,null,null,null,null,null,null,null,null,null,null,null,null,0]
[null,null,null,null,null,null,null,null,null,null,null,null,null,null,null,0]
[null,null,null,null,null,null,null,null,null,null,null,null,null,null,null,0]
[null,null,null,null,null,null,null,null,null,null,null,null,null,null,null,0]
[null,null,null,null,null,null,null,null,null,null,null,null,null,null,null,0]
[null,null,null,null,null,null,null,null,null,null,null,null,null,null,null,0]
[null,null,null,null,null,null,null,null,null,null,null,null,null,null,null,0]
[null,null,null,null,null,null,null,null,null,null,null,null,null,null,null,0]
[null,null,null,null,null,null,null,null,null,null,null,null,null,null,null,0]
[null,null,null,null,null,null,null,null,null,null,null,null,null,null,null,0]
[null,null,null,null,null,null,null,null,null,null,null,null,null,null,null,0]
[null,null,null,null,null,null,null,null,null,null,null,null,null,null,null,0]
[null,null,null,null,null,null,null,null,null,null,null,null,null,null,null,0]
[null,null,null,null,null,null,null,null,null,null,null,null,null,null,null,0]
[null,null,null,null,null,null,null,null,null,null,null,null,null,null,null,0]
[null,null,null,null,null,null,null,null,null,null,null,null,null,null,null,0]
[null,null,null,null,null,null,null,null,null,null,null,null,null,null,null,0]
[null,null,null,null,null,null,null,null,null,null,null,null,null,null,null,0]
[null,null,null,null,null,null,null,null,null,null,null,null,null,null,null,0]
[null,null,null,null,null,null,null,null,null,null,null,null,null,null,null,0]
[null,null,null,null,null,null,null,null,null,null,null,null,null,null,null,0]
[null,null,null,null,null,null,null,null,null,null,null,null,null,null,null,0]
[null,null,null,null,null,null,null,null,null,null,null,null,null,null,null,0]
[null,null,null,null,null,null,null,null,null,null,null,null,null,null,null,0]
[null,null,null,null,null,null,null,null,null,null,null,null,null,null,null,0]
[null,null,null,null,null,null,null,null,null,null,null,null,null,null,null,0]
[null,null,null,null,null,null,null,null,null,null,null,null,null,null,null,0]
[null,null,null,null,null,null,null,null,null,null,null,null,null,null,null,0]
[null,null,null,null,null,null,null,null,null,null,null,null,null,null,null,0]
[null,null,null,null,null,null,null,null,null,null,null,null,null,null,null,0]
[null,null,null,null,null,null,null,null,null,null,null,null,null,null,null,0]
[null,null,null,null,null,null,null,null,null,null,null,null,null,null,null,0]
[null,null,null,null,null,null,null,null,null,null,null,null,null,null,null,0]
[null,null,null,null,null,null,null,null,null,null,null,null,null,null,null,0]
[null,null,null,null,null,null,null,null,null,null,null,null,null,null,null,0]
[null,null,null,null,null,null,null,null,null,null,null,null,null,null,null,0]
[null,null,null,null,null,null,null,null,null,null,null,null,null,null,null,0]
[null,null,null,null,null,null,null,null,null,null,null,null,null,null,null,0]
[null,null,null,null,null,null,null,null,null,null,null,null,null,null,null,0]
[null,null,null,null,null,null,null,null,null,null,null,null,null,null,null,0]
[null,null,null,null,null,null,null,null,null,null,null,null,null,null,null,0]
[null,null,null,null,null,null,null,null,null,null,null,null,null,null,null,0]
[null,null,null,null,null,null,null,null,null,null,null,null,null,null,null,0]
[null,null,null,null,null,null,null,null,null,null,null,null,null,null,null,0]
[null,null,null,null,null,null,null,null,null,null,null,null,null,null,null,0]
[null,null,null,null,null,null,null,null,null,null,null,null,null,null,null,0]
[null,null,null,null,null,null,null,null,null,null,null,null,null,null,null,0]
[null,null,null,null,null,null,null,null,null,null,null,null,null,null,null,0]
[null,null,null,null,null,null,null,null,null,null,null,null,null,null,null,0]
[null,null,null,null,null,null,null,null,null,null,null,null,null,null,null,0]
[null,null,null,null,null,null,null,null,null,null,null,null,null,null,null,0]
[null,null,null,null,null,null,null,null,null,null,null,null,null,null,null,0]
[null,null,null,null,null,null,null,null,null,null,null,null,null,null,null,0]
[null,null,null,null,null,null,null,null,null,null,null,null,null,null,null,0]
[null,null,null,null,null,null,null,null,null,null,null,null,null,null,null,0]
[null,null,null,null,null,null,null,null,null,null,null,null,null,null,null,0]
[null,null,null,null,null,null,null,null,null,null,null,null,null,null,null,0]
[null,null,null,null,null,null,null,null,null,null,null,null,null,null,null,0]
[null,null,null,null,null,null,null,null,null,null,null,null,null,null,null,0]
[null,null,null,null,null,null,null,null,null,null,null,null,null,null,null,0]
[null,null,null,null,null,null,null,null,null,null,null,null,null,null,null,0]
[null,null,null,null,null,null,null,null,null,null,null,null,null,null,null,0]
[null,null,null,null,null,null,null,null,null,null,null,null,null,null,null,0]
[null,null,null,null,null,null,null,null,null,null,null,null,null,null,null,0]
[null,null,null,null,null,null,null,null,null,null,null,null,null,null,null,0]
[null,null,null,null,null,null,null,null,null,null,null,null,null,null,null,0]
[null,null,null,null,null,null,null,null,null,null,null,null,null,null,null,0]
[null,null,null,null,null,null,null,null,null,null,null,null,null,null,null,0]
[null,null,null,null,null,null,null,null,null,null,null,null,null,null,null,0]
[null,null,null,null,null,null,null,null,null,null,null,null,null,null,null,0]
[null,null,null,null,null,null,null,null,null,null,null,null,null,null,null,0]
[null,null,null,null,null,null,null,null,null,null,null,null,null,null,null,0]
[null,null,null,null,null,null,null,null,null,null,null,null,null,null,null,0]
[null,null,null,null,null,null,null,null,null,null,null,null,null,null,null,0]
[null,null,null,null,null,null,null,null,null,null,null,null,null,null,null,0]
[null,null,null,null,null,null,null,null,null,null,null,null,null,null,null,0]
[null,null,null,null,null,null,null,null,null,null,null,null,null,null,null,0]
[null,null,null,null,null,null,null,null,null,null,null,null,null,null,null,0]
[null,null,null,null,null,null,null,null,null,null,null,null,null,null,null,0]
[null,null,null,null,null,null,null,null,null,null,null,null,null,null,null,0]
[null,null,null,null,null,null,null,null,null,null,null,null,null,null,null,0]
[null,null,null,null,null,null,null,null,null,null,null,null,null,null,null,0]
[null,null,null,null,null,null,null,null,null,null,null,null,null,null,null,0]
[null,null,null,null,null,null,null,null,null,null,null,null,null,null,null,0]
[null,null,null,null,null,null,null,null,null,null,null,null,null,null,null,0]
[null,null,null,null,null,null,null,null,null,null,null,null,null,null,null,0]
[null,null,null,null,null,null,null,null,null,null,null,null,null,null,null,0]
[null,null,null,null,null,null,null,null,null,null,null,null,null,null,null,0]
[null,null,null,null,null,null,null,null,null,null,null,null,null,null,null,0]
[null,null,null,null,null,null,null,null,null,null,null,null,null,null,null,0]
[null,null,null,null,null,null,null,null,null,null,null,null,null,null,null,0]
[null,null,null,null,null,null,null,null,null,null,null,null,null,null,null,0]
[null,null,null,null,null,null,null,null,null,null,null,null,null,null,null,0]
[null,null,null,null,null,null,null,null,null,null,null,null,null,null,null,0]
[null,null,null,null,null,null,null,null,null,null,null,null,null,null,null,0]
[null,null,null,null,null,null,null,null,null,null,null,null,null,null,null,0]
[null,null,null,null,null,null,null,null,null,null,null,null,null,null,null,0]
[null,null,null,null,null,null,null,null,null,null,null,null,null,null,null,0]
[null,null,null,null,null,null,null,null,null,null,null,null,null,null,null,0]
[null,null,null,null,null,null,null,null,null,null,null,null,null,null,null,0]
[null,null,null,null,null,null,null,null,null,null,null,null,null,null,null,0]
[null,null,null,null,null,null,null,null,null,null,null,null,null,null,null,0]
[null,null,null,null,null,null,null,null,null,null,null,null,null,null,null,0]
[null,null,null,null,null,null,null,null,null,null,null,null,null,null,null,0]
[null,null,null,null,null,null,null,null,null,null,null,null,null,null,null,0]
[null,null,null,null,null,null,null,null,null,null,null,null,null,null,null,0]
[null,null,null,null,null,null,null,null,null,null,null,null,null,null,null,0]
[null,null,null,null,null,null,null,null,null,null,null,null,null,null,null,0]
[null,null,null,null,null,null,null,null,null,null,null,null,null,null,null,0]
[null,null,null,null,null,null,null,null,null,null,null,null,null,null,null,0]
[null,null,null,null,null,null,null,null,null,null,null,null,null,null,null,0]